Body Name,Transaction Date,Transaction Amount,Merchant Name,Merchant Description,Expense Area,Cost Centre Description,Expense Type
Cambridgeshire County Council,01/04/2021,4.40,GREGGS PLC,"EATING PLACES, RESTAURANTS",Changing Futures & Projects,Housing First,OTHER SERVICE USER SUPPORT
Cambridgeshire County Council,01/04/2021,7.96,TESCO STORES 3009,"GROCERY STORES, SUPERMARKETS",Outdoor Education (includes Grafham Water),Grafham Water Centre,
Cambridgeshire County Council,01/04/2021,8.68,POST OFFICE COUNTER,POSTAL SERVICES-GOVERNMENT ONLY,Coroners,Coroners General,POSTAGE & CARRIAGE
Cambridgeshire County Council,01/04/2021,11.25,WILKO RETAIL LIMITED,MISCELLANEOUS GENERAL MERCHANDISE,LD - In House Provider Services,6 St Lukes Close (Respite),
Cambridgeshire County Council,01/04/2021,11.40,AMAZON.CO.UK MU8YS62X4,DIRECT MARKETING-OTHER DIRECT MARKETERS/NOT ELSEW.,Children's Disability Service,Head of RSS,
Cambridgeshire County Council,01/04/2021,11.73,FACEBK MLVJ83KPJ2,ADVERTISING SERVICES,GCP,GCP - Strategic Communicatations,GENERAL OFFICE EXPENSES & STATIONERY
Cambridgeshire County Council,01/04/2021,13.99,AMZNMKTPLACE,MISCELLANEOUS AND SPECIALTY RETAIL STORES,Children's Disability Service,Head of RSS,ROUTINE REPAIRS - INDIVIDUAL PROPERTIES
Cambridgeshire County Council,01/04/2021,15.00,WWW.VOUCHEREXPRESS.CO.,"GIFT, CARD, NOVELTY AND SOUVENIR SHOPS",Corporate Parenting,North Child Looked After Team 1,GRANTS&SUPPORT FOR OTHER SERVICE USERS
Cambridgeshire County Council,01/04/2021,16.70,JACK'S 4702,"GROCERY STORES, SUPERMARKETS","Communities, Employment & Skills",YS - DfE Essential Skills for Life,
Cambridgeshire County Council,01/04/2021,17.65,CO-OP GROUP 171871,"GROCERY STORES, SUPERMARKETS",Changing Futures & Projects,Housing First,OTHER SERVICE USER SUPPORT
Cambridgeshire County Council,01/04/2021,20.00,AMAZON.CO.UK MU0BO4SP4,DIRECT MARKETING-OTHER DIRECT MARKETERS/NOT ELSEW.,Safeguarding and Quality Assurance,Childrens Participation,SPECIALIST EQUIPMENT FOR SERVICE DELIV
Cambridgeshire County Council,01/04/2021,23.80,AMZNMKTPLACE,MISCELLANEOUS AND SPECIALTY RETAIL STORES,Children's Disability Service,Head of RSS,
Cambridgeshire County Council,01/04/2021,32.74,TRAVELODGE,TRAVELODGE,"Children, Education and Families Directorate","Children, Education and Families Directorate",
Cambridgeshire County Council,01/04/2021,33.97,WWW.ALDI.CO.UK,"GROCERY STORES, SUPERMARKETS",Changing Futures & Projects,Counting Every Adult,
Cambridgeshire County Council,01/04/2021,36.00,PCS OXFORD HOME STUDY,"COLLEGES, UNIV, PRO SCHOOLS, JUNIOR COLLEGES",Virtual School,Virtual School for Care Experienced Children,
Cambridgeshire County Council,01/04/2021,40.00,AMAZON.CO.UK MU6GC5SH4,DIRECT MARKETING-OTHER DIRECT MARKETERS/NOT ELSEW.,Safeguarding and Quality Assurance,Childrens Participation,SPECIALIST EQUIPMENT FOR SERVICE DELIV
Cambridgeshire County Council,01/04/2021,40.00,ARGOS LTD,DISCOUNT STORES,LD - In House Provider Services,6 St Lukes Close (Respite),CATERING PROVISIONS
Cambridgeshire County Council,01/04/2021,129.98,AMZNMKTPLACE AMAZON.CO,MISCELLANEOUS AND SPECIALTY RETAIL STORES,Targeted Support Service - South,EH East Cambridgeshire District,PROFESSIONAL FEES AND HIRED SERVICES
Cambridgeshire County Council,01/04/2021,133.12,CAMBRIDGE VETERINARY G,VETERINARY SERVICES,Changing Futures & Projects,Housing First,OTHER SERVICE USER SUPPORT
Cambridgeshire County Council,01/04/2021,136.33,WWW.GL-EDUCATION.C,BOOK STORES,SEND Specialist Services,Head of SEND Services (0-25),
Cambridgeshire County Council,01/04/2021,147.80,PAYPAL  CRELLINGHAR,DENTAL/LAB/MED/OPHTHALMIC HOSP EQUIP & SUPPLIES,Professional Development Centres,Professional Development Centre Services,
Cambridgeshire County Council,01/04/2021,474.00,POSTMYJOB.CO.UK,PROFESSIONAL SERVICES-NOT ELSEWHERE CLASSIFIED,GCP,GCP - Programme Central Co-ordination,RECRUITMENT ADVERTISING
Cambridgeshire County Council,01/04/2021,474.00,POSTMYJOB.CO.UK,PROFESSIONAL SERVICES-NOT ELSEWHERE CLASSIFIED,GCP,GCP - Programme Central Co-ordination,RECRUITMENT ADVERTISING
Cambridgeshire County Council,02/04/2021,-8.00,WM MORRISONS STORE PIC,"GROCERY STORES, SUPERMARKETS",Children's Disability Service,Head of RSS,CATERING PROVISIONS
Cambridgeshire County Council,02/04/2021,0.99,AMAZON PRIME MU1KC92X4,DIRECT MARKETING-CONTINUITY/SUBSCRIPTION MERCHANTS,Safeguarding and Quality Assurance,Childrens Participation,
Cambridgeshire County Council,02/04/2021,2.00,TESCO STORE 2889,"GROCERY STORES, SUPERMARKETS",Changing Futures & Projects,Housing First,OTHER SERVICE USER SUPPORT
Cambridgeshire County Council,02/04/2021,3.00,LAND REGISTRY,GOVERNMENT SERVICES-NOT ELSEWHERE CLASSIFIED,Shared Services,Debt Team,DEBT RECOVERY COSTS
Cambridgeshire County Council,02/04/2021,7.99,AMAZON PRIME MU82462R4,DIRECT MARKETING-CONTINUITY/SUBSCRIPTION MERCHANTS,Virtual School,Virtual School for Care Experienced Children,
Cambridgeshire County Council,02/04/2021,11.00,SAINSBURYS 0815,"GROCERY STORES, SUPERMARKETS",Changing Futures & Projects,Housing First,OTHER SERVICE USER SUPPORT
Cambridgeshire County Council,02/04/2021,13.99,NETFLIX.COM,"CABLE, SATELLITE, OTHER PAY TELEVISION, RADIO SVCS",Fostering & Supervised Contact Services,Head of Fostering & Supervised Contact,
Cambridgeshire County Council,02/04/2021,16.15,AMZNMKTPLACE AMAZON.CO,MISCELLANEOUS AND SPECIALTY RETAIL STORES,Safeguarding and Quality Assurance,Safeguarding and Quality Assurance,HIRE OF EQUIPMENT
Cambridgeshire County Council,02/04/2021,20.00,AMAZON.CO.UK MU5EA22V4,DIRECT MARKETING-OTHER DIRECT MARKETERS/NOT ELSEW.,Fostering & Supervised Contact Services,Foster Care Training,
Cambridgeshire County Council,02/04/2021,34.99,AMAZON.CO.UK MU7DW4KW4,DIRECT MARKETING-OTHER DIRECT MARKETERS/NOT ELSEW.,Changing Futures & Projects,Counting Every Adult,OTHER SERVICE USER SUPPORT
Cambridgeshire County Council,02/04/2021,36.01,WWW.PARENTA.COM,PROFESSIONAL SERVICES-NOT ELSEWHERE CLASSIFIED,Early Years Service,Oasis Nursery,EDUCATIONAL EQUIPMENT
Cambridgeshire County Council,02/04/2021,56.16,PAYPAL  FACEBOOK FACEB,ADVERTISING SERVICES,Cambridgeshire Skills,Cambridgeshire Skills - March Community Centre - Learning,ADVERTISING/PUBLICITY (NON RECRUITMENT)
Cambridgeshire County Council,02/04/2021,70.45,WWW.KNOCKONWOOD.CO.UK,"MUSIC STORES-INSTRUMENTS, PIANOS, SHEET MUSIC",Performance & Strategic Development,Adults Central Business Support,SPECIALIST SUPPLIES AND MATERIALS
Cambridgeshire County Council,02/04/2021,143.50,HM PASSPORT OFFICE,GOVERNMENT SERVICES-NOT ELSEWHERE CLASSIFIED,Corporate Parenting,Separated Migrant Children > 18,GRANTS&SUPPORT FOR OTHER SERVICE USERS
Cambridgeshire County Council,02/04/2021,169.00,IKEA LTD SHOP ONLINE,"EQUIP, FURNITURE, HOME FURNSHNGS STRS (EXCPT APPL)",Corporate Parenting,Separated Migrant Children > 18,LEAVING CARE GRANTS
Cambridgeshire County Council,02/04/2021,185.76,WWW.CHRONOS.LTD.UK,HARDWARE STORES,Outdoor Education (includes Grafham Water),Grafham Water Centre,
Cambridgeshire County Council,02/04/2021,216.00,HIGH SPEED TRAINING LT,"SCHOOLS, BUSINESS AND SECRETARIAL",Children's Disability Service,Head of RSS,STAFF TRAINING & DEVELOPMENT
Cambridgeshire County Council,02/04/2021,237.68,TRAVELODGE,TRAVELODGE,"Children, Education and Families Directorate","Children, Education and Families Directorate",
Cambridgeshire County Council,02/04/2021,249.99,SMYTHSTOYS.COM,"GAME, TOY, AND HOBBY SHOPS",Fostering & Supervised Contact Services,Fostering Recruitment & Assessment Team,SUPPORT AND GRANTS TO FOSTER CARERS
Cambridgeshire County Council,02/04/2021,254.09,WM MORRISONS STORE PIC,"GROCERY STORES, SUPERMARKETS",Children's Disability Service,Head of RSS,CATERING PROVISIONS
Cambridgeshire County Council,02/04/2021,894.89,FATTORINI LOCAL,MISCELLANEOUS GENERAL MERCHANDISE,Chief Executive,Chief Executive's Office,SPECIALIST SUPPLIES AND MATERIALS
Cambridgeshire County Council,05/04/2021,-276.00,MICK GEORGE,CONSTRUCTION MATERIALS NOT ELSEWHERE CLASSIFIED,Targeted Support Service - South,EH East Cambridgeshire District,PROFESSIONAL FEES AND HIRED SERVICES
Cambridgeshire County Council,05/04/2021,5.18,AWS EMEA,BUSINESS SERVICES-NOT ELSEWHERE CLASSIFIED,IT & Digital Service,Business & Digital Systems,COMPUTER SOFTWARE - PURCHASE
Cambridgeshire County Council,05/04/2021,5.99,DISNEY PLUS,DIGITAL GOODS AUDIOVISUAL MEDIA,Fostering & Supervised Contact Services,Head of Fostering & Supervised Contact,
Cambridgeshire County Council,05/04/2021,6.34,FASTHOSTS INTERNET,COMPUTER NETWORK/INFORMATION SERVICES,ICT Service (Education),ICT Service Systems Development,
Cambridgeshire County Council,05/04/2021,9.68,AWS EMEA,BUSINESS SERVICES-NOT ELSEWHERE CLASSIFIED,ICT Service (Education),ICT Service Systems Development,
Cambridgeshire County Council,05/04/2021,10.99,AMZNMKTPLACE,MISCELLANEOUS AND SPECIALTY RETAIL STORES,Children's Disability Service,Head of RSS,CATERING EQUIPMENT-PURCHASES
Cambridgeshire County Council,05/04/2021,16.58,AMZNMKTPLACE AMAZON.CO,MISCELLANEOUS AND SPECIALTY RETAIL STORES,Children's Disability Service,Head of RSS,CLEANING AND DOMESTIC SUPPLIES
Cambridgeshire County Council,05/04/2021,17.95,SAINSBURYS 0417,"GROCERY STORES, SUPERMARKETS",Changing Futures & Projects,Housing First,OTHER SERVICE USER SUPPORT
Cambridgeshire County Council,05/04/2021,19.37,AMAZON.CO.UK MU6YA8IG4,DIRECT MARKETING-OTHER DIRECT MARKETERS/NOT ELSEW.,Children's Disability Service,Head of RSS,CATERING PROVISIONS
Cambridgeshire County Council,05/04/2021,27.99,AMZNMKTPLACE,MISCELLANEOUS AND SPECIALTY RETAIL STORES,Corporate Parenting,North Child Looked After Team 1,LEAVING CARE GRANTS
Cambridgeshire County Council,05/04/2021,30.00,PREMIER INN,PREMIER INN,Professional Development Centres,Professional Development Centre Services,
Cambridgeshire County Council,05/04/2021,37.63,AMAZON.CO.UK MU5XX87U4,DIRECT MARKETING-OTHER DIRECT MARKETERS/NOT ELSEW.,Early Years Service,EY Central Costs,
Cambridgeshire County Council,05/04/2021,43.02,TESCO STORE 2694,"GROCERY STORES, SUPERMARKETS",LD - In House Provider Services,6 St Lukes Close (Respite),
Cambridgeshire County Council,05/04/2021,44.89,INDEED TEL+35312545907,BUSINESS SERVICES-NOT ELSEWHERE CLASSIFIED,LD - In House Provider Services,Victoria  Lodge,PROFESSIONAL FEES AND HIRED SERVICES
Cambridgeshire County Council,05/04/2021,53.96,NAMESCO,COMPUTER NETWORK/INFORMATION SERVICES,IT & Digital Service,Business & Digital Systems,
Cambridgeshire County Council,05/04/2021,66.18,ETSY.COM - MULTIPLE SH,ACCESSORY AND APPAREL STORES-MISCELLANEOUS,Early Years Service,Trumpington Park Early Years,EDUCATIONAL MATERIALS
Cambridgeshire County Council,05/04/2021,120.00,LINKEDIN 6276368803,DIRECT MARKETING-CONTINUITY/SUBSCRIPTION MERCHANTS,Natural and Historic Environment,Flood Team,RECRUITMENT ADVERTISING
Cambridgeshire County Council,06/04/2021,1.40,TESCO STORES 2228,"GROCERY STORES, SUPERMARKETS",Children's Disability Service,Head of RSS,CLEANING AND DOMESTIC SUPPLIES
Cambridgeshire County Council,06/04/2021,3.40,TESCO STORES 3009,"GROCERY STORES, SUPERMARKETS",Early Years Service,Trumpington Park Early Years,GENERAL OFFICE EXPENSES & STATIONERY
Cambridgeshire County Council,06/04/2021,7.99,AMAZON PRIME MU1JO1RV4,DIRECT MARKETING-CONTINUITY/SUBSCRIPTION MERCHANTS,Children's Disability Service,Head of RSS,SUBSCRIPTIONS
Cambridgeshire County Council,06/04/2021,9.30,AMZNMKTPLACE AMAZON.CO,MISCELLANEOUS AND SPECIALTY RETAIL STORES,Children's Disability Service,Head of RSS,
Cambridgeshire County Council,06/04/2021,10.00,BRITISH GAS ONLINE,"UTLTS-ELCTRC, GAS, HEATING OIL, SANITARY, WATER",Changing Futures & Projects,Housing First,OTHER SERVICE USER SUPPORT
Cambridgeshire County Council,06/04/2021,10.00,BRITISH GAS ONLINE,"UTLTS-ELCTRC, GAS, HEATING OIL, SANITARY, WATER",Changing Futures & Projects,Housing First,OTHER SERVICE USER SUPPORT
Cambridgeshire County Council,06/04/2021,50.00,PAYPAL  AMANDAJANEC EB,MISCELLANEOUS AND SPECIALTY RETAIL STORES,Changing Futures & Projects,Housing First,OTHER SERVICE USER SUPPORT
Cambridgeshire County Council,06/04/2021,58.08,TESCO STORES 2228,"GROCERY STORES, SUPERMARKETS",Children's Disability Service,Head of RSS,CATERING PROVISIONS
Cambridgeshire County Council,06/04/2021,162.21,TESCO STORES 2228,"GROCERY STORES, SUPERMARKETS",Children's Disability Service,Head of RSS,
Cambridgeshire County Council,07/04/2021,-83.76,WWW.CHRONOS.LTD.UK,HARDWARE STORES,Outdoor Education (includes Grafham Water),Grafham Water Centre,
Cambridgeshire County Council,07/04/2021,-33.00,PETERBOROUGH DIRECT,GOVERNMENT SERVICES-NOT ELSEWHERE CLASSIFIED,Family Safeguarding East,Fenland Children's Team 2,
Cambridgeshire County Council,07/04/2021,-10.00,PAYPAL  AMANDAJANEC EB,MISCELLANEOUS AND SPECIALTY RETAIL STORES,Changing Futures & Projects,Housing First,OVERTIME
Cambridgeshire County Council,07/04/2021,-2.75,AMZNMKTPLACE AMAZON.CO,MISCELLANEOUS AND SPECIALTY RETAIL STORES,Children's Disability Service,Head of RSS,
Cambridgeshire County Council,07/04/2021,-0.50,AMAZON PRIME,DIRECT MARKETING-CONTINUITY/SUBSCRIPTION MERCHANTS,Safeguarding and Quality Assurance,Childrens Participation,SPECIALIST EQUIPMENT FOR SERVICE DELIV
Cambridgeshire County Council,07/04/2021,5.06,AMAZON.CO.UK MU5RV6Y44,DIRECT MARKETING-OTHER DIRECT MARKETERS/NOT ELSEW.,Children's Disability Service,Head of RSS,
Cambridgeshire County Council,07/04/2021,7.42,AMAZON.CO.UK MU5RN0YR4,DIRECT MARKETING-OTHER DIRECT MARKETERS/NOT ELSEW.,Children's Disability Service,Head of RSS,
Cambridgeshire County Council,07/04/2021,8.50,AMAZON.CO.UK MU2TS7YP4,DIRECT MARKETING-OTHER DIRECT MARKETERS/NOT ELSEW.,Children's Disability Service,Head of RSS,
Cambridgeshire County Council,07/04/2021,9.35,AMAZON.CO.UK M47FK9C94,DIRECT MARKETING-OTHER DIRECT MARKETERS/NOT ELSEW.,Children's Disability Service,Head of RSS,CATERING PROVISIONS
Cambridgeshire County Council,07/04/2021,10.00,TESCO STORES 2228,"GROCERY STORES, SUPERMARKETS",Changing Futures & Projects,Housing First,
Cambridgeshire County Council,07/04/2021,10.99,AMZNMKTPLACE,MISCELLANEOUS AND SPECIALTY RETAIL STORES,ICT Service (Education),ICT Service Systems Development,
Cambridgeshire County Council,07/04/2021,11.32,MCDONALDS,"EATING PLACES, RESTAURANTS",Changing Futures & Projects,Counting Every Adult,OTHER SERVICE USER SUPPORT
Cambridgeshire County Council,07/04/2021,11.99,AMZNMKTPLACE,MISCELLANEOUS AND SPECIALTY RETAIL STORES,ICT Service (Education),ICT Service Systems Development,
Cambridgeshire County Council,07/04/2021,11.99,AMZNMKTPLACE,MISCELLANEOUS AND SPECIALTY RETAIL STORES,ICT Service (Education),ICT Service Systems Development,
Cambridgeshire County Council,07/04/2021,11.99,AMZNMKTPLACE,MISCELLANEOUS AND SPECIALTY RETAIL STORES,ICT Service (Education),ICT Service Systems Development,
Cambridgeshire County Council,07/04/2021,12.32,AMAZON.CO.UK M40UG7CV4,DIRECT MARKETING-OTHER DIRECT MARKETERS/NOT ELSEW.,Children's Disability Service,Head of RSS,CATERING PROVISIONS
Cambridgeshire County Council,07/04/2021,13.84,POST OFFICE COUNTER,POSTAL SERVICES-GOVERNMENT ONLY,Coroners,Coroners General,POSTAGE & CARRIAGE
Cambridgeshire County Council,07/04/2021,13.88,AMZNMKTPLACE AMAZON.CO,MISCELLANEOUS AND SPECIALTY RETAIL STORES,Corporate Parenting,North Child Looked After Team 1,BOOKS AND MULTIMEDIA SUPPLIES
Cambridgeshire County Council,07/04/2021,13.95,ARGOS LTD,DISCOUNT STORES,Children's Disability Service,Head of RSS,RESIDENTIAL CARE
Cambridgeshire County Council,07/04/2021,13.99,AMZNMKTPLACE,MISCELLANEOUS AND SPECIALTY RETAIL STORES,Children's Disability Service,Head of RSS,OTHER SERVICE USER SUPPORT
Cambridgeshire County Council,07/04/2021,14.18,AMAZON.CO.UK M47FF7CB4,DIRECT MARKETING-OTHER DIRECT MARKETERS/NOT ELSEW.,Children's Disability Service,Head of RSS,CLEANING AND DOMESTIC SUPPLIES
Cambridgeshire County Council,07/04/2021,15.30,AMAZON.CO.UK MU6GE9Y64,DIRECT MARKETING-OTHER DIRECT MARKETERS/NOT ELSEW.,Children's Disability Service,Head of RSS,
Cambridgeshire County Council,07/04/2021,20.00,AMAZON.CO.UK MU2532Y34,DIRECT MARKETING-OTHER DIRECT MARKETERS/NOT ELSEW.,Safeguarding and Quality Assurance,Childrens Participation,SPECIALIST EQUIPMENT FOR SERVICE DELIV
Cambridgeshire County Council,07/04/2021,21.07,B&M 280 - WISBECH,MISCELLANEOUS GENERAL MERCHANDISE,"Communities, Employment & Skills",YS - DfE Essential Skills for Life,
Cambridgeshire County Council,07/04/2021,21.78,AMZNMKTPLACE,MISCELLANEOUS AND SPECIALTY RETAIL STORES,Children's Disability Service,Head of RSS,
Cambridgeshire County Council,07/04/2021,29.83,AMZNMKTPLACE,MISCELLANEOUS AND SPECIALTY RETAIL STORES,ICT Service (Education),ICT Service Systems Development,
Cambridgeshire County Council,07/04/2021,29.98,AMZNMKTPLACE,MISCELLANEOUS AND SPECIALTY RETAIL STORES,Children's Disability Service,Head of RSS,OTHER SERVICE USER SUPPORT
Cambridgeshire County Council,07/04/2021,31.98,AMAZON.CO.UK MU6OE7YC4,DIRECT MARKETING-OTHER DIRECT MARKETERS/NOT ELSEW.,Children's Disability Service,Head of RSS,
Cambridgeshire County Council,07/04/2021,49.99,HOLIDAY INNS,HOLIDAY INNS,"Children, Education and Families Directorate","Children, Education and Families Directorate",
Cambridgeshire County Council,07/04/2021,50.00,WWW.VOUCHEREXPRESS.CO.,"GIFT, CARD, NOVELTY AND SOUVENIR SHOPS",Corporate Parenting,North Care Leaving Team 1,GRANTS&SUPPORT FOR OTHER SERVICE USERS
Cambridgeshire County Council,07/04/2021,56.75,WWW.THEWORKS.CO.UK,DISCOUNT STORES,Corporate Parenting,North Child Looked After Team 1,BOOKS AND MULTIMEDIA SUPPLIES
Cambridgeshire County Council,07/04/2021,60.00,AMAZON.CO.UK MU15G5Y84,DIRECT MARKETING-OTHER DIRECT MARKETERS/NOT ELSEW.,Safeguarding and Quality Assurance,Childrens Participation,SPECIALIST EQUIPMENT FOR SERVICE DELIV
Cambridgeshire County Council,07/04/2021,64.37,MAILCHIMP,DIGITAL GOODS MULTI CATEGORY,Cambridgeshire Music,Cambs Music Holding Account,COMP SOFTWARE-ANNUAL LICENCE AGREEMENT
Cambridgeshire County Council,07/04/2021,65.32,AMZNMKTPLACE AMAZON.CO,MISCELLANEOUS AND SPECIALTY RETAIL STORES,Children's Disability Service,Head of RSS,CLOTHING / UNIFORM
Cambridgeshire County Council,07/04/2021,71.65,TESCO STORE 2694,"GROCERY STORES, SUPERMARKETS",LD - In House Provider Services,6 St Lukes Close (Respite),
Cambridgeshire County Council,07/04/2021,122.24,WM MORRISONS STORE PIC,"GROCERY STORES, SUPERMARKETS",Children's Disability Service,Head of RSS,CATERING PROVISIONS
Cambridgeshire County Council,07/04/2021,125.00,WWW.BSIGROUP.COM,BUSINESS SERVICES-NOT ELSEWHERE CLASSIFIED,"Property, Facilities Management and Building Compliance",Shire Hall Area,BUILDING REPAIR AND MAINTENANCE
Cambridgeshire County Council,08/04/2021,-33.00,PETERBOROUGH DIRECT,GOVERNMENT SERVICES-NOT ELSEWHERE CLASSIFIED,Family Safeguarding East,Fenland Children's Team 2,
Cambridgeshire County Council,08/04/2021,5.00,HALFORDS 0995,BICYCLE SHOPS-SALES AND SERVICE,Changing Futures & Projects,Housing First,
Cambridgeshire County Council,08/04/2021,6.40,POST OFFICE COUNTER,POSTAL SERVICES-GOVERNMENT ONLY,Changing Futures & Projects,Housing First,
Cambridgeshire County Council,08/04/2021,7.99,AMAZON PRIME M43AT6OF4,DIRECT MARKETING-CONTINUITY/SUBSCRIPTION MERCHANTS,"Communities, Employment & Skills",YS - DfE Essential Skills for Life,
Cambridgeshire County Council,08/04/2021,13.59,AMZNMKTPLACE AMAZON.CO,MISCELLANEOUS AND SPECIALTY RETAIL STORES,Outdoor Education (includes Grafham Water),Grafham Water Centre,EDUCATIONAL MATERIALS
Cambridgeshire County Council,08/04/2021,16.99,TESCO ONLINE,MISCELLANEOUS AND SPECIALTY RETAIL STORES,Changing Futures & Projects,Housing First,OTHER SERVICE USER SUPPORT
Cambridgeshire County Council,08/04/2021,21.88,SAINSBURYS 2007,"GROCERY STORES, SUPERMARKETS",LD - In House Provider Services,6 St Lukes Close (Respite),CATERING PROVISIONS
Cambridgeshire County Council,08/04/2021,21.89,AMZNMKTPLACE AMAZON.CO,MISCELLANEOUS AND SPECIALTY RETAIL STORES,Outdoor Education (includes Grafham Water),Grafham Water Centre,EDUCATIONAL MATERIALS
Cambridgeshire County Council,08/04/2021,21.99,AMZNMKTPLACE AMAZON.CO,MISCELLANEOUS AND SPECIALTY RETAIL STORES,ICT Service (Education),ICT Service Systems Development,
Cambridgeshire County Council,08/04/2021,21.99,AMZNMKTPLACE AMAZON.CO,MISCELLANEOUS AND SPECIALTY RETAIL STORES,ICT Service (Education),ICT Service Systems Development,
Cambridgeshire County Council,08/04/2021,25.00,APPLE.COM/UK,ELECTRONIC SALES,ICT Service (Education),ICT Service Systems Development,
Cambridgeshire County Council,08/04/2021,28.89,AMZNMKTPLACE,MISCELLANEOUS AND SPECIALTY RETAIL STORES,Changing Futures & Projects,Counting Every Adult,
Cambridgeshire County Council,08/04/2021,28.99,AMZNMKTPLACE,MISCELLANEOUS AND SPECIALTY RETAIL STORES,ICT Service (Education),ICT Service Systems Development,
Cambridgeshire County Council,08/04/2021,28.99,AMZNMKTPLACE,MISCELLANEOUS AND SPECIALTY RETAIL STORES,ICT Service (Education),ICT Service Systems Development,
Cambridgeshire County Council,08/04/2021,28.99,AMZNMKTPLACE AMAZON.CO,MISCELLANEOUS AND SPECIALTY RETAIL STORES,ICT Service (Education),ICT Service Systems Development,
Cambridgeshire County Council,08/04/2021,29.83,AMZNMKTPLACE AMAZON.CO,MISCELLANEOUS AND SPECIALTY RETAIL STORES,ICT Service (Education),ICT Service Systems Development,
Cambridgeshire County Council,08/04/2021,29.83,AMZNMKTPLACE AMAZON.CO,MISCELLANEOUS AND SPECIALTY RETAIL STORES,ICT Service (Education),ICT Service Systems Development,
Cambridgeshire County Council,08/04/2021,33.00,CAMBRIDGE REGISTER,"COLLEGES, UNIV, PRO SCHOOLS, JUNIOR COLLEGES",Family Safeguarding East,Family Safeguarding East & South Cambs and Cambridge,
Cambridgeshire County Council,08/04/2021,35.21,CAMBRIDGE CITY COUNCIL,GOVERNMENT SERVICES-NOT ELSEWHERE CLASSIFIED,Family Safeguarding East,Family Safeguarding East & South Cambs and Cambridge,LIVING SUPPORT GRANTS
Cambridgeshire County Council,08/04/2021,35.51,AMZNMKTPLACE AMAZON.CO,MISCELLANEOUS AND SPECIALTY RETAIL STORES,ICT Service (Education),ICT Service Systems Development,
Cambridgeshire County Council,08/04/2021,37.60,POST OFFICE COUNTER,POSTAL SERVICES-GOVERNMENT ONLY,Cambridgeshire Skills,Cambridgeshire Skills - March Community Centre - Learning,STAFF HEALTH & WELFARE COSTS
Cambridgeshire County Council,08/04/2021,53.74,AMZNMKTPLACE,MISCELLANEOUS AND SPECIALTY RETAIL STORES,LD - In House Provider Services,6 St Lukes Close (Respite),
Cambridgeshire County Council,08/04/2021,80.88,AMZNMKTPLACE AMAZON.CO,MISCELLANEOUS AND SPECIALTY RETAIL STORES,Outdoor Education (includes Grafham Water),Grafham Water Centre,EDUCATIONAL MATERIALS
Cambridgeshire County Council,08/04/2021,99.00,SP   PERCUSSIONPLUS,COMPUTER SOFTWARE STORES,Performance & Strategic Development,Adults Central Business Support,
Cambridgeshire County Council,08/04/2021,108.59,CAMBRIDGE CITY COUNCIL,GOVERNMENT SERVICES-NOT ELSEWHERE CLASSIFIED,Family Safeguarding East,Family Safeguarding East & South Cambs and Cambridge,LIVING SUPPORT GRANTS
Cambridgeshire County Council,08/04/2021,120.00,CAMBRIDGE NETWORK,"ORGANIZATIONS, MEMBERSHIP-NOT ELSEWHERE CLASSIFIED",GCP,GCP - Programme Central Co-ordination,RECRUITMENT ADVERTISING
Cambridgeshire County Council,08/04/2021,144.00,TRAINER COURSES LTD,SCHOOLS & EDUCATIONAL SVC-NOT ELSEWHERE CLASSIFIED,Children's Disability Service,Community Support Service ECF,STAFF TRAINING & DEVELOPMENT
Cambridgeshire County Council,08/04/2021,161.48,AMZNMKTPLACE AMAZON.CO,MISCELLANEOUS AND SPECIALTY RETAIL STORES,Public Library Services,Support - Business Support,GENERAL OFFICE EXPENSES & STATIONERY
Cambridgeshire County Council,08/04/2021,250.00,CAMBRIDGE CITY COUNCIL,GOVERNMENT SERVICES-NOT ELSEWHERE CLASSIFIED,Family Safeguarding East,Family Safeguarding East & South Cambs and Cambridge,LIVING SUPPORT GRANTS
Cambridgeshire County Council,08/04/2021,250.00,CAMBRIDGE CITY COUNCIL,GOVERNMENT SERVICES-NOT ELSEWHERE CLASSIFIED,Family Safeguarding East,Family Safeguarding East & South Cambs and Cambridge,LIVING SUPPORT GRANTS
Cambridgeshire County Council,08/04/2021,700.00,FACEBK  MS9XFZNU52,ADVERTISING SERVICES,Communication and Information,Communication and Information,
Cambridgeshire County Council,09/04/2021,-169.00,CURRYS ONLINE,ELECTRONIC SALES,Early Years Service,Oasis Nursery,EDUCATIONAL EQUIPMENT
Cambridgeshire County Council,09/04/2021,-30.00,WWW.FCO.GOV.UK,GOVERNMENT SERVICES-NOT ELSEWHERE CLASSIFIED,Family Safeguarding East,Fenland Children's Team 2,
Cambridgeshire County Council,09/04/2021,-24.99,CURRYS ONLINE,ELECTRONIC SALES,Early Years Service,Oasis Nursery,EDUCATIONAL EQUIPMENT
Cambridgeshire County Council,09/04/2021,2.89,AMZNMKTPLACE,MISCELLANEOUS AND SPECIALTY RETAIL STORES,Schools,Pilgrim Pathways School,
Cambridgeshire County Council,09/04/2021,5.70,B&M 100 - HUNTINGDON,MISCELLANEOUS GENERAL MERCHANDISE,LD - In House Provider Services,6 St Lukes Close (Respite),
Cambridgeshire County Council,09/04/2021,6.22,MCDONALDS,"EATING PLACES, RESTAURANTS",Changing Futures & Projects,Housing First,OTHER SERVICE USER SUPPORT
Cambridgeshire County Council,09/04/2021,6.90,SCREWFIX DIRECT,"BUILDING MATERIALS, LUMBER STORES","Property, Facilities Management and Building Compliance",Shire Hall Area,BUILDING REPAIR AND MAINTENANCE
Cambridgeshire County Council,09/04/2021,7.65,AMAZON.CO.UK M439N4Z74,DIRECT MARKETING-OTHER DIRECT MARKETERS/NOT ELSEW.,Children's Disability Service,Head of RSS,CATERING PROVISIONS
Cambridgeshire County Council,09/04/2021,8.49,AMAZON.CO.UK M49SX1LK4,DIRECT MARKETING-OTHER DIRECT MARKETERS/NOT ELSEW.,Children's Disability Service,Head of RSS,CLEANING AND DOMESTIC SUPPLIES
Cambridgeshire County Council,09/04/2021,8.99,NETFLIX.COM,"CABLE, SATELLITE, OTHER PAY TELEVISION, RADIO SVCS",Children's Disability Service,Head of RSS,
Cambridgeshire County Council,09/04/2021,9.35,AMAZON.CO.UK M46645Z14,DIRECT MARKETING-OTHER DIRECT MARKETERS/NOT ELSEW.,Children's Disability Service,Head of RSS,CLEANING AND DOMESTIC SUPPLIES
Cambridgeshire County Council,09/04/2021,10.00,HIGHSTREET VOUCHERS,"ASSOCIATIONS-CIVIC, SOCIAL, AND FRATERNAL",Corporate Parenting,North Child Looked After Team 1,SPECIALIST EQUIPMENT FOR SERVICE DELIV
Cambridgeshire County Council,09/04/2021,12.70,AMAZON.CO.UK M48LZ2Z44,DIRECT MARKETING-OTHER DIRECT MARKETERS/NOT ELSEW.,Children's Disability Service,Head of RSS,CLEANING AND DOMESTIC SUPPLIES
Cambridgeshire County Council,09/04/2021,14.00,GEN REGISTER OFFICE,GOVERNMENT SERVICES-NOT ELSEWHERE CLASSIFIED,Changing Futures & Projects,Housing First,OTHER SERVICE USER SUPPORT
Cambridgeshire County Council,09/04/2021,16.94,AMAZON.CO.UK M406K3Z14,DIRECT MARKETING-OTHER DIRECT MARKETERS/NOT ELSEW.,Children's Disability Service,Head of RSS,CLEANING AND DOMESTIC SUPPLIES
Cambridgeshire County Council,09/04/2021,16.95,LIDL GB PETERBOROUGH,"GROCERY STORES, SUPERMARKETS",Changing Futures & Projects,Housing First,OTHER SERVICE USER SUPPORT
Cambridgeshire County Council,09/04/2021,17.50,AMAZON.CO.UK M45XK2434,DIRECT MARKETING-OTHER DIRECT MARKETERS/NOT ELSEW.,Children's Disability Service,Head of RSS,CLEANING AND DOMESTIC SUPPLIES
Cambridgeshire County Council,09/04/2021,20.00,HIGHSTREET VOUCHERS,"ASSOCIATIONS-CIVIC, SOCIAL, AND FRATERNAL",Corporate Parenting,North Child Looked After Team 1,SPECIALIST EQUIPMENT FOR SERVICE DELIV
Cambridgeshire County Council,09/04/2021,22.99,AMZNMKTPLACE AMAZON.CO,MISCELLANEOUS AND SPECIALTY RETAIL STORES,Cambridgeshire Music,Cambs Music Holding Account,
Cambridgeshire County Council,09/04/2021,27.30,AMZNMKTPLACE,MISCELLANEOUS AND SPECIALTY RETAIL STORES,Schools,Pilgrim Pathways School,
Cambridgeshire County Council,09/04/2021,28.99,AMZNMKTPLACE,MISCELLANEOUS AND SPECIALTY RETAIL STORES,ICT Service (Education),ICT Service Systems Development,
Cambridgeshire County Council,09/04/2021,28.99,AMZNMKTPLACE AMAZON.CO,MISCELLANEOUS AND SPECIALTY RETAIL STORES,ICT Service (Education),ICT Service Systems Development,
Cambridgeshire County Council,09/04/2021,28.99,AMZNMKTPLACE AMAZON.CO,MISCELLANEOUS AND SPECIALTY RETAIL STORES,ICT Service (Education),ICT Service Systems Development,
Cambridgeshire County Council,09/04/2021,28.99,AMZNMKTPLACE,MISCELLANEOUS AND SPECIALTY RETAIL STORES,ICT Service (Education),ICT Service Systems Development,
Cambridgeshire County Council,09/04/2021,30.66,AMZNMKTPLACE,MISCELLANEOUS AND SPECIALTY RETAIL STORES,Schools,Pilgrim Pathways School,
Cambridgeshire County Council,09/04/2021,31.02,WWW.EASYSPACE.COM,COMPUTER NETWORK/INFORMATION SERVICES,Planning and Sustainable Growth,Travel Plan +,GIFTS
Cambridgeshire County Council,09/04/2021,35.00,WWW.FCO.GOV.UK,GOVERNMENT SERVICES-NOT ELSEWHERE CLASSIFIED,Family Safeguarding East,Fenland Children's Team 2,
Cambridgeshire County Council,09/04/2021,36.31,ALDI 84 776,"GROCERY STORES, SUPERMARKETS",Early Years Service,Trumpington Park Early Years,EDUCATIONAL MATERIALS
Cambridgeshire County Council,09/04/2021,36.88,POST OFFICE COUNTER,POSTAL SERVICES-GOVERNMENT ONLY,School Improvement Service,"Education, Health, Safety and Wellbeing - Outdoor Education",POSTAGE & CARRIAGE
Cambridgeshire County Council,09/04/2021,69.00,WWW.THEWORKS.CO.UK,DISCOUNT STORES,Cambridgeshire Skills,Cambridgeshire Skills - March Community Centre - Learning,EDUCATIONAL MATERIALS
Cambridgeshire County Council,09/04/2021,70.00,TESCO PAY AT PUMP 3896,"FUEL DISPENSER, AUTOMATED",Park & Ride,Park and Ride Admin,VEHICLE FUEL
Cambridgeshire County Council,09/04/2021,74.30,TESCO STORE 2555,"GROCERY STORES, SUPERMARKETS",LD - In House Provider Services,40 & 44 Russell Street,CATERING PROVISIONS
Cambridgeshire County Council,09/04/2021,77.19,TRAINLINE,PASSENGER RAILWAYS,Corporate Parenting,Separated Migrant Children > 18,VEHICLE AND PLANT HIRE
Cambridgeshire County Council,09/04/2021,94.39,WM MORRISONS STORE PIC,"GROCERY STORES, SUPERMARKETS",Children's Disability Service,Head of RSS,CATERING PROVISIONS
Cambridgeshire County Council,09/04/2021,250.00,WWW.VOUCHEREXPRESS.CO.,"GIFT, CARD, NOVELTY AND SOUVENIR SHOPS",Corporate Parenting,North Child Looked After Team 1,LEAVING CARE GRANTS
Cambridgeshire County Council,09/04/2021,329.94,AMAZON.CO.UK M45DB3LS4,DIRECT MARKETING-OTHER DIRECT MARKETERS/NOT ELSEW.,Children's Disability Service,Head of RSS,COMPUTER HARDWARE - PURCHASE
Cambridgeshire County Council,12/04/2021,-375.00,WWW.CIPFA.ORG.UK/PFMCO,"ORGANIZATIONS, MEMBERSHIP-NOT ELSEWHERE CLASSIFIED",Strategic Assets,Estates,STAFF TRAINING & DEVELOPMENT
Cambridgeshire County Council,12/04/2021,-30.00,WWW.FCO.GOV.UK,GOVERNMENT SERVICES-NOT ELSEWHERE CLASSIFIED,Family Safeguarding East,Fenland Children's Team 2,
Cambridgeshire County Council,12/04/2021,0.80,ALDI 8 776,"GROCERY STORES, SUPERMARKETS",Changing Futures & Projects,Housing First,OTHER SERVICE USER SUPPORT
Cambridgeshire County Council,12/04/2021,2.31,FACEBK N98A33F2V2,ADVERTISING SERVICES,Fostering & Supervised Contact Services,Fostering Support and Supervision,RECRUITMENT ADVERTISING
Cambridgeshire County Council,12/04/2021,4.15,AMZNMKTPLACE AMAZON.CO,MISCELLANEOUS AND SPECIALTY RETAIL STORES,Children's Disability Service,Head of RSS,FOOD PACKAGING
Cambridgeshire County Council,12/04/2021,4.65,TESCO STORE 2065,"GROCERY STORES, SUPERMARKETS",LD - In House Provider Services,6 St Lukes Close (Respite),SPECIALIST SUPPLIES AND MATERIALS
Cambridgeshire County Council,12/04/2021,6.57,POST OFFICE COUNTER,POSTAL SERVICES-GOVERNMENT ONLY,Coroners,Coroners General,POSTAGE & CARRIAGE
Cambridgeshire County Council,12/04/2021,8.27,POST OFFICE COUNTER,POSTAL SERVICES-GOVERNMENT ONLY,SEND Specialist Services,Head of SEND Services (0-25),GENERAL OFFICE EXPENSES & STATIONERY
Cambridgeshire County Council,12/04/2021,8.50,AMAZON.CO.UK M47AE2NB4,DIRECT MARKETING-OTHER DIRECT MARKETERS/NOT ELSEW.,Children's Disability Service,Head of RSS,CLEANING AND DOMESTIC SUPPLIES
Cambridgeshire County Council,12/04/2021,8.99,FASTHOSTS INTERNET,COMPUTER NETWORK/INFORMATION SERVICES,ICT Service (Education),ICT Service Systems Development,
Cambridgeshire County Council,12/04/2021,10.00,APPLE.COM/UK,ELECTRONIC SALES,ICT Service (Education),ICT Service Systems Development,
Cambridgeshire County Council,12/04/2021,10.00,HIGHSTREET VOUCHERS,"ASSOCIATIONS-CIVIC, SOCIAL, AND FRATERNAL",Corporate Parenting,North Care Leaving Team 1,LEAVING CARE GRANTS
Cambridgeshire County Council,12/04/2021,10.00,ARGOS LTD,DISCOUNT STORES,Changing Futures & Projects,Counting Every Adult,
Cambridgeshire County Council,12/04/2021,11.22,POST OFFICE COUNTER,POSTAL SERVICES-GOVERNMENT ONLY,Registration & Citizenship Services,Registrars General,POSTAGE & CARRIAGE
Cambridgeshire County Council,12/04/2021,12.85,AMAZON.CO.UK M48AY8N34,DIRECT MARKETING-OTHER DIRECT MARKETERS/NOT ELSEW.,Children's Disability Service,Head of RSS,CATERING PROVISIONS
Cambridgeshire County Council,12/04/2021,14.25,SUMUP   CAFE BLUE SAGE,"EATING PLACES, RESTAURANTS",Changing Futures & Projects,Housing First,
Cambridgeshire County Council,12/04/2021,14.97,HELPTHEBEES,PET SHOPS - PET FOODS AND SUPPLIES,Cambridgeshire Music,Cambs Music Holding Account,
Cambridgeshire County Council,12/04/2021,15.00,CAM CAB,LIMOUSINES AND TAXICABS,Changing Futures & Projects,Housing First,
Cambridgeshire County Council,12/04/2021,18.59,AMAZON.CO.UK M46A60NK4,DIRECT MARKETING-OTHER DIRECT MARKETERS/NOT ELSEW.,Children's Disability Service,Head of RSS,CLEANING AND DOMESTIC SUPPLIES
Cambridgeshire County Council,12/04/2021,18.69,AMAZON.CO.UK M47DP3N14,DIRECT MARKETING-OTHER DIRECT MARKETERS/NOT ELSEW.,Children's Disability Service,Head of RSS,LAUNDRY & CLOTHING REPAIR
Cambridgeshire County Council,12/04/2021,20.00,ASDA STORES,"GROCERY STORES, SUPERMARKETS",Changing Futures & Projects,Counting Every Adult,OTHER SERVICE USER SUPPORT
Cambridgeshire County Council,12/04/2021,20.00,HIGHSTREET VOUCHERS,"ASSOCIATIONS-CIVIC, SOCIAL, AND FRATERNAL",Corporate Parenting,North Care Leaving Team 1,LEAVING CARE GRANTS
Cambridgeshire County Council,12/04/2021,20.97,AMZNMKTPLACE,MISCELLANEOUS AND SPECIALTY RETAIL STORES,Children's Disability Service,Head of RSS,SPECIALIST SUPPLIES AND MATERIALS
Cambridgeshire County Council,12/04/2021,22.95,AMAZON.CO.UK M40AA3NO4,DIRECT MARKETING-OTHER DIRECT MARKETERS/NOT ELSEW.,Children's Disability Service,Head of RSS,CATERING PROVISIONS
Cambridgeshire County Council,12/04/2021,25.50,AMZNMKTPLACE AMAZON.CO,MISCELLANEOUS AND SPECIALTY RETAIL STORES,Children's Disability Service,Head of RSS,BOOKS AND MULTIMEDIA SUPPLIES
Cambridgeshire County Council,12/04/2021,26.00,EAST CAMBS DC,GOVERNMENT SERVICES-NOT ELSEWHERE CLASSIFIED,Integrated Front Door,East Cambs Assessment Team,OTHER FUNDING CONTRIBUTIONS
Cambridgeshire County Council,12/04/2021,35.00,WWW.FCO.GOV.UK,GOVERNMENT SERVICES-NOT ELSEWHERE CLASSIFIED,Family Safeguarding East,Fenland Children's Team 2,
Cambridgeshire County Council,12/04/2021,46.57,TESCO STORE 2694,"GROCERY STORES, SUPERMARKETS",LD - In House Provider Services,6 St Lukes Close (Respite),
Cambridgeshire County Council,12/04/2021,50.00,APPLE.COM/UK,ELECTRONIC SALES,ICT Service (Education),ICT Service Systems Development,
Cambridgeshire County Council,12/04/2021,52.00,EAST CAMBS DC,GOVERNMENT SERVICES-NOT ELSEWHERE CLASSIFIED,Integrated Front Door,East Cambs Assessment Team,OTHER FUNDING CONTRIBUTIONS
Cambridgeshire County Council,12/04/2021,65.43,POST OFFICE COUNTER,POSTAL SERVICES-GOVERNMENT ONLY,Registration & Citizenship Services,Registrars General,POSTAGE & CARRIAGE
Cambridgeshire County Council,12/04/2021,70.00,WWW.VOUCHEREXPRESS.CO.,"GIFT, CARD, NOVELTY AND SOUVENIR SHOPS",Corporate Parenting,North Care Leaving Team 1,LEAVING CARE GRANTS
Cambridgeshire County Council,12/04/2021,85.00,ROYAL MAIL GROUP,POSTAL SERVICES-GOVERNMENT ONLY,0-19 Organisation & Planning,Attendance and Behaviour,POSTAGE & CARRIAGE
Cambridgeshire County Council,12/04/2021,85.40,ASDA STORES,"GROCERY STORES, SUPERMARKETS",Changing Futures & Projects,Counting Every Adult,OTHER SERVICE USER SUPPORT
Cambridgeshire County Council,12/04/2021,89.00,AMAZON.CO.UK M43JB1374,DIRECT MARKETING-OTHER DIRECT MARKETERS/NOT ELSEW.,Targeted Support Service - South,EH South Cambridgeshire District,OTHER SERVICE USER SUPPORT
Cambridgeshire County Council,12/04/2021,117.80,TESCO GIFT CARD,"GROCERY STORES, SUPERMARKETS",Corporate Parenting,North Care Leaving Team 1,GRANTS&SUPPORT FOR OTHER SERVICE USERS
Cambridgeshire County Council,12/04/2021,121.36,WM MORRISONS STORE PIC,"GROCERY STORES, SUPERMARKETS",Children's Disability Service,Head of RSS,CATERING PROVISIONS
Cambridgeshire County Council,12/04/2021,148.95,ARGOS LTD,DISCOUNT STORES,Targeted Support Service - South,EH Child and Family Centre - Cambridge City,"FIXTURES, FITTINGS AND FURNISHINGS"
Cambridgeshire County Council,12/04/2021,178.20,TESCO STORE 2889,"GROCERY STORES, SUPERMARKETS",Changing Futures & Projects,Housing First,
Cambridgeshire County Council,12/04/2021,399.99,AMZNMKTPLACE AMAZON.CO,MISCELLANEOUS AND SPECIALTY RETAIL STORES,Family Safeguarding West,Family Safeguarding Hunts and Fenland,
Cambridgeshire County Council,13/04/2021,1.00,THE WORKS,DISCOUNT STORES,Changing Futures & Projects,Housing First,OTHER SERVICE USER SUPPORT
Cambridgeshire County Council,13/04/2021,3.00,HM LAND REGISTRY - ONL,GOVERNMENT SERVICES-NOT ELSEWHERE CLASSIFIED,Shared Services,Debt Team,DEBT RECOVERY COSTS
Cambridgeshire County Council,13/04/2021,3.00,HM LAND REGISTRY - ONL,GOVERNMENT SERVICES-NOT ELSEWHERE CLASSIFIED,Shared Services,Debt Team,DEBT RECOVERY COSTS
Cambridgeshire County Council,13/04/2021,4.85,POST OFFICE COUNTER,POSTAL SERVICES-GOVERNMENT ONLY,Cambridgeshire Skills,Cambridgeshire Skills - March Community Centre - Learning,
Cambridgeshire County Council,13/04/2021,7.39,POST OFFICE COUNTER,POSTAL SERVICES-GOVERNMENT ONLY,Coroners,Coroners General,POSTAGE & CARRIAGE
Cambridgeshire County Council,13/04/2021,10.00,PAYPAL  ALICERUGGLE,"ORGANIZATIONS, CHARITABLE AND SOCIAL SERVICES",Domestic Abuse and Sexual Violence Service,Domestic Violence Unit,
Cambridgeshire County Council,13/04/2021,10.00,HIGHSTREET VOUCHERS,"ASSOCIATIONS-CIVIC, SOCIAL, AND FRATERNAL",Corporate Parenting,North Care Leaving Team 1,LEAVING CARE GRANTS
Cambridgeshire County Council,13/04/2021,14.39,FASTHOSTS INTERNET,COMPUTER NETWORK/INFORMATION SERVICES,ICT Service (Education),ICT Service Systems Development,
Cambridgeshire County Council,13/04/2021,20.00,HIGHSTREET VOUCHERS,"ASSOCIATIONS-CIVIC, SOCIAL, AND FRATERNAL",Corporate Parenting,North Care Leaving Team 1,LEAVING CARE GRANTS
Cambridgeshire County Council,13/04/2021,25.60,TESCO STORE 2889,"GROCERY STORES, SUPERMARKETS",LD - In House Provider Services,Horizon,CATERING PROVISIONS
Cambridgeshire County Council,13/04/2021,32.25,POST OFFICE COUNTER,POSTAL SERVICES-GOVERNMENT ONLY,Chief Executive,Chief Executive's Office,POSTAGE & CARRIAGE
Cambridgeshire County Council,13/04/2021,33.96,AMZNMKTPLACE,MISCELLANEOUS AND SPECIALTY RETAIL STORES,Children's Disability Service,Head of RSS,CATERING PROVISIONS
Cambridgeshire County Council,13/04/2021,40.00,T C HARRISON FORD,"AUTO & TRUCK DLRS-SALES,SVC, REPRS,PRTS, & LEASING",Outdoor Education (includes Grafham Water),Grafham Water Centre,VEHICLE REPAIRS AND MAINTENANCE
Cambridgeshire County Council,13/04/2021,44.55,CARTRIDGESHOP.CO.UK,STATIONERY/OFFICE SUPPLIES/PRINTING & WRITING PAP.,Early Years Service,Trumpington Park Early Years,GENERAL OFFICE EXPENSES & STATIONERY
Cambridgeshire County Council,13/04/2021,45.99,AMZNMKTPLACE AMAZON.CO,MISCELLANEOUS AND SPECIALTY RETAIL STORES,LD - In House Provider Services,6 St Lukes Close (Respite),
Cambridgeshire County Council,13/04/2021,56.24,WM MORRISONS STORE PIC,"GROCERY STORES, SUPERMARKETS",Children's Disability Service,Head of RSS,CATERING PROVISIONS
Cambridgeshire County Council,13/04/2021,72.55,TESCO STORE 2555,"GROCERY STORES, SUPERMARKETS",Early Years Service,Trumpington Park Early Years,CATERING PROVISIONS
Cambridgeshire County Council,13/04/2021,74.17,TESCO STORES 2228,"GROCERY STORES, SUPERMARKETS",Children's Disability Service,Head of RSS,CATERING PROVISIONS
Cambridgeshire County Council,13/04/2021,100.00,HIGHSTREET VOUCHERS,"ASSOCIATIONS-CIVIC, SOCIAL, AND FRATERNAL",Corporate Parenting,North Care Leaving Team 1,LEAVING CARE GRANTS
Cambridgeshire County Council,13/04/2021,116.22,AMAZON.CO.UK M46048A84,DIRECT MARKETING-OTHER DIRECT MARKETERS/NOT ELSEW.,LD - In House Provider Services,40 & 44 Russell Street,PRINTING
Cambridgeshire County Council,13/04/2021,140.00,PAYPAL  ALICERUGGLE,"ORGANIZATIONS, CHARITABLE AND SOCIAL SERVICES",Domestic Abuse and Sexual Violence Service,Domestic Violence Unit,
Cambridgeshire County Council,13/04/2021,148.09,TESCO STORES 2228,"GROCERY STORES, SUPERMARKETS",Children's Disability Service,Head of RSS,CATERING PROVISIONS
Cambridgeshire County Council,13/04/2021,175.00,SPAR STORES,"GROCERY STORES, SUPERMARKETS",Targeted Support Service - South,EH South Cambridgeshire District,OTHER SERVICE USER SUPPORT
Cambridgeshire County Council,13/04/2021,374.00,TEJAYCEY BOARDING KENN,PET SHOPS - PET FOODS AND SUPPLIES,Performance & Strategic Development,Adults Central Business Support,NI
Cambridgeshire County Council,13/04/2021,700.00,FACEBK UM8KS37UK2,ADVERTISING SERVICES,Human Resources,Social Work Recruit & Retain,RECRUITMENT ADVERTISING
Cambridgeshire County Council,14/04/2021,1.00,COSTA COFFEE,FAST FOOD RESTAURANTS,Changing Futures & Projects,Housing First,OTHER SERVICE USER SUPPORT
Cambridgeshire County Council,14/04/2021,2.29,AMZNMKTPLACE,MISCELLANEOUS AND SPECIALTY RETAIL STORES,Schools,Pilgrim Pathways School,
Cambridgeshire County Council,14/04/2021,2.49,AMZNMKTPLACE,MISCELLANEOUS AND SPECIALTY RETAIL STORES,Schools,Pilgrim Pathways School,
Cambridgeshire County Council,14/04/2021,3.00,HM LAND REGISTRY - ONL,GOVERNMENT SERVICES-NOT ELSEWHERE CLASSIFIED,Shared Services,Debt Team,DEBT RECOVERY COSTS
Cambridgeshire County Council,14/04/2021,3.00,HM LAND REGISTRY - ONL,GOVERNMENT SERVICES-NOT ELSEWHERE CLASSIFIED,Shared Services,Debt Team,DEBT RECOVERY COSTS
Cambridgeshire County Council,14/04/2021,3.00,HM LAND REGISTRY - ONL,GOVERNMENT SERVICES-NOT ELSEWHERE CLASSIFIED,Shared Services,Debt Team,DEBT RECOVERY COSTS
Cambridgeshire County Council,14/04/2021,3.79,POST OFFICE COUNTER,POSTAL SERVICES-GOVERNMENT ONLY,Early Years Service,EY Central Costs,POSTAGE & CARRIAGE
Cambridgeshire County Council,14/04/2021,5.99,AMZNMKTPLACE,MISCELLANEOUS AND SPECIALTY RETAIL STORES,Schools,Pilgrim Pathways School,
Cambridgeshire County Council,14/04/2021,5.99,DISNEY PLUS,"CABLE, SATELLITE, OTHER PAY TELEVISION, RADIO SVCS",Children's Disability Service,Head of RSS,SUBSCRIPTIONS
Cambridgeshire County Council,14/04/2021,7.02,DORRINGTONS,BAKERIES,Changing Futures & Projects,Housing First,OTHER SERVICE USER SUPPORT
Cambridgeshire County Council,14/04/2021,7.99,AMAZON PRIME M433J3044,DIRECT MARKETING-CONTINUITY/SUBSCRIPTION MERCHANTS,Children's Disability Service,Head of RSS,SUBSCRIPTIONS
Cambridgeshire County Council,14/04/2021,7.99,AMAZON PRIME M485C6164,DIRECT MARKETING-CONTINUITY/SUBSCRIPTION MERCHANTS,Youth Offending Service,YOT - High Risk and Deter,OFFENDERS SUPPORT
Cambridgeshire County Council,14/04/2021,10.00,TESCO STORES 2228,"GROCERY STORES, SUPERMARKETS",Changing Futures & Projects,Housing First,OTHER SERVICE USER SUPPORT
Cambridgeshire County Council,14/04/2021,10.99,AMZNMKTPLACE,MISCELLANEOUS AND SPECIALTY RETAIL STORES,School Improvement Service,Education Health Safety and Wellbeing: PE & Sport Advisor,PRINTING
Cambridgeshire County Council,14/04/2021,14.35,POST OFFICE COUNTER,POSTAL SERVICES-GOVERNMENT ONLY,Coroners,Coroners General,POSTAGE & CARRIAGE
Cambridgeshire County Council,14/04/2021,17.94,AMZNMKTPLACE,MISCELLANEOUS AND SPECIALTY RETAIL STORES,Schools,Pilgrim Pathways School,
Cambridgeshire County Council,14/04/2021,21.50,AMZNMKTPLACE,MISCELLANEOUS AND SPECIALTY RETAIL STORES,Adult Mental Health,Cambridge North Adult Mental Health Team,
Cambridgeshire County Council,14/04/2021,44.50,DUNELM LTD,"DRAPERY, UPOLSTERY, AND WINDOW COVERINGS STORES",Changing Futures & Projects,Housing First,OTHER SERVICE USER SUPPORT
Cambridgeshire County Council,14/04/2021,49.83,AMZNMKTPLACE,MISCELLANEOUS AND SPECIALTY RETAIL STORES,Schools,Pilgrim Pathways School,
Cambridgeshire County Council,14/04/2021,50.00,AMAZON.CO.UK M456R21H4,DIRECT MARKETING-OTHER DIRECT MARKETERS/NOT ELSEW.,Executive Director AHC,"Executive Director - Adults, Health & Comissioning",OTHER ALLOWANCES
Cambridgeshire County Council,14/04/2021,55.00,NCC INCOME,GOVERNMENT SERVICES-NOT ELSEWHERE CLASSIFIED,0-19 Organisation & Planning,Attendance and Behaviour,
Cambridgeshire County Council,14/04/2021,58.90,TESCO GIFT CARD,"GROCERY STORES, SUPERMARKETS",Corporate Parenting,North Care Leaving Team 1,GRANTS&SUPPORT FOR OTHER SERVICE USERS
Cambridgeshire County Council,14/04/2021,61.03,WWW.CROSSBOWEDUCATION.,"OFFICE, SCHOOL SUPPLY, AND STATIONERY STORES",SEND Specialist Services,Sensory Support Team (0-25),
Cambridgeshire County Council,14/04/2021,67.09,TESCO STORE 2694,"GROCERY STORES, SUPERMARKETS",LD - In House Provider Services,6 St Lukes Close (Respite),
Cambridgeshire County Council,14/04/2021,100.00,WICKES BUILDING,"BUILDING MATERIALS, LUMBER STORES",Corporate Parenting,North Child Looked After Team 1,LEAVING CARE GRANTS
Cambridgeshire County Council,14/04/2021,159.00,TVLICENSING.CO.UK,"CONSULTING, MANAGEMENT, AND PUBLIC RELATIONS SVCS",Corporate Parenting,North Child Looked After Team 1,LEAVING CARE GRANTS
Cambridgeshire County Council,14/04/2021,301.43,LINKEDIN 6513685374,DIRECT MARKETING-CONTINUITY/SUBSCRIPTION MERCHANTS,Human Resources,Social Work Recruit & Retain,RECRUITMENT ADVERTISING
Cambridgeshire County Council,14/04/2021,350.00,PAYPAL  STEVEWOLFE,PROFESSIONAL SERVICES-NOT ELSEWHERE CLASSIFIED,Children's Disability Service,Head of RSS,SPECIALIST WORKS AND REPAIRS
Cambridgeshire County Council,14/04/2021,355.81,GOOGLE  ADS9460467845,ADVERTISING SERVICES,Communication and Information,Communication and Information,
Cambridgeshire County Council,14/04/2021,359.99,ARGOS LTD,DISCOUNT STORES,Targeted Support Service - South,EH Child and Family Centre - South Cambs,GRANTS&SUPPORT FOR OTHER SERVICE USERS
Cambridgeshire County Council,15/04/2021,1.80,CRAFT IT YOURSELF,"ARTIST SUPPLY STORES, CRAFT SHOPS",Registration & Citizenship Services,Registrars General,GENERAL OFFICE EXPENSES & STATIONERY
Cambridgeshire County Council,15/04/2021,3.00,HM LAND REGISTRY - ONL,GOVERNMENT SERVICES-NOT ELSEWHERE CLASSIFIED,Shared Services,Debt Team,DEBT RECOVERY COSTS
Cambridgeshire County Council,15/04/2021,3.00,HM LAND REGISTRY - ONL,GOVERNMENT SERVICES-NOT ELSEWHERE CLASSIFIED,Shared Services,Debt Team,DEBT RECOVERY COSTS
Cambridgeshire County Council,15/04/2021,3.00,HM LAND REGISTRY - ONL,GOVERNMENT SERVICES-NOT ELSEWHERE CLASSIFIED,Shared Services,Debt Team,DEBT RECOVERY COSTS
Cambridgeshire County Council,15/04/2021,3.20,THE WORKS,DISCOUNT STORES,Coroners,Coroners General,POSTAGE & CARRIAGE
Cambridgeshire County Council,15/04/2021,4.00,POUNDLAND LTD,DISCOUNT STORES,Early Years Service,Oasis Nursery,EDUCATIONAL EQUIPMENT
Cambridgeshire County Council,15/04/2021,4.68,NOMINET UK,"CONSULTING, MANAGEMENT, AND PUBLIC RELATIONS SVCS",ICT Service (Education),ICT Service Systems Development,
Cambridgeshire County Council,15/04/2021,4.89,AMAZON.CO.UK M49R82GO4,DIRECT MARKETING-OTHER DIRECT MARKETERS/NOT ELSEW.,Safeguarding and Quality Assurance,Safeguarding and Quality Assurance,GENERAL OFFICE EXPENSES & STATIONERY
Cambridgeshire County Council,15/04/2021,6.85,POST OFFICE COUNTER,POSTAL SERVICES-GOVERNMENT ONLY,Corporate Parenting,North Care Leaving Team 1,GRANTS&SUPPORT FOR OTHER SERVICE USERS
Cambridgeshire County Council,15/04/2021,7.99,AMAZON PRIME M422W2PL4,DIRECT MARKETING-CONTINUITY/SUBSCRIPTION MERCHANTS,LD - In House Provider Services,6 St Lukes Close (Respite),
Cambridgeshire County Council,15/04/2021,8.00,WM MORRISONS STORE PIC,"GROCERY STORES, SUPERMARKETS",Children's Disability Service,Head of RSS,SUBSCRIPTIONS
Cambridgeshire County Council,15/04/2021,8.50,DUNELM (SOFT FURNISHIN,"DRAPERY, UPOLSTERY, AND WINDOW COVERINGS STORES",LD - In House Provider Services,6 St Lukes Close (Respite),SPECIALIST SUPPLIES AND MATERIALS
Cambridgeshire County Council,15/04/2021,11.21,ALDI,"GROCERY STORES, SUPERMARKETS",Early Years Service,Oasis Nursery,EDUCATIONAL EQUIPMENT
Cambridgeshire County Council,15/04/2021,14.00,TESCO STORE 2694,"GROCERY STORES, SUPERMARKETS",LD - In House Provider Services,6 St Lukes Close (Respite),
Cambridgeshire County Council,15/04/2021,14.42,AMZNMKTPLACE,MISCELLANEOUS AND SPECIALTY RETAIL STORES,LD - In House Provider Services,No. 20 Alder Close Respite,PROTECTIVE CLOTHING
Cambridgeshire County Council,15/04/2021,19.74,B & Q 1239,HOME SUPPLY WAREHOUSE STORES,Parking Enforcement,On Street Parking,EQUIPMENT AND TOOLS
Cambridgeshire County Council,15/04/2021,20.00,CO-OP GROUP 019451,"GROCERY STORES, SUPERMARKETS",Changing Futures & Projects,Housing First,
Cambridgeshire County Council,15/04/2021,22.00,CAMBRIDGE REGISTER,"COLLEGES, UNIV, PRO SCHOOLS, JUNIOR COLLEGES",Family Safeguarding East,Fenland Children's Team 2,
Cambridgeshire County Council,15/04/2021,27.99,TROPHYSTORE.CO.UK LIMI,"CONTRACTORS,SPECIAL TRADE-NOT ELSEWHERE CLASSIFIED",Safeguarding and Quality Assurance,Safeguarding and Quality Assurance,GENERAL OFFICE EXPENSES & STATIONERY
Cambridgeshire County Council,15/04/2021,30.70,AMZNMKTPLACE,MISCELLANEOUS AND SPECIALTY RETAIL STORES,SEND Specialist Services,Sensory Support Team (0-25),
Cambridgeshire County Council,15/04/2021,48.00,AMAZON PRIME M402D7P44,DIRECT MARKETING-CONTINUITY/SUBSCRIPTION MERCHANTS,Outdoor Education (includes Grafham Water),Grafham Water Centre,CURRICULUM EXPENSES
Cambridgeshire County Council,15/04/2021,49.75,WWW.GOMPELS.CO.UK,INDUSTRIAL SUPPLIES NOT ELSEWHERE CLASSIFIED,Early Years Service,Oasis Nursery,EDUCATIONAL EQUIPMENT
Cambridgeshire County Council,15/04/2021,52.00,REGISTER OFFICE,GOVERNMENT SERVICES-NOT ELSEWHERE CLASSIFIED,Family Safeguarding East,Fenland Children's Team 2,
Cambridgeshire County Council,15/04/2021,57.59,NAMESCO,COMPUTER NETWORK/INFORMATION SERVICES,IT & Digital Service,Business & Digital Systems,
Cambridgeshire County Council,15/04/2021,61.19,NAMESCO,COMPUTER NETWORK/INFORMATION SERVICES,IT & Digital Service,Business & Digital Systems,
Cambridgeshire County Council,15/04/2021,61.19,NAMESCO,COMPUTER NETWORK/INFORMATION SERVICES,IT & Digital Service,Business & Digital Systems,
Cambridgeshire County Council,15/04/2021,61.19,NAMESCO,COMPUTER NETWORK/INFORMATION SERVICES,IT & Digital Service,Business & Digital Systems,
Cambridgeshire County Council,15/04/2021,61.19,NAMESCO,COMPUTER NETWORK/INFORMATION SERVICES,IT & Digital Service,Business & Digital Systems,
Cambridgeshire County Council,15/04/2021,61.19,NAMESCO,COMPUTER NETWORK/INFORMATION SERVICES,IT & Digital Service,Business & Digital Systems,
Cambridgeshire County Council,15/04/2021,61.19,NAMESCO,COMPUTER NETWORK/INFORMATION SERVICES,IT & Digital Service,Business & Digital Systems,
Cambridgeshire County Council,15/04/2021,70.00,CENTRAL CARPET,FLOOR COVERING STORES,Changing Futures & Projects,Housing First,OTHER SERVICE USER SUPPORT
Cambridgeshire County Council,15/04/2021,87.58,THETRAINLINE.COM,PASSENGER RAILWAYS,Corporate Parenting,North Care Leaving Team 1,CAR MILEAGE AND ALLOWANCES - STAFF
Cambridgeshire County Council,15/04/2021,142.80,HOO HOOTSUITE INC,BUSINESS SERVICES-NOT ELSEWHERE CLASSIFIED,GCP,GCP - Strategic Communicatations,
Cambridgeshire County Council,15/04/2021,161.93,TRYLON LTD,"GIFT, CARD, NOVELTY AND SOUVENIR SHOPS",Outdoor Education (includes Grafham Water),Grafham Water Centre,EDUCATIONAL MATERIALS
Cambridgeshire County Council,15/04/2021,168.00,ELY TOOL HIRE LTD,HARDWARE STORES,Outdoor Education (includes Grafham Water),Burwell House Residential Centre,GROUNDS MAINTENANCE
Cambridgeshire County Council,15/04/2021,208.89,AMZNMKTPLACE,MISCELLANEOUS AND SPECIALTY RETAIL STORES,Corporate Parenting,North Child Looked After Team 1,LEAVING CARE GRANTS
Cambridgeshire County Council,15/04/2021,220.00,WWW.CIPFA.ORG.UK,"ORGANIZATIONS, MEMBERSHIP-NOT ELSEWHERE CLASSIFIED",Professional Finance,Cipfa Trainees,EXAM FEES
Cambridgeshire County Council,16/04/2021,-148.95,ARGOS LTD,DISCOUNT STORES,Targeted Support Service - South,EH Child and Family Centre - Cambridge City,"FIXTURES, FITTINGS AND FURNISHINGS"
Cambridgeshire County Council,16/04/2021,3.00,HM LAND REGISTRY - ONL,GOVERNMENT SERVICES-NOT ELSEWHERE CLASSIFIED,Shared Services,Debt Team,DEBT RECOVERY COSTS
Cambridgeshire County Council,16/04/2021,3.00,HM LAND REGISTRY - ONL,GOVERNMENT SERVICES-NOT ELSEWHERE CLASSIFIED,Shared Services,Debt Team,DEBT RECOVERY COSTS
Cambridgeshire County Council,16/04/2021,3.00,HM LAND REGISTRY - ONL,GOVERNMENT SERVICES-NOT ELSEWHERE CLASSIFIED,Shared Services,Debt Team,DEBT RECOVERY COSTS
Cambridgeshire County Council,16/04/2021,3.00,HM LAND REGISTRY - ONL,GOVERNMENT SERVICES-NOT ELSEWHERE CLASSIFIED,Shared Services,Debt Team,DEBT RECOVERY COSTS
Cambridgeshire County Council,16/04/2021,3.04,PERRY STORES,"CANDY, NUT, CONFECTIONERY STORES",Outdoor Education (includes Grafham Water),Grafham Water Centre,EQUIPMENT AND TOOLS
Cambridgeshire County Council,16/04/2021,3.79,POST OFFICE COUNTER,POSTAL SERVICES-GOVERNMENT ONLY,Early Years Service,EY Central Costs,POSTAGE & CARRIAGE
Cambridgeshire County Council,16/04/2021,4.49,AMAZON.CO.UK M42GF5VI4,DIRECT MARKETING-OTHER DIRECT MARKETERS/NOT ELSEW.,Early Years Service,Trumpington Park Early Years,EDUCATIONAL EQUIPMENT
Cambridgeshire County Council,16/04/2021,6.65,POST OFFICE COUNTER,POSTAL SERVICES-GOVERNMENT ONLY,SEND Specialist Services,Head of SEND Services (0-25),GENERAL OFFICE EXPENSES & STATIONERY
Cambridgeshire County Council,16/04/2021,7.99,AMAZON PRIME M42HX0XD4,DIRECT MARKETING-CONTINUITY/SUBSCRIPTION MERCHANTS,0-19 Organisation & Planning,Education Safeguarding,GENERAL OFFICE EXPENSES & STATIONERY
Cambridgeshire County Council,16/04/2021,8.99,CURRYS,ELECTRONIC SALES,Changing Futures & Projects,Housing First,
Cambridgeshire County Council,16/04/2021,9.60,TOOLSTATION LTD,HARDWARE STORES,LD - In House Provider Services,6 St Lukes Close (Respite),
Cambridgeshire County Council,16/04/2021,10.00,BRITISH GAS ONLINE,"UTLTS-ELCTRC, GAS, HEATING OIL, SANITARY, WATER",Changing Futures & Projects,Housing First,OTHER SERVICE USER SUPPORT
Cambridgeshire County Council,16/04/2021,15.00,BRITISH GAS ONLINE,"UTLTS-ELCTRC, GAS, HEATING OIL, SANITARY, WATER",Changing Futures & Projects,Housing First,OTHER SERVICE USER SUPPORT
Cambridgeshire County Council,16/04/2021,21.59,AMZNMKTPLACE AMAZON.CO,MISCELLANEOUS AND SPECIALTY RETAIL STORES,Outdoor Education (includes Grafham Water),Burwell House Residential Centre,BUILDING REPAIR AND MAINTENANCE
Cambridgeshire County Council,16/04/2021,23.87,POST OFFICE COUNTER,POSTAL SERVICES-GOVERNMENT ONLY,Coroners,Coroners General,POSTAGE & CARRIAGE
Cambridgeshire County Council,16/04/2021,24.87,AMZNMKTPLACE AMAZON.CO,MISCELLANEOUS AND SPECIALTY RETAIL STORES,LD - In House Provider Services,6 St Lukes Close (Respite),
Cambridgeshire County Council,16/04/2021,28.18,TRAINLINE,PASSENGER RAILWAYS,Corporate Parenting,Separated Migrant Children > 18,ASYLUM SEEKERS
Cambridgeshire County Council,16/04/2021,30.98,CURRYS,ELECTRONIC SALES,Changing Futures & Projects,Housing First,
Cambridgeshire County Council,16/04/2021,32.53,POST OFFICE COUNTER,POSTAL SERVICES-GOVERNMENT ONLY,Registration & Citizenship Services,Registrars General,POSTAGE & CARRIAGE
Cambridgeshire County Council,16/04/2021,37.40,TL&GN RAILWAY WEB,PASSENGER RAILWAYS,Corporate Parenting,North Child Looked After Team 1,VEHICLE AND PLANT HIRE
Cambridgeshire County Council,16/04/2021,49.79,HOME BARGAINS,HARDWARE STORES,Early Years Service,Trumpington Park Early Years,CLEANING AND DOMESTIC SUPPLIES
Cambridgeshire County Council,16/04/2021,74.98,FOOTASYLUM PLC,MEN'S AND WOMEN'S CLOTHING STORES,Family Safeguarding East,Fenland Children's Team 2,
Cambridgeshire County Council,16/04/2021,85.84,WM MORRISONS STORE PIC,"GROCERY STORES, SUPERMARKETS",Children's Disability Service,Head of RSS,CATERING PROVISIONS
Cambridgeshire County Council,16/04/2021,114.00,ABSOLUTE TRANSLATIONS,ADVERTISING SERVICES,Domestic Abuse and Sexual Violence Service,Domestic Violence Unit,
Cambridgeshire County Council,16/04/2021,115.97,TESCO STORE 2555,"GROCERY STORES, SUPERMARKETS",LD - In House Provider Services,40 & 44 Russell Street,CATERING PROVISIONS
Cambridgeshire County Council,16/04/2021,179.86,"TRELLO.COM, ATLASSIAN","COMPUTERS, COMPUTER PERIPHERAL EQUIPMENT, SOFTWARE",Cambridgeshire Music,Cambs Music Holding Account,COMP SOFTWARE-ANNUAL LICENCE AGREEMENT
Cambridgeshire County Council,16/04/2021,250.00,CS  TESCO STORES GC,BUSINESS SERVICES-NOT ELSEWHERE CLASSIFIED,Public Health - Admin & Salaries,Public Health Strategic Management,SPECIALIST SUPPLIES AND MATERIALS
Cambridgeshire County Council,16/04/2021,315.00,JD SPORTS INTERNET,SPORTING GOODS STORES,Family Safeguarding East,Fenland Children's Team 2,
Cambridgeshire County Council,16/04/2021,424.66,ADOBE ACROBAT STD,COMPUTER SOFTWARE STORES,Communication and Information,Communication and Information,
Cambridgeshire County Council,16/04/2021,449.36,TRAVELODGE,TRAVELODGE,"Children, Education and Families Directorate","Children, Education and Families Directorate",
Cambridgeshire County Council,19/04/2021,-18.75,HOLLISTER GRAND ARCADE,MEN'S AND WOMEN'S CLOTHING STORES,"Communities, Employment & Skills",YS - National Citizen Service,
Cambridgeshire County Council,19/04/2021,1.70,1 AND 1 IONOS LTD,COMPUTER NETWORK/INFORMATION SERVICES,Schools,Pilgrim Pathways School,
Cambridgeshire County Council,19/04/2021,4.08,"BOOTS,CAMBRIDGE","DRUG STORES, PHARMACIES",Changing Futures & Projects,Housing First,OTHER SERVICE USER SUPPORT
Cambridgeshire County Council,19/04/2021,5.00,NOW TV,"CABLE, SATELLITE, OTHER PAY TELEVISION, RADIO SVCS",Changing Futures & Projects,Housing First,OTHER SERVICE USER SUPPORT
Cambridgeshire County Council,19/04/2021,5.10,POST OFFICE COUNTER,POSTAL SERVICES-GOVERNMENT ONLY,Corporate Parenting,North Care Leaving Team 1,GRANTS&SUPPORT FOR OTHER SERVICE USERS
Cambridgeshire County Council,19/04/2021,5.85,LIMONCELLO (CAMBRIDGE),"GROCERY STORES, SUPERMARKETS",Changing Futures & Projects,Housing First,
Cambridgeshire County Council,19/04/2021,7.99,AMAZON MUSIC M42DZ9HH4,RECORD SHOPS,Children's Disability Service,Head of RSS,SUBSCRIPTIONS
Cambridgeshire County Council,19/04/2021,8.49,ASDA STORES 4857,"GROCERY STORES, SUPERMARKETS",Targeted Support Service - South,EH Child and Family Centre - East Cambs,SPECIALIST EQUIPMENT FOR SERVICE DELIV
Cambridgeshire County Council,19/04/2021,8.92,AMAZON.CO.UK M472J6BE4,DIRECT MARKETING-OTHER DIRECT MARKETERS/NOT ELSEW.,Children's Disability Service,Head of RSS,CLEANING AND DOMESTIC SUPPLIES
Cambridgeshire County Council,19/04/2021,9.34,AMZNMKTPLACE AMAZON.CO,MISCELLANEOUS AND SPECIALTY RETAIL STORES,ICT Service (Education),ICT Service Systems Development,
Cambridgeshire County Council,19/04/2021,9.72,CANVA  03025-1035037,PHOTOGRAPHIC STUDIOS,Communication and Information,Communication and Information,
Cambridgeshire County Council,19/04/2021,10.00,AMAZON.CO.UK M44LQ5MR4,DIRECT MARKETING-OTHER DIRECT MARKETERS/NOT ELSEW.,Safeguarding and Quality Assurance,Childrens Participation,SPECIALIST EQUIPMENT FOR SERVICE DELIV
Cambridgeshire County Council,19/04/2021,10.00,APPLE.COM/UK,ELECTRONIC SALES,ICT Service (Education),ICT Service Systems Development,
Cambridgeshire County Council,19/04/2021,10.00,APPLE.COM/UK,ELECTRONIC SALES,ICT Service (Education),ICT Service Systems Development,
Cambridgeshire County Council,19/04/2021,11.99,AMZNMKTPLACE AMAZON.CO,MISCELLANEOUS AND SPECIALTY RETAIL STORES,Cultural Services,The Library Presents,
Cambridgeshire County Council,19/04/2021,13.55,TESCO STORES 2229,"GROCERY STORES, SUPERMARKETS",Changing Futures & Projects,Housing First,OTHER SERVICE USER SUPPORT
Cambridgeshire County Council,19/04/2021,14.39,ZOOM.US 888-799-9666,TELECOM INCL PREPAID/RECURRING PHONE SVCS,School Improvement Service,Education Health Safety and Wellbeing: PE & Sport Advisor,SUBSCRIPTIONS
Cambridgeshire County Council,19/04/2021,16.99,TESCO STORES 2228,"GROCERY STORES, SUPERMARKETS",Changing Futures & Projects,Housing First,
Cambridgeshire County Council,19/04/2021,18.98,AMZNMKTPLACE AMAZON.CO,MISCELLANEOUS AND SPECIALTY RETAIL STORES,Outdoor Education (includes Grafham Water),Burwell House Residential Centre,GENERAL OFFICE EXPENSES & STATIONERY
Cambridgeshire County Council,19/04/2021,22.00,PETERBOROUGH DIRECT,GOVERNMENT SERVICES-NOT ELSEWHERE CLASSIFIED,Family Safeguarding East,Fenland Children's Team 2,
Cambridgeshire County Council,19/04/2021,25.00,APPLE.COM/UK,ELECTRONIC SALES,ICT Service (Education),ICT Service Systems Development,
Cambridgeshire County Council,19/04/2021,25.00,APPLE.COM/UK,ELECTRONIC SALES,ICT Service (Education),ICT Service Systems Development,
Cambridgeshire County Council,19/04/2021,25.00,APPLE.COM/UK,ELECTRONIC SALES,ICT Service (Education),ICT Service Systems Development,
Cambridgeshire County Council,19/04/2021,25.68,B & Q 1140,HOME SUPPLY WAREHOUSE STORES,School Improvement Service,Adventure Playground,GROUNDS MAINTENANCE
Cambridgeshire County Council,19/04/2021,26.59,AMZNMKTPLACE,MISCELLANEOUS AND SPECIALTY RETAIL STORES,ICT Service (Education),ICT Service Systems Development,
Cambridgeshire County Council,19/04/2021,26.99,AMZNMKTPLACE,MISCELLANEOUS AND SPECIALTY RETAIL STORES,ICT Service (Education),ICT Service Systems Development,
Cambridgeshire County Council,19/04/2021,26.99,AMAZON.CO.UK M43J88HM4,DIRECT MARKETING-OTHER DIRECT MARKETERS/NOT ELSEW.,Schools,Pilgrim Pathways School,
Cambridgeshire County Council,19/04/2021,29.83,AMZNMKTPLACE,MISCELLANEOUS AND SPECIALTY RETAIL STORES,ICT Service (Education),ICT Service Systems Development,
Cambridgeshire County Council,19/04/2021,36.77,CRAZY EGG.COM,BUSINESS SERVICES-NOT ELSEWHERE CLASSIFIED,IT & Digital Service,Business & Digital Systems,COMPUTER SOFTWARE - PURCHASE
Cambridgeshire County Council,19/04/2021,40.00,APPLE.COM/UK,ELECTRONIC SALES,ICT Service (Education),ICT Service Systems Development,
Cambridgeshire County Council,19/04/2021,40.00,APPLE.COM/UK,ELECTRONIC SALES,ICT Service (Education),ICT Service Systems Development,
Cambridgeshire County Council,19/04/2021,40.00,APPLE.COM/UK,ELECTRONIC SALES,ICT Service (Education),ICT Service Systems Development,
Cambridgeshire County Council,19/04/2021,40.00,WWW.VOUCHEREXPRESS.CO.,"GIFT, CARD, NOVELTY AND SOUVENIR SHOPS",Corporate Parenting,North Care Leaving Team 1,LEAVING CARE GRANTS
Cambridgeshire County Council,19/04/2021,42.50,TSGN,PASSENGER RAILWAYS,Domestic Abuse and Sexual Violence Service,Domestic Violence Unit,
Cambridgeshire County Council,19/04/2021,43.16,ZOOM.US 888-799-9666,TELECOM INCL PREPAID/RECURRING PHONE SVCS,School Improvement Service,"Education, Health, Safety and Wellbeing - PSHE",SUBSCRIPTIONS
Cambridgeshire County Council,19/04/2021,50.00,APPLE.COM/UK,ELECTRONIC SALES,ICT Service (Education),ICT Service Systems Development,
Cambridgeshire County Council,19/04/2021,50.00,APPLE.COM/UK,ELECTRONIC SALES,ICT Service (Education),ICT Service Systems Development,
Cambridgeshire County Council,19/04/2021,50.00,APPLE.COM/UK,ELECTRONIC SALES,ICT Service (Education),ICT Service Systems Development,
Cambridgeshire County Council,19/04/2021,58.03,DNH GODADDY.COM EUROPE,COMPUTER NETWORK/INFORMATION SERVICES,ICT Service (Education),ICT Service Systems Development,
Cambridgeshire County Council,19/04/2021,66.80,WM MORRISONS STORE PIC,"GROCERY STORES, SUPERMARKETS",Children's Disability Service,Head of RSS,CATERING PROVISIONS
Cambridgeshire County Council,19/04/2021,77.74,TESCO STORE 2694,"GROCERY STORES, SUPERMARKETS",LD - In House Provider Services,6 St Lukes Close (Respite),
Cambridgeshire County Council,19/04/2021,80.00,APPLE.COM/UK,ELECTRONIC SALES,ICT Service (Education),ICT Service Systems Development,
Cambridgeshire County Council,19/04/2021,100.00,MR BS SHOES AND KEYS,"HAT CLEANING SHOPS, SHOE REPAIR SHOPS, SHOE SHINE",Coroners,Coroners General,GENERAL OFFICE EXPENSES & STATIONERY
Cambridgeshire County Council,19/04/2021,106.60,LCN COM,COMPUTER NETWORK/INFORMATION SERVICES,Connecting Cambridgeshire,Connecting Cambridgeshire,COMP SOFTWARE-ANNUAL LICENCE AGREEMENT
Cambridgeshire County Council,19/04/2021,113.50,HIGHSTREETVOUCHERS,"ASSOCIATIONS-CIVIC, SOCIAL, AND FRATERNAL",Corporate Parenting,North Care Leaving Team 1,LEAVING CARE GRANTS
Cambridgeshire County Council,19/04/2021,140.95,AMZNMKTPLACE AMAZON.CO,MISCELLANEOUS AND SPECIALTY RETAIL STORES,Schools,Pilgrim Pathways School,
Cambridgeshire County Council,19/04/2021,487.28,ZOOM.US 888-799-9666,TELECOM INCL PREPAID/RECURRING PHONE SVCS,Cambridgeshire Music,Cambs Music Holding Account,
Cambridgeshire County Council,19/04/2021,702.00,FENLANDS RURAL SPORTS,SPORTING GOODS STORES,Performance & Strategic Development,Adults Central Business Support,
Cambridgeshire County Council,20/04/2021,-113.50,HIGHSTREETVOUCHERS,"ASSOCIATIONS-CIVIC, SOCIAL, AND FRATERNAL",Corporate Parenting,North Care Leaving Team 1,LEAVING CARE GRANTS
Cambridgeshire County Council,20/04/2021,1.55,SPAR STORES,"GROCERY STORES, SUPERMARKETS",Changing Futures & Projects,Housing First,OTHER SERVICE USER SUPPORT
Cambridgeshire County Council,20/04/2021,2.65,TESCO STORE 2555,"GROCERY STORES, SUPERMARKETS",Changing Futures & Projects,Housing First,OTHER SERVICE USER SUPPORT
Cambridgeshire County Council,20/04/2021,5.95,JSG EXOTIC FOODS,"MISC FOOD STORE-CONVENIENCE,MRKT,SPLTY,VENDNG MACS",Safeguarding and Quality Assurance,Safeguarding and Quality Assurance,GENERAL OFFICE EXPENSES & STATIONERY
Cambridgeshire County Council,20/04/2021,6.58,AMAZON.CO.UK M46IM0844,DIRECT MARKETING-OTHER DIRECT MARKETERS/NOT ELSEW.,Children's Disability Service,Head of RSS,
Cambridgeshire County Council,20/04/2021,14.00,GEN REGISTER OFFICE,GOVERNMENT SERVICES-NOT ELSEWHERE CLASSIFIED,Corporate Parenting,North Child Looked After Team 1,BOOKS AND MULTIMEDIA SUPPLIES
Cambridgeshire County Council,20/04/2021,15.00,NCC INCOME,GOVERNMENT SERVICES-NOT ELSEWHERE CLASSIFIED,0-19 Organisation & Planning,Attendance and Behaviour,
Cambridgeshire County Council,20/04/2021,15.00,O2 UK,TELECOMMUNICATION EQUIPMENT INCL TELEPHONE SALES,Changing Futures & Projects,Housing First,
Cambridgeshire County Council,20/04/2021,15.48,POST OFFICE COUNTER,POSTAL SERVICES-GOVERNMENT ONLY,Coroners,Coroners General,
Cambridgeshire County Council,20/04/2021,15.85,ONE STOP 0409,"GROCERY STORES, SUPERMARKETS",Changing Futures & Projects,Housing First,OTHER SERVICE USER SUPPORT
Cambridgeshire County Council,20/04/2021,18.45,AMAZON.CO.UK M49FD0QC4,DIRECT MARKETING-OTHER DIRECT MARKETERS/NOT ELSEW.,Children's Disability Service,Head of RSS,GENERAL OFFICE EXPENSES & STATIONERY
Cambridgeshire County Council,20/04/2021,20.00,AMAZON.CO.UK M427W48I4,DIRECT MARKETING-OTHER DIRECT MARKETERS/NOT ELSEW.,Safeguarding and Quality Assurance,Childrens Participation,SPECIALIST EQUIPMENT FOR SERVICE DELIV
Cambridgeshire County Council,20/04/2021,20.21,CARTRIDGE SAVE,STATIONERY/OFFICE SUPPLIES/PRINTING & WRITING PAP.,Early Years Service,Trumpington Park Early Years,GENERAL OFFICE EXPENSES & STATIONERY
Cambridgeshire County Council,20/04/2021,20.39,AMAZON.CO.UK M42E35864,DIRECT MARKETING-OTHER DIRECT MARKETERS/NOT ELSEW.,Children's Disability Service,Head of RSS,CATERING PROVISIONS
Cambridgeshire County Council,20/04/2021,24.95,AMZNMKTPLACE,MISCELLANEOUS AND SPECIALTY RETAIL STORES,Outdoor Education (includes Grafham Water),Burwell House Residential Centre,CATERING EQUIPMENT-REPAIRS&MAINTENANCE
Cambridgeshire County Council,20/04/2021,26.26,MAILCHIMP,DIGITAL GOODS MULTI CATEGORY,ICT Service (Education),ICT Service Systems Development,
Cambridgeshire County Council,20/04/2021,26.99,AMZNMKTPLACE AMAZON.CO,MISCELLANEOUS AND SPECIALTY RETAIL STORES,ICT Service (Education),ICT Service Systems Development,
Cambridgeshire County Council,20/04/2021,35.00,WWW.FCO.GOV.UK,GOVERNMENT SERVICES-NOT ELSEWHERE CLASSIFIED,Family Safeguarding East,Fenland Children's Team 2,
Cambridgeshire County Council,20/04/2021,37.60,TESCO STORES 2228,"GROCERY STORES, SUPERMARKETS",LD - In House Provider Services,Horizon,CATERING PROVISIONS
Cambridgeshire County Council,20/04/2021,59.99,ARGOS LTD,DISCOUNT STORES,Corporate Parenting,Separated Migrant Children > 18,LEAVING CARE GRANTS
Cambridgeshire County Council,20/04/2021,67.87,WM MORRISONS STORE PIC,"GROCERY STORES, SUPERMARKETS",Children's Disability Service,Head of RSS,CATERING PROVISIONS
Cambridgeshire County Council,20/04/2021,71.28,TESCO STORES 2228,"GROCERY STORES, SUPERMARKETS",Children's Disability Service,Head of RSS,
Cambridgeshire County Council,20/04/2021,72.53,TESCO STORE 2694,"GROCERY STORES, SUPERMARKETS",LD - In House Provider Services,6 St Lukes Close (Respite),
Cambridgeshire County Council,20/04/2021,150.00,PAYPAL  COUNCILFORL,"ORGANIZATIONS, CHARITABLE AND SOCIAL SERVICES",Outdoor Education (includes Grafham Water),CEES Stibbington Centre,STAFF TRAINING & DEVELOPMENT
Cambridgeshire County Council,20/04/2021,184.80,PAYPAL  HOGREFE LTD,MISCELLANEOUS PUBLISHING AND PRINTING,SEND Specialist Services,SEND Specialist Services - Education Psychology,EDUCATIONAL MATERIALS
Cambridgeshire County Council,20/04/2021,220.00,WWW.CIPFA.ORG.UK,"ORGANIZATIONS, MEMBERSHIP-NOT ELSEWHERE CLASSIFIED",Professional Finance,Cipfa Trainees,
Cambridgeshire County Council,20/04/2021,274.43,FACEBK ZZ2CY33VK2,ADVERTISING SERVICES,Human Resources,Social Work Recruit & Retain,RECRUITMENT ADVERTISING
Cambridgeshire County Council,21/04/2021,-45.99,AMZNMKTPLACE AMAZON.CO,MISCELLANEOUS AND SPECIALTY RETAIL STORES,LD - In House Provider Services,6 St Lukes Close (Respite),
Cambridgeshire County Council,21/04/2021,-17.50,DUNELM LTD,"DRAPERY, UPOLSTERY, AND WINDOW COVERINGS STORES",Changing Futures & Projects,Housing First,OTHER SERVICE USER SUPPORT
Cambridgeshire County Council,21/04/2021,1.50,ROYAL MAIL CHARGES,POSTAL SERVICES-GOVERNMENT ONLY,Corporate Parenting,North Child Looked After Team 1,POSTAGE & CARRIAGE
Cambridgeshire County Council,21/04/2021,3.00,HM LAND REGISTRY - ONL,GOVERNMENT SERVICES-NOT ELSEWHERE CLASSIFIED,Shared Services,Debt Team,DEBT RECOVERY COSTS
Cambridgeshire County Council,21/04/2021,3.00,HM LAND REGISTRY - ONL,GOVERNMENT SERVICES-NOT ELSEWHERE CLASSIFIED,Shared Services,Debt Team,DEBT RECOVERY COSTS
Cambridgeshire County Council,21/04/2021,3.00,HM LAND REGISTRY - ONL,GOVERNMENT SERVICES-NOT ELSEWHERE CLASSIFIED,Shared Services,Debt Team,DEBT RECOVERY COSTS
Cambridgeshire County Council,21/04/2021,5.40,GREGGS PLC,"EATING PLACES, RESTAURANTS",Changing Futures & Projects,Housing First,OTHER SERVICE USER SUPPORT
Cambridgeshire County Council,21/04/2021,6.85,POST OFFICE COUNTER,POSTAL SERVICES-GOVERNMENT ONLY,Coroners,Coroners General,POSTAGE & CARRIAGE
Cambridgeshire County Council,21/04/2021,9.99,AMZNMKTPLACE,MISCELLANEOUS AND SPECIALTY RETAIL STORES,Asset Management,Highways Records,
Cambridgeshire County Council,21/04/2021,10.00,HIGHSTREET VOUCHERS,"ASSOCIATIONS-CIVIC, SOCIAL, AND FRATERNAL",Corporate Parenting,North Care Leaving Team 1,LEAVING CARE GRANTS
Cambridgeshire County Council,21/04/2021,20.00,HIGHSTREET VOUCHERS,"ASSOCIATIONS-CIVIC, SOCIAL, AND FRATERNAL",Corporate Parenting,North Care Leaving Team 1,LEAVING CARE GRANTS
Cambridgeshire County Council,21/04/2021,20.00,HIGHSTREET VOUCHERS,"ASSOCIATIONS-CIVIC, SOCIAL, AND FRATERNAL",Corporate Parenting,North Care Leaving Team 1,LEAVING CARE GRANTS
Cambridgeshire County Council,21/04/2021,20.99,AMZNMKTPLACE,MISCELLANEOUS AND SPECIALTY RETAIL STORES,Children's Disability Service,Head of RSS,CLEANING AND DOMESTIC SUPPLIES
Cambridgeshire County Council,21/04/2021,22.50,123 HAMPERS,FLORISTS,Cambridgeshire Skills,Cambridgeshire Skills - March Community Centre - Learning,STAFF HEALTH & WELFARE COSTS
Cambridgeshire County Council,21/04/2021,30.00,TESCO GIFT CARD,"GROCERY STORES, SUPERMARKETS",Corporate Parenting,North Care Leaving Team 1,LEAVING CARE GRANTS
Cambridgeshire County Council,21/04/2021,31.99,DEICHMANN SHOES,SHOE STORES,Changing Futures & Projects,Counting Every Adult,OTHER SERVICE USER SUPPORT
Cambridgeshire County Council,21/04/2021,35.82,OUTOFEDEN.CO.UK,HOUSEHOLD APPLIANCE STORES,Outdoor Education (includes Grafham Water),Burwell House Residential Centre,CLEANING AND DOMESTIC SUPPLIES
Cambridgeshire County Council,21/04/2021,44.65,ROBINSON HEALTHCARE,DENTAL/LAB/MED/OPHTHALMIC HOSP EQUIP & SUPPLIES,LD - In House Provider Services,6 St Lukes Close (Respite),
Cambridgeshire County Council,21/04/2021,50.07,ALDI STORES CHELMSFORD,"GROCERY STORES, SUPERMARKETS",Early Years Service,Trumpington Park Early Years,CATERING PROVISIONS
Cambridgeshire County Council,21/04/2021,59.38,SP   NATIONWIDE TRAILE,"AUTOMOTIVE PARTS, ACCESSORIES STORES",Outdoor Education (includes Grafham Water),Grafham Water Centre,EDUCATIONAL MATERIALS
Cambridgeshire County Council,21/04/2021,75.96,AMZNMKTPLACE,MISCELLANEOUS AND SPECIALTY RETAIL STORES,LD - In House Provider Services,IHPS - Tennyson Lodge,SPECIALIST EQUIPMENT FOR SERVICE DELIV
Cambridgeshire County Council,21/04/2021,87.45,TESCO STORES 2228,"GROCERY STORES, SUPERMARKETS",Children's Disability Service,Head of RSS,CATERING PROVISIONS
Cambridgeshire County Council,21/04/2021,97.00,USC,MEN'S AND WOMEN'S CLOTHING STORES,Changing Futures & Projects,Counting Every Adult,OTHER SERVICE USER SUPPORT
Cambridgeshire County Council,21/04/2021,109.40,AMAZON.CO.UK M41U02DK4,DIRECT MARKETING-OTHER DIRECT MARKETERS/NOT ELSEW.,ICT Service (Education),ICT Service Systems Development,
Cambridgeshire County Council,21/04/2021,110.00,WWW.CIPFA.ORG.UK,"ORGANIZATIONS, MEMBERSHIP-NOT ELSEWHERE CLASSIFIED",Internal Audit,Audit Division,
Cambridgeshire County Council,21/04/2021,110.00,WWW.CIPFA.ORG.UK,"ORGANIZATIONS, MEMBERSHIP-NOT ELSEWHERE CLASSIFIED",Internal Audit,Audit Division,
Cambridgeshire County Council,21/04/2021,114.00,EB  RESEARCH EVALUATIO,BUSINESS SERVICES-NOT ELSEWHERE CLASSIFIED,Communication and Information,Communication and Information,
Cambridgeshire County Council,21/04/2021,214.00,POST OFFICE COUNTER,POSTAL SERVICES-GOVERNMENT ONLY,0-19 Organisation & Planning,Attendance and Behaviour,POSTAGE & CARRIAGE
Cambridgeshire County Council,21/04/2021,220.00,WWW.CIPFA.ORG.UK,"ORGANIZATIONS, MEMBERSHIP-NOT ELSEWHERE CLASSIFIED",Professional Finance,Cipfa Trainees,EXAM FEES
Cambridgeshire County Council,21/04/2021,341.88,AMZNMKTPLACE AMAZON.CO,MISCELLANEOUS AND SPECIALTY RETAIL STORES,Changing Futures & Projects,Housing First,
Cambridgeshire County Council,21/04/2021,399.98,AMZNMKTPLACE AMAZON.CO,MISCELLANEOUS AND SPECIALTY RETAIL STORES,Changing Futures & Projects,Housing First,
Cambridgeshire County Council,21/04/2021,500.00,ELECTRIC BIKE SALES,BICYCLE SHOPS-SALES AND SERVICE,Changing Futures & Projects,Counting Every Adult,OTHER SERVICE USER SUPPORT
Cambridgeshire County Council,22/04/2021,3.00,HM LAND REGISTRY - ONL,GOVERNMENT SERVICES-NOT ELSEWHERE CLASSIFIED,Shared Services,Debt Team,DEBT RECOVERY COSTS
Cambridgeshire County Council,22/04/2021,3.00,HM LAND REGISTRY - ONL,GOVERNMENT SERVICES-NOT ELSEWHERE CLASSIFIED,Shared Services,Debt Team,DEBT RECOVERY COSTS
Cambridgeshire County Council,22/04/2021,3.35,GREGGS PLC,"EATING PLACES, RESTAURANTS",Changing Futures & Projects,Housing First,OTHER SERVICE USER SUPPORT
Cambridgeshire County Council,22/04/2021,5.85,TESCO STORE 2694,"GROCERY STORES, SUPERMARKETS",LD - In House Provider Services,6 St Lukes Close (Respite),
Cambridgeshire County Council,22/04/2021,5.99,AMZNMKTPLACE,MISCELLANEOUS AND SPECIALTY RETAIL STORES,Outdoor Education (includes Grafham Water),Burwell House Residential Centre,GENERAL OFFICE EXPENSES & STATIONERY
Cambridgeshire County Council,22/04/2021,6.99,NISA,"GROCERY STORES, SUPERMARKETS",Changing Futures & Projects,Housing First,OTHER SERVICE USER SUPPORT
Cambridgeshire County Council,22/04/2021,7.99,AMZNMKTPLACE,MISCELLANEOUS AND SPECIALTY RETAIL STORES,Outdoor Education (includes Grafham Water),Burwell House Residential Centre,CLEANING AND DOMESTIC SUPPLIES
Cambridgeshire County Council,22/04/2021,8.90,WILKO RETAIL LIMITED,MISCELLANEOUS GENERAL MERCHANDISE,Changing Futures & Projects,Counting Every Adult,OTHER SERVICE USER SUPPORT
Cambridgeshire County Council,22/04/2021,10.00,CO-OP GROUP FOOD,"GROCERY STORES, SUPERMARKETS",Changing Futures & Projects,Housing First,
Cambridgeshire County Council,22/04/2021,11.98,AMAZON.CO.UK M45BC7264,DIRECT MARKETING-OTHER DIRECT MARKETERS/NOT ELSEW.,Outdoor Education (includes Grafham Water),Burwell House Residential Centre,CLEANING AND DOMESTIC SUPPLIES
Cambridgeshire County Council,22/04/2021,18.00,TESCO STORES 5657,"GROCERY STORES, SUPERMARKETS",Cambridgeshire Skills,Cambridgeshire Skills - March Community Centre - Learning,GENERAL OFFICE EXPENSES & STATIONERY
Cambridgeshire County Council,22/04/2021,24.03,B&M 042 - ST NEOTS,MISCELLANEOUS GENERAL MERCHANDISE,Targeted Support Service - North,EH Child and Family Centre - Hunts,EDUCATIONAL MATERIALS
Cambridgeshire County Council,22/04/2021,33.00,GEN REGISTER OFFICE,GOVERNMENT SERVICES-NOT ELSEWHERE CLASSIFIED,Corporate Parenting,Separated Migrant Children > 18,GRANTS&SUPPORT FOR OTHER SERVICE USERS
Cambridgeshire County Council,22/04/2021,36.48,CO-OP GROUP FOOD,SERVICE STATIONS WITH OR WITHOUT ANCILLARY SERVICE,Outdoor Education (includes Grafham Water),Burwell House Residential Centre,VEHICLE FUEL
Cambridgeshire County Council,22/04/2021,49.95,ARGOS LTD,DISCOUNT STORES,Changing Futures & Projects,Counting Every Adult,OTHER SERVICE USER SUPPORT
Cambridgeshire County Council,22/04/2021,54.30,HOMEBASE,HOME SUPPLY WAREHOUSE STORES,Outdoor Education (includes Grafham Water),Burwell House Residential Centre,GROUNDS MAINTENANCE
Cambridgeshire County Council,22/04/2021,65.00,BAYFIELD VEHICLE HIRE,"AUTO & TRUCK DLRS-SALES,SVC, REPRS,PRTS, & LEASING",Targeted Support Service - South,EH East Cambridgeshire District,PROFESSIONAL FEES AND HIRED SERVICES
Cambridgeshire County Council,22/04/2021,77.94,AMZNMKTPLACE,MISCELLANEOUS AND SPECIALTY RETAIL STORES,Targeted Support Service - North,EH Child and Family Centre - Wisbech,EDUCATIONAL MATERIALS
Cambridgeshire County Council,22/04/2021,80.00,PAYPAL  SHEPRETHWIL,ADVERTISING SERVICES,Children's Disability Service,Head of RSS,SERVICE CHARGES
Cambridgeshire County Council,22/04/2021,123.98,AMZNMKTPLACE AMAZON.CO,MISCELLANEOUS AND SPECIALTY RETAIL STORES,Outdoor Education (includes Grafham Water),Burwell House Residential Centre,BUILDING REPAIR AND MAINTENANCE
Cambridgeshire County Council,22/04/2021,144.00,WWW.PLANNING.CO,BUSINESS SERVICES-NOT ELSEWHERE CLASSIFIED,Policy Design and Delivery,Policy Design and Delivery,
Cambridgeshire County Council,22/04/2021,150.00,TESCO GIFT CARD,"GROCERY STORES, SUPERMARKETS",Domestic Abuse and Sexual Violence Service,Domestic Violence Unit,
Cambridgeshire County Council,22/04/2021,162.58,THETRAINLINE.COM,PASSENGER RAILWAYS,Corporate Parenting,Separated Migrant Children > 18,CAR MILEAGE AND ALLOWANCES - OTHER
Cambridgeshire County Council,22/04/2021,210.84,SP SERVICES,DENTAL/LAB/MED/OPHTHALMIC HOSP EQUIP & SUPPLIES,School Improvement Service,"Education, Health, Safety and Wellbeing - Outdoor Education",EDUCATIONAL MATERIALS
Cambridgeshire County Council,22/04/2021,254.25,HIGHSTREETVOUCHERS,"ASSOCIATIONS-CIVIC, SOCIAL, AND FRATERNAL",Corporate Parenting,Separated Migrant Children > 18,LEAVING CARE GRANTS
Cambridgeshire County Council,22/04/2021,411.60,CAMBRIDGE MASTER LOCKS,HOUSEHOLD APPLIANCE STORES,Registration & Citizenship Services,Registrars General,SPECIALIST WORKS AND REPAIRS
Cambridgeshire County Council,23/04/2021,5.01,DORRINGTONS,BAKERIES,Changing Futures & Projects,Housing First,
Cambridgeshire County Council,23/04/2021,6.34,FASTHOSTS INTERNET,COMPUTER NETWORK/INFORMATION SERVICES,ICT Service (Education),ICT Service Systems Development,
Cambridgeshire County Council,23/04/2021,7.50,TIMPSON LTD,MISCELLANEOUS AND SPECIALTY RETAIL STORES,LD - In House Provider Services,6 St Lukes Close (Respite),
Cambridgeshire County Council,23/04/2021,7.96,POST OFFICE COUNTER,POSTAL SERVICES-GOVERNMENT ONLY,School Improvement Service,Education Health Safety and Wellbeing: PE & Sport Advisor,PRINTING
Cambridgeshire County Council,23/04/2021,8.67,MCDONALDS,FAST FOOD RESTAURANTS,Changing Futures & Projects,Housing First,
Cambridgeshire County Council,23/04/2021,23.00,AMZNMKTPLACE AMAZON.CO,MISCELLANEOUS AND SPECIALTY RETAIL STORES,ICT Service (Education),ICT Service Systems Development,
Cambridgeshire County Council,23/04/2021,23.19,TESCO STORE 2694,"GROCERY STORES, SUPERMARKETS",LD - In House Provider Services,6 St Lukes Close (Respite),
Cambridgeshire County Council,23/04/2021,29.99,ARGOS LTD,DISCOUNT STORES,Corporate Parenting,North Child Looked After Team 1,ASYLUM SEEKERS
Cambridgeshire County Council,23/04/2021,30.00,WWW.VOUCHEREXPRESS.CO.,"GIFT, CARD, NOVELTY AND SOUVENIR SHOPS",Corporate Parenting,North Child Looked After Team 1,GRANTS&SUPPORT FOR OTHER SERVICE USERS
Cambridgeshire County Council,23/04/2021,30.00,WWW.VOUCHEREXPRESS.CO.,"GIFT, CARD, NOVELTY AND SOUVENIR SHOPS",Corporate Parenting,North Child Looked After Team 1,GRANTS&SUPPORT FOR OTHER SERVICE USERS
Cambridgeshire County Council,23/04/2021,33.45,CASS ART,"ARTIST SUPPLY STORES, CRAFT SHOPS",Outdoor Education (includes Grafham Water),Burwell House Residential Centre,GROUNDS MAINTENANCE
Cambridgeshire County Council,23/04/2021,40.00,WWW.ICO.ORG.UK,GOVERNMENT SERVICES-NOT ELSEWHERE CLASSIFIED,Information Management,Data Protection,
Cambridgeshire County Council,23/04/2021,58.90,TESCO GIFT CARD,"GROCERY STORES, SUPERMARKETS",Corporate Parenting,North Care Leaving Team 1,GRANTS&SUPPORT FOR OTHER SERVICE USERS
Cambridgeshire County Council,23/04/2021,60.31,EE LIMITED,TELECOM INCL PREPAID/RECURRING PHONE SVCS,Outdoor Education (includes Grafham Water),Grafham Water Centre,SUBSCRIPTIONS
Cambridgeshire County Council,23/04/2021,62.82,AMAZON.CO.UK M40FT7KV4,DIRECT MARKETING-OTHER DIRECT MARKETERS/NOT ELSEW.,IT & Digital Service,Business & Digital Systems,
Cambridgeshire County Council,23/04/2021,104.71,WM MORRISONS STORE PIC,"GROCERY STORES, SUPERMARKETS",Children's Disability Service,Head of RSS,CATERING PROVISIONS
Cambridgeshire County Council,23/04/2021,113.70,FACEBK 9MFP44FUK2,ADVERTISING SERVICES,Human Resources,Social Work Recruit & Retain,RECRUITMENT ADVERTISING
Cambridgeshire County Council,23/04/2021,143.77,TRAVELODGE,TRAVELODGE,"Children, Education and Families Directorate","Children, Education and Families Directorate",LIVING SUPPORT GRANTS
Cambridgeshire County Council,23/04/2021,174.76,"TRELLO.COM, ATLASSIAN","COMPUTERS, COMPUTER PERIPHERAL EQUIPMENT, SOFTWARE",Cambridgeshire Music,Cambs Music Holding Account,COMP SOFTWARE-ANNUAL LICENCE AGREEMENT
Cambridgeshire County Council,23/04/2021,286.30,POST OFFICE COUNTER,POSTAL SERVICES-GOVERNMENT ONLY,0-19 Organisation & Planning,Attendance and Behaviour,POSTAGE & CARRIAGE
Cambridgeshire County Council,23/04/2021,360.00,WWW.ADASS.ORG.UK,"ORGANIZATIONS, CHARITABLE AND SOCIAL SERVICES",Executive Director AHC,"Executive Director - Adults, Health & Comissioning",
Cambridgeshire County Council,26/04/2021,-4.49,AMZ AMAZON.CO.UK,DIRECT MARKETING-OTHER DIRECT MARKETERS/NOT ELSEW.,Children's Disability Service,Head of RSS,
Cambridgeshire County Council,26/04/2021,1.85,CO-OP GROUP FOOD,"GROCERY STORES, SUPERMARKETS",Changing Futures & Projects,Housing First,
Cambridgeshire County Council,26/04/2021,2.25,POST OFFICE COUNTER,POSTAL SERVICES-GOVERNMENT ONLY,Children's Disability Service,Disability Referral & Access Team,
Cambridgeshire County Council,26/04/2021,3.00,CAMBRIDGE SPORT LAKES,AUTOMOBILE PARKING LOTS AND GARAGES,"Asst Director - Transport, Strategy & Development",Asst Dir - Infrastrucuture & Growth,
Cambridgeshire County Council,26/04/2021,3.00,WWW.MYRINGGO.CO.UK,AUTOMOBILE PARKING LOTS AND GARAGES,Traffic Management,Traffic,STAFF SUBSISTENCE
Cambridgeshire County Council,26/04/2021,3.50,PETERBOROUGH CITY COUN,AUTOMOBILE PARKING LOTS AND GARAGES,Changing Futures & Projects,Housing First,OTHER SERVICE USER SUPPORT
Cambridgeshire County Council,26/04/2021,4.03,POST OFFICE COUNTER,POSTAL SERVICES-GOVERNMENT ONLY,Changing Futures & Projects,Counting Every Adult,
Cambridgeshire County Council,26/04/2021,4.50,WILKO RETAIL LIMITED,MISCELLANEOUS GENERAL MERCHANDISE,LD - In House Provider Services,6 St Lukes Close (Respite),SPECIALIST SUPPLIES AND MATERIALS
Cambridgeshire County Council,26/04/2021,5.30,NATA LISBOA,FAST FOOD RESTAURANTS,Changing Futures & Projects,Housing First,OTHER SERVICE USER SUPPORT
Cambridgeshire County Council,26/04/2021,7.92,SAINSBURYS SACAT 2007,"GROCERY STORES, SUPERMARKETS",LD - In House Provider Services,6 St Lukes Close (Respite),SPECIALIST SUPPLIES AND MATERIALS
Cambridgeshire County Council,26/04/2021,7.99,AMAZON PRIME M47XE4984,DIRECT MARKETING-CONTINUITY/SUBSCRIPTION MERCHANTS,Children's Disability Service,Head of RSS,SUBSCRIPTIONS
Cambridgeshire County Council,26/04/2021,8.60,COSTA COFFEE 43037840,FAST FOOD RESTAURANTS,Changing Futures & Projects,Housing First,OTHER SERVICE USER SUPPORT
Cambridgeshire County Council,26/04/2021,9.45,ELSE DISCOUNTS LTD,"GIFT, CARD, NOVELTY AND SOUVENIR SHOPS",Cambridgeshire Skills,Cambridgeshire Skills - March Community Centre - Learning,STAFF HEALTH & WELFARE COSTS
Cambridgeshire County Council,26/04/2021,9.45,IZ  HOT NUMBERS COFFEE,"EATING PLACES, RESTAURANTS",Changing Futures & Projects,Housing First,OTHER SERVICE USER SUPPORT
Cambridgeshire County Council,26/04/2021,10.00,B&M 042 - ST NEOTS,MISCELLANEOUS GENERAL MERCHANDISE,Outdoor Education (includes Grafham Water),Grafham Water Centre,SPECIALIST EQUIPMENT FOR SERVICE DELIV
Cambridgeshire County Council,26/04/2021,12.78,AMZNMKTPLACE,MISCELLANEOUS AND SPECIALTY RETAIL STORES,Outdoor Education (includes Grafham Water),Burwell House Residential Centre,CLEANING AND DOMESTIC SUPPLIES
Cambridgeshire County Council,26/04/2021,12.99,AMZNMKTPLACE,MISCELLANEOUS AND SPECIALTY RETAIL STORES,Outdoor Education (includes Grafham Water),Burwell House Residential Centre,CLEANING AND DOMESTIC SUPPLIES
Cambridgeshire County Council,26/04/2021,14.20,AMZNMKTPLACE AMAZON.CO,MISCELLANEOUS AND SPECIALTY RETAIL STORES,Targeted Support Service - South,EH Cambridge City District,BOOKS AND MULTIMEDIA SUPPLIES
Cambridgeshire County Council,26/04/2021,14.31,AMZNMKTPLACE,MISCELLANEOUS AND SPECIALTY RETAIL STORES,Children's Disability Service,Head of RSS,OTHER SERVICE USER SUPPORT
Cambridgeshire County Council,26/04/2021,14.60,HOME BARGAINS,HARDWARE STORES,Early Years Service,Trumpington Park Early Years,EDUCATIONAL EQUIPMENT
Cambridgeshire County Council,26/04/2021,15.25,SAINSBURYS 0417,"GROCERY STORES, SUPERMARKETS",Changing Futures & Projects,Housing First,OTHER SERVICE USER SUPPORT
Cambridgeshire County Council,26/04/2021,16.00,POST OFFICE COUNTER,POSTAL SERVICES-GOVERNMENT ONLY,Safeguarding and Quality Assurance,Safeguarding and Quality Assurance,GENERAL OFFICE EXPENSES & STATIONERY
Cambridgeshire County Council,26/04/2021,17.35,TESCO STORE 2694,"GROCERY STORES, SUPERMARKETS",LD - In House Provider Services,6 St Lukes Close (Respite),
Cambridgeshire County Council,26/04/2021,17.37,AMZNMKTPLACE,MISCELLANEOUS AND SPECIALTY RETAIL STORES,IT & Digital Service,Business & Digital Systems,
Cambridgeshire County Council,26/04/2021,17.60,AMAZON.CO.UK M41AU19E4,DIRECT MARKETING-OTHER DIRECT MARKETERS/NOT ELSEW.,Children's Disability Service,Head of RSS,
Cambridgeshire County Council,26/04/2021,18.77,RIDGEONS NORMAN WAY,"BUILDING MATERIALS, LUMBER STORES",Youth Offending Service,YOT - High Risk and Deter,OFFENDERS SUPPORT
Cambridgeshire County Council,26/04/2021,23.94,J & A (INT) LTD,STATIONERY/OFFICE SUPPLIES/PRINTING & WRITING PAP.,Shorter Term Support and Maximising Independence,Technology Enabled Care (TEC),SPECIALIST EQUIPMENT FOR SERVICE DELIV
Cambridgeshire County Council,26/04/2021,24.99,AMZNMKTPLACE,MISCELLANEOUS AND SPECIALTY RETAIL STORES,Early Years Service,Trumpington Park Early Years,EDUCATIONAL EQUIPMENT
Cambridgeshire County Council,26/04/2021,25.05,AMZN MKTP UK M40P29UP4,BOOK STORES,Coroners,Coroners General,GENERAL OFFICE EXPENSES & STATIONERY
Cambridgeshire County Council,26/04/2021,27.74,AMZNMKTPLACE,MISCELLANEOUS AND SPECIALTY RETAIL STORES,Children's Disability Service,Community Support Service ECF,GENERAL OFFICE EXPENSES & STATIONERY
Cambridgeshire County Council,26/04/2021,29.95,AMZNMKTPLACE,MISCELLANEOUS AND SPECIALTY RETAIL STORES,Shorter Term Support and Maximising Independence,Technology Enabled Care (TEC),SPECIALIST EQUIPMENT FOR SERVICE DELIV
Cambridgeshire County Council,26/04/2021,30.00,AMAZON.CO.UK M456Z6734,DIRECT MARKETING-OTHER DIRECT MARKETERS/NOT ELSEW.,"Communities, Employment & Skills",YS - DfE Essential Skills for Life,
Cambridgeshire County Council,26/04/2021,30.00,AMAZON.CO.UK M44GC97A4,DIRECT MARKETING-OTHER DIRECT MARKETERS/NOT ELSEW.,"Communities, Employment & Skills",YS - DfE Essential Skills for Life,
Cambridgeshire County Council,26/04/2021,41.99,AMZNMKTPLACE,MISCELLANEOUS AND SPECIALTY RETAIL STORES,IT & Digital Service,Business & Digital Systems,
Cambridgeshire County Council,26/04/2021,44.65,ROBINSON HEALTHCARE,DENTAL/LAB/MED/OPHTHALMIC HOSP EQUIP & SUPPLIES,LD - In House Provider Services,6 St Lukes Close (Respite),
Cambridgeshire County Council,26/04/2021,56.70,AMAZON.CO.UK M44A819N4,DIRECT MARKETING-OTHER DIRECT MARKETERS/NOT ELSEW.,Cambridgeshire Skills,Cambridgeshire Skills - March Community Centre - Learning,EDUCATIONAL MATERIALS
Cambridgeshire County Council,26/04/2021,58.81,POST OFFICE COUNTER,POSTAL SERVICES-GOVERNMENT ONLY,Coroners,Coroners General,POSTAGE & CARRIAGE
Cambridgeshire County Council,26/04/2021,58.91,AMAZON.CO.UK M497W0974,DIRECT MARKETING-OTHER DIRECT MARKETERS/NOT ELSEW.,Targeted Support Service - South,EH East Cambridgeshire District,GENERAL OFFICE EXPENSES & STATIONERY
Cambridgeshire County Council,26/04/2021,60.47,WM MORRISONS STORE PIC,"GROCERY STORES, SUPERMARKETS",Children's Disability Service,Head of RSS,CATERING PROVISIONS
Cambridgeshire County Council,26/04/2021,74.00,MAGSUBCRIPTIONS COM,DIRECT MARKETING-CONTINUITY/SUBSCRIPTION MERCHANTS,Strategic Assets,Estates,SUBSCRIPTIONS
Cambridgeshire County Council,26/04/2021,87.16,"TRELLO.COM, ATLASSIAN","COMPUTERS, COMPUTER PERIPHERAL EQUIPMENT, SOFTWARE",Cambridgeshire Music,Cambs Music Holding Account,COMP SOFTWARE-ANNUAL LICENCE AGREEMENT
Cambridgeshire County Council,26/04/2021,90.55,BATTERYSTATION.CO.UK,MISCELLANEOUS AND SPECIALTY RETAIL STORES,Shorter Term Support and Maximising Independence,Technology Enabled Care (TEC),SPECIALIST EQUIPMENT FOR SERVICE DELIV
Cambridgeshire County Council,26/04/2021,100.00,DUNELM,"EQUIP, FURNITURE, HOME FURNSHNGS STRS (EXCPT APPL)",Early Years Service,Trumpington Park Early Years,EDUCATIONAL EQUIPMENT
Cambridgeshire County Council,26/04/2021,110.00,WWW.CIPFA.ORG.UK,"ORGANIZATIONS, MEMBERSHIP-NOT ELSEWHERE CLASSIFIED",Internal Audit,Audit Division,EXAM FEES
Cambridgeshire County Council,26/04/2021,112.25,TESCO STORE 2555,"GROCERY STORES, SUPERMARKETS",LD - In House Provider Services,40 & 44 Russell Street,CATERING PROVISIONS
Cambridgeshire County Council,26/04/2021,139.95,ARGOS LTD,DISCOUNT STORES,Corporate Parenting,North Care Leaving Team 1,LEAVING CARE GRANTS
Cambridgeshire County Council,26/04/2021,182.00,TEJAYCEY BOARDING KENN,PET SHOPS - PET FOODS AND SUPPLIES,Performance & Strategic Development,Adults Central Business Support,
Cambridgeshire County Council,26/04/2021,184.07,WWW.EASYEQUIPMENT.COM,"COMMERCIAL EQUIPMENT, NOT ELSEWHERE CLASSIFIED",Public Library Services,Support - Business Support,
Cambridgeshire County Council,26/04/2021,200.00,PAYPAL  FACEBOOK FACEB,ADVERTISING SERVICES,Cambridgeshire Skills,Cambridgeshire Skills - March Community Centre - Learning,ADVERTISING/PUBLICITY (NON RECRUITMENT)
Cambridgeshire County Council,26/04/2021,205.50,WWW.VOUCHEREXPRESS.CO.,"GIFT, CARD, NOVELTY AND SOUVENIR SHOPS",Domestic Abuse and Sexual Violence Service,Domestic Violence Unit,
Cambridgeshire County Council,26/04/2021,392.09,FINDEL EDUCATION,DIRECT MARKETING-OTHER DIRECT MARKETERS/NOT ELSEW.,Performance & Strategic Development,Adults Central Business Support,
Cambridgeshire County Council,26/04/2021,430.00,TWITTER ONLINE ADS,ADVERTISING SERVICES,Human Resources,Social Work Recruit & Retain,RECRUITMENT ADVERTISING
Cambridgeshire County Council,26/04/2021,700.00,FACEBK  Y9DGF3PV52,ADVERTISING SERVICES,Communication and Information,Communication and Information,
Cambridgeshire County Council,27/04/2021,0.75,DUNELM LTD,"DRAPERY, UPOLSTERY, AND WINDOW COVERINGS STORES",Changing Futures & Projects,Housing First,OTHER SERVICE USER SUPPORT
Cambridgeshire County Council,27/04/2021,1.45,CO-OP GROUP FOOD,"GROCERY STORES, SUPERMARKETS",Changing Futures & Projects,Housing First,
Cambridgeshire County Council,27/04/2021,3.00,HM LAND REGISTRY - ONL,GOVERNMENT SERVICES-NOT ELSEWHERE CLASSIFIED,Shared Services,Debt Team,DEBT RECOVERY COSTS
Cambridgeshire County Council,27/04/2021,3.19,AMAZON.CO.UK M46UT7WT4,DIRECT MARKETING-OTHER DIRECT MARKETERS/NOT ELSEW.,Children's Disability Service,Head of RSS,
Cambridgeshire County Council,27/04/2021,3.62,ALDI 10 776,"GROCERY STORES, SUPERMARKETS",Early Years Service,Trumpington Park Early Years,CATERING PROVISIONS
Cambridgeshire County Council,27/04/2021,3.70,GRAFHAM WATER PARK,AUTOMOBILE PARKING LOTS AND GARAGES,Youth Offending Service,YOT - High Risk and Deter,OFFENDERS SUPPORT
Cambridgeshire County Council,27/04/2021,3.80,GRAFHAM VISIOR CEN,"CLUBS-CNTRY,MBRSHIP(ATHLET,REC,SPRTS,PRIVATE GOLF",Youth Offending Service,YOT - High Risk and Deter,OFFENDERS SUPPORT
Cambridgeshire County Council,27/04/2021,5.99,AMAZON.CO.UK M41YC7WA4,DIRECT MARKETING-OTHER DIRECT MARKETERS/NOT ELSEW.,Children's Disability Service,Head of RSS,BOOKS AND MULTIMEDIA SUPPLIES
Cambridgeshire County Council,27/04/2021,6.99,AMZNMKTPLACE,MISCELLANEOUS AND SPECIALTY RETAIL STORES,Children's Disability Service,Head of RSS,
Cambridgeshire County Council,27/04/2021,8.95,REPLACEMENT KEYS LTD,MISCELLANEOUS GENERAL MERCHANDISE,LD - In House Provider Services,"Larkfield, Ely",GENERAL OFFICE EXPENSES & STATIONERY
Cambridgeshire County Council,27/04/2021,8.99,AMZNMKTPLACE,MISCELLANEOUS AND SPECIALTY RETAIL STORES,Children's Disability Service,Head of RSS,
Cambridgeshire County Council,27/04/2021,10.40,ASDA STORES,"GROCERY STORES, SUPERMARKETS",Early Years Service,Trumpington Park Early Years,EDUCATIONAL EQUIPMENT
Cambridgeshire County Council,27/04/2021,10.95,POST OFFICE COUNTER,POSTAL SERVICES-GOVERNMENT ONLY,Coroners,Coroners General,POSTAGE & CARRIAGE
Cambridgeshire County Council,27/04/2021,12.50,ARGOS LTD,DISCOUNT STORES,Changing Futures & Projects,Housing First,
Cambridgeshire County Council,27/04/2021,12.99,AMZNMKTPLACE,MISCELLANEOUS AND SPECIALTY RETAIL STORES,Domestic Abuse and Sexual Violence Service,Domestic Violence Unit,
Cambridgeshire County Council,27/04/2021,13.95,AMZNMKTPLACE AMAZON.CO,MISCELLANEOUS AND SPECIALTY RETAIL STORES,Children's Disability Service,Head of RSS,EQUIPMENT AND TOOLS
Cambridgeshire County Council,27/04/2021,13.98,AMZNMKTPLACE,MISCELLANEOUS AND SPECIALTY RETAIL STORES,Children's Disability Service,Head of RSS,
Cambridgeshire County Council,27/04/2021,15.45,SAINSBURYS 0417,"GROCERY STORES, SUPERMARKETS",Changing Futures & Projects,Housing First,
Cambridgeshire County Council,27/04/2021,16.50,TESCO STORE 2889,"GROCERY STORES, SUPERMARKETS",LD - In House Provider Services,Horizon,CATERING PROVISIONS
Cambridgeshire County Council,27/04/2021,18.49,AMZNMKTPLACE AMAZON.CO,MISCELLANEOUS AND SPECIALTY RETAIL STORES,Children's Disability Service,Head of RSS,
Cambridgeshire County Council,27/04/2021,21.90,AMZNMKTPLACE,MISCELLANEOUS AND SPECIALTY RETAIL STORES,LD - In House Provider Services,"Larkfield, Ely",GENERAL OFFICE EXPENSES & STATIONERY
Cambridgeshire County Council,27/04/2021,23.70,AMZNMKTPLACE,MISCELLANEOUS AND SPECIALTY RETAIL STORES,Children's Disability Service,Head of RSS,
Cambridgeshire County Council,27/04/2021,24.00,HIGHSPEEDTRAINING.CO.U,"SCHOOLS, BUSINESS AND SECRETARIAL",Outdoor Education (includes Grafham Water),CEES Stibbington Centre,STAFF TRAINING & DEVELOPMENT
Cambridgeshire County Council,27/04/2021,24.00,HIGHSPEEDTRAINING.CO.U,"SCHOOLS, BUSINESS AND SECRETARIAL",Outdoor Education (includes Grafham Water),CEES Stibbington Centre,STAFF TRAINING & DEVELOPMENT
Cambridgeshire County Council,27/04/2021,26.64,POST OFFICE COUNTER,POSTAL SERVICES-GOVERNMENT ONLY,Cambridgeshire Skills,Cambridgeshire Skills - March Community Centre - Learning,EDUCATIONAL MATERIALS
Cambridgeshire County Council,27/04/2021,28.12,AMZNMKTPLACE AMAZON.CO,MISCELLANEOUS AND SPECIALTY RETAIL STORES,Targeted Support Service - North,EH Child and Family Centre - Wisbech,EDUCATIONAL MATERIALS
Cambridgeshire County Council,27/04/2021,30.00,WWW.WATERSTONESGIFTCAR,BOOK STORES,"Communities, Employment & Skills",YS - DfE Essential Skills for Life,
Cambridgeshire County Council,27/04/2021,51.09,TESCO STORES 2228,"GROCERY STORES, SUPERMARKETS",Children's Disability Service,Head of RSS,CATERING PROVISIONS
Cambridgeshire County Council,27/04/2021,59.77,WM MORRISONS STORE PIC,"GROCERY STORES, SUPERMARKETS",Children's Disability Service,Head of RSS,CATERING PROVISIONS
Cambridgeshire County Council,27/04/2021,62.00,WWW.THEWORKS.CO.UK,DISCOUNT STORES,Cambridgeshire Skills,Cambridgeshire Skills - March Community Centre - Learning,EDUCATIONAL MATERIALS
Cambridgeshire County Council,27/04/2021,65.70,DUNELM LTD,"DRAPERY, UPOLSTERY, AND WINDOW COVERINGS STORES",Changing Futures & Projects,Housing First,OTHER SERVICE USER SUPPORT
Cambridgeshire County Council,27/04/2021,90.00,BAYFIELD VEHICLE HIRE,"AUTO & TRUCK DLRS-SALES,SVC, REPRS,PRTS, & LEASING",Changing Futures & Projects,Housing First,OTHER SERVICE USER SUPPORT
Cambridgeshire County Council,27/04/2021,112.34,TESCO STORES 2228,"GROCERY STORES, SUPERMARKETS",Children's Disability Service,Head of RSS,CATERING PROVISIONS
Cambridgeshire County Council,27/04/2021,408.00,BOING RAPID SECURE LTD,BUSINESS SERVICES-NOT ELSEWHERE CLASSIFIED,Changing Futures & Projects,Counting Every Adult,
Cambridgeshire County Council,27/04/2021,454.00,CURRYS ONLINE,ELECTRONIC SALES,LD - In House Provider Services,40 & 44 Russell Street,"FIXTURES, FITTINGS AND FURNISHINGS"
Cambridgeshire County Council,28/04/2021,-228.60,WWW.MACOIDIRECT.CO,"EQUIP, FURNITURE, HOME FURNSHNGS STRS (EXCPT APPL)",Climate and Energy Services,Commercial Activities,
Cambridgeshire County Council,28/04/2021,-40.00,ASDA GROCERIES ONLINE,"GROCERY STORES, SUPERMARKETS",Early Years Service,Trumpington Park Early Years,EDUCATIONAL EQUIPMENT
Cambridgeshire County Council,28/04/2021,1.50,TESCO STORES 2228,"GROCERY STORES, SUPERMARKETS",Children's Disability Service,Head of RSS,CATERING EQUIPMENT-PURCHASES
Cambridgeshire County Council,28/04/2021,7.99,AMZNMKTPLACE,MISCELLANEOUS AND SPECIALTY RETAIL STORES,Children's Disability Service,Head of RSS,GENERAL OFFICE EXPENSES & STATIONERY
Cambridgeshire County Council,28/04/2021,8.98,WWW.VISS.CO.UK,DISCOUNT STORES,Children's Disability Service,Head of RSS,FOOD PACKAGING
Cambridgeshire County Council,28/04/2021,10.00,MIP TESCO MOBILE TOPUP,TELECOM INCL PREPAID/RECURRING PHONE SVCS,Corporate Parenting,Separated Migrant Children > 18,GRANTS&SUPPORT FOR OTHER SERVICE USERS
Cambridgeshire County Council,28/04/2021,11.00,GEN REGISTER OFFICE,GOVERNMENT SERVICES-NOT ELSEWHERE CLASSIFIED,Corporate Parenting,Separated Migrant Children > 18,GRANTS&SUPPORT FOR OTHER SERVICE USERS
Cambridgeshire County Council,28/04/2021,11.70,AMZNMKTPLACE,MISCELLANEOUS AND SPECIALTY RETAIL STORES,Children's Disability Service,Head of RSS,CATERING PROVISIONS
Cambridgeshire County Council,28/04/2021,12.00,FREEDOM PROGRAMME LIMI,SCHOOLS & EDUCATIONAL SVC-NOT ELSEWHERE CLASSIFIED,Children's Disability Service,Disability Referral & Access Team,
Cambridgeshire County Council,28/04/2021,13.20,MACKAYS OF CAMBS,"BUILDING MATERIALS, LUMBER STORES",Youth Offending Service,YOT - High Risk and Deter,OFFENDERS SUPPORT
Cambridgeshire County Council,28/04/2021,13.87,AMAZON.CO.UK M43TE7Y44,DIRECT MARKETING-OTHER DIRECT MARKETERS/NOT ELSEW.,Virtual School,Virtual School for Care Experienced Children,
Cambridgeshire County Council,28/04/2021,15.99,WWW.THEWORKS.CO.UK,DISCOUNT STORES,Children's Disability Service,Head of RSS,BOOKS AND MULTIMEDIA SUPPLIES
Cambridgeshire County Council,28/04/2021,24.00,TESCO STORE 2065,"GROCERY STORES, SUPERMARKETS",Parking Enforcement,On Street Parking,PROTECTIVE CLOTHING
Cambridgeshire County Council,28/04/2021,26.97,AMZNMKTPLACE AMAZON.CO,MISCELLANEOUS AND SPECIALTY RETAIL STORES,Children's Disability Service,Head of RSS,
Cambridgeshire County Council,28/04/2021,33.00,PETERBOROUGH DIRECT,GOVERNMENT SERVICES-NOT ELSEWHERE CLASSIFIED,Family Safeguarding East,Fenland Children's Team 2,
Cambridgeshire County Council,28/04/2021,33.00,GEN REGISTER OFFICE,GOVERNMENT SERVICES-NOT ELSEWHERE CLASSIFIED,Corporate Parenting,Separated Migrant Children > 18,GRANTS&SUPPORT FOR OTHER SERVICE USERS
Cambridgeshire County Council,28/04/2021,44.89,ASDA GROCERIES ONLINE,"GROCERY STORES, SUPERMARKETS",Early Years Service,Trumpington Park Early Years,EDUCATIONAL EQUIPMENT
Cambridgeshire County Council,28/04/2021,51.52,ALDI STORES CHELMSFORD,"GROCERY STORES, SUPERMARKETS",Early Years Service,Trumpington Park Early Years,CATERING PROVISIONS
Cambridgeshire County Council,28/04/2021,53.52,AMAZON.CO.UK M44TQ9YO4,DIRECT MARKETING-OTHER DIRECT MARKETERS/NOT ELSEW.,Outdoor Education (includes Grafham Water),Grafham Water Centre,EDUCATIONAL EQUIPMENT
Cambridgeshire County Council,28/04/2021,62.90,ARGOS LTD,DISCOUNT STORES,Changing Futures & Projects,Counting Every Adult,
Cambridgeshire County Council,28/04/2021,93.70,TESCO STORES 2228,"GROCERY STORES, SUPERMARKETS",Children's Disability Service,Head of RSS,CATERING PROVISIONS
Cambridgeshire County Council,28/04/2021,124.44,WM MORRISONS STORE PIC,"GROCERY STORES, SUPERMARKETS",Children's Disability Service,Head of RSS,
Cambridgeshire County Council,28/04/2021,148.95,ARGOS LTD,DISCOUNT STORES,Targeted Support Service - South,EH Child and Family Centre - Cambridge City,"FIXTURES, FITTINGS AND FURNISHINGS"
Cambridgeshire County Council,29/04/2021,-12.75,AMZNMKTPLACE,MISCELLANEOUS AND SPECIALTY RETAIL STORES,Children's Disability Service,Community Support Service ECF,GENERAL OFFICE EXPENSES & STATIONERY
Cambridgeshire County Council,29/04/2021,2.25,POST OFFICE COUNTER,POSTAL SERVICES-GOVERNMENT ONLY,Corporate Parenting,North Care Leaving Team 1,GRANTS&SUPPORT FOR OTHER SERVICE USERS
Cambridgeshire County Council,29/04/2021,6.75,ROYAL MAIL GROUP LTD,POSTAL SERVICES-GOVERNMENT ONLY,Corporate Parenting,North Care Leaving Team 1,GRANTS&SUPPORT FOR OTHER SERVICE USERS
Cambridgeshire County Council,29/04/2021,7.15,AMAZON.CO.UK MK5XC8OA4,DIRECT MARKETING-OTHER DIRECT MARKETERS/NOT ELSEW.,Children's Disability Service,Head of RSS,
Cambridgeshire County Council,29/04/2021,10.00,TESCO STORES 4844,"GROCERY STORES, SUPERMARKETS",Changing Futures & Projects,Counting Every Adult,OTHER SERVICE USER SUPPORT
Cambridgeshire County Council,29/04/2021,10.00,TESCO STORE 3023,"GROCERY STORES, SUPERMARKETS",Changing Futures & Projects,Counting Every Adult,
Cambridgeshire County Council,29/04/2021,11.40,AMAZON.CO.UK MK53T2OF4,DIRECT MARKETING-OTHER DIRECT MARKETERS/NOT ELSEW.,Children's Disability Service,Head of RSS,
Cambridgeshire County Council,29/04/2021,14.99,AMZNMKTPLACE,MISCELLANEOUS AND SPECIALTY RETAIL STORES,LD - In House Provider Services,6 St Lukes Close (Respite),
Cambridgeshire County Council,29/04/2021,16.79,AMZNMKTPLACE,MISCELLANEOUS AND SPECIALTY RETAIL STORES,Outdoor Education (includes Grafham Water),Grafham Water Centre,EQUIPMENT AND TOOLS
Cambridgeshire County Council,29/04/2021,20.27,DNH GO DADDY EUROPE GB,COMPUTER NETWORK/INFORMATION SERVICES,ICT Service (Education),ICT Service Systems Development,
Cambridgeshire County Council,29/04/2021,20.60,AMAZON.CO.UK MK13V6OR4,DIRECT MARKETING-OTHER DIRECT MARKETERS/NOT ELSEW.,Outdoor Education (includes Grafham Water),Grafham Water Centre,EQUIPMENT AND TOOLS
Cambridgeshire County Council,29/04/2021,21.24,AMZNMKTPLACE,MISCELLANEOUS AND SPECIALTY RETAIL STORES,Performance & Strategic Development,Adults Central Business Support,
Cambridgeshire County Council,29/04/2021,22.99,NOW TV,"CABLE, SATELLITE, OTHER PAY TELEVISION, RADIO SVCS",Changing Futures & Projects,Housing First,OTHER SERVICE USER SUPPORT
Cambridgeshire County Council,29/04/2021,25.65,POST OFFICE COUNTER,POSTAL SERVICES-GOVERNMENT ONLY,Coroners,Coroners General,POSTAGE & CARRIAGE
Cambridgeshire County Council,29/04/2021,26.12,POST OFFICE COUNTER,POSTAL SERVICES-GOVERNMENT ONLY,Cambridgeshire Skills,Cambridgeshire Skills - March Community Centre - Learning,GENERAL OFFICE EXPENSES & STATIONERY
Cambridgeshire County Council,29/04/2021,42.25,GEN REGISTER OFFICE,GOVERNMENT SERVICES-NOT ELSEWHERE CLASSIFIED,Family Safeguarding East,Fenland Children's Team 2,
Cambridgeshire County Council,29/04/2021,58.90,TESCO GIFT CARD,"GROCERY STORES, SUPERMARKETS",Corporate Parenting,North Care Leaving Team 1,GRANTS&SUPPORT FOR OTHER SERVICE USERS
Cambridgeshire County Council,29/04/2021,59.34,AMZNMKTPLACE AMAZON.CO,MISCELLANEOUS AND SPECIALTY RETAIL STORES,Children's Disability Service,Head of RSS,OTHER SERVICE USER SUPPORT
Cambridgeshire County Council,29/04/2021,69.24,AMZNMKTPLACE,MISCELLANEOUS AND SPECIALTY RETAIL STORES,Cambridgeshire Skills,Cambridgeshire Skills - March Community Centre - Learning,EDUCATIONAL MATERIALS
Cambridgeshire County Council,29/04/2021,78.00,TESCO PAY AT PUMP 3855,"FUEL DISPENSER, AUTOMATED",Park & Ride,Park and Ride Admin,VEHICLE FUEL
Cambridgeshire County Council,29/04/2021,120.00,TYPOMANIA SERVICES,"COMP PROGRAMING,DATA PRCSNG,INTGRTD SYS DSGN SRVS",Cambridgeshire Music,Cambs Music Holding Account,
Cambridgeshire County Council,29/04/2021,169.99,CURRYS ONLINE,ELECTRONIC SALES,Children's Disability Service,Head of RSS,CATERING EQUIPMENT-PURCHASES
Cambridgeshire County Council,29/04/2021,172.62,WWW.TALKTALKBUSINESS.C,COMPUTER NETWORK/INFORMATION SERVICES,Park & Ride,Park and Ride Admin,TELEPHONE COSTS
Cambridgeshire County Council,29/04/2021,342.87,FACEBK  FU27N2FV52,ADVERTISING SERVICES,Communication and Information,Communication and Information,
Cambridgeshire County Council,30/04/2021,3.00,HM LAND REGISTRY - ONL,GOVERNMENT SERVICES-NOT ELSEWHERE CLASSIFIED,Shared Services,Debt Team,DEBT RECOVERY COSTS
Cambridgeshire County Council,30/04/2021,3.00,HM LAND REGISTRY - ONL,GOVERNMENT SERVICES-NOT ELSEWHERE CLASSIFIED,Shared Services,Debt Team,DEBT RECOVERY COSTS
Cambridgeshire County Council,30/04/2021,6.24,AMAZON.CO.UK MK9VN44I4,DIRECT MARKETING-OTHER DIRECT MARKETERS/NOT ELSEW.,Virtual School,Virtual School for Care Experienced Children,
Cambridgeshire County Council,30/04/2021,7.69,AMAZON.CO.UK MK5A074W4,DIRECT MARKETING-OTHER DIRECT MARKETERS/NOT ELSEW.,Children's Disability Service,Community Support Service ECF,
Cambridgeshire County Council,30/04/2021,9.00,CO-OP GROUP 171901,"GROCERY STORES, SUPERMARKETS",Changing Futures & Projects,Housing First,OTHER SERVICE USER SUPPORT
Cambridgeshire County Council,30/04/2021,10.00,SKY DIGITAL INTERN,"CABLE, SATELLITE, OTHER PAY TELEVISION, RADIO SVCS",Changing Futures & Projects,Housing First,OTHER SERVICE USER SUPPORT
Cambridgeshire County Council,30/04/2021,11.27,POST OFFICE COUNTER,POSTAL SERVICES-GOVERNMENT ONLY,School Improvement Service,"Education, Health, Safety and Wellbeing - Outdoor Education",POSTAGE & CARRIAGE
Cambridgeshire County Council,30/04/2021,11.36,POST OFFICE COUNTER,POSTAL SERVICES-GOVERNMENT ONLY,Coroners,Coroners General,POSTAGE & CARRIAGE
Cambridgeshire County Council,30/04/2021,11.99,1 AND 1 IONOS LTD,COMPUTER NETWORK/INFORMATION SERVICES,"Communities, Employment & Skills",YS - Cambridge Community ARC,GENERAL OFFICE EXPENSES & STATIONERY
Cambridgeshire County Council,30/04/2021,12.75,AMZNMKTPLACE,MISCELLANEOUS AND SPECIALTY RETAIL STORES,Changing Futures & Projects,Housing First,OTHER SERVICE USER SUPPORT
Cambridgeshire County Council,30/04/2021,13.14,PARCELFORCE WL,"COURIER SVC-AIR & GROUND, FREIGHT FORWARDERS",ICT Service (Education),ICT Service Systems Development,
Cambridgeshire County Council,30/04/2021,13.98,AMAZON.CO.UK MK61O5LA4,DIRECT MARKETING-OTHER DIRECT MARKETERS/NOT ELSEW.,Targeted Support Service - South,EH Cambridge City District,BOOKS AND MULTIMEDIA SUPPLIES
Cambridgeshire County Council,30/04/2021,15.00,NCC INCOME,GOVERNMENT SERVICES-NOT ELSEWHERE CLASSIFIED,0-19 Organisation & Planning,Attendance and Behaviour,PROFESSIONAL FEES AND HIRED SERVICES
Cambridgeshire County Council,30/04/2021,16.99,SCREWFIX DIRECT,"BUILDING MATERIALS, LUMBER STORES",Park & Ride,Park and Ride Admin,CLEANING AND DOMESTIC SUPPLIES
Cambridgeshire County Council,30/04/2021,17.50,B & Q 1140,HOME SUPPLY WAREHOUSE STORES,School Improvement Service,Adventure Playground,GROUNDS MAINTENANCE
Cambridgeshire County Council,30/04/2021,25.11,AMZNMKTPLACE,MISCELLANEOUS AND SPECIALTY RETAIL STORES,Targeted Support Service - North,EH Child and Family Centre - Wisbech,EDUCATIONAL MATERIALS
Cambridgeshire County Council,30/04/2021,26.35,AMZNMKTPLACE,MISCELLANEOUS AND SPECIALTY RETAIL STORES,Family Safeguarding East,Adolescent Team South,EDUCATIONAL MATERIALS
Cambridgeshire County Council,30/04/2021,29.99,SCREWFIX DIRECT,"BUILDING MATERIALS, LUMBER STORES",Youth Offending Service,Safer Relationships Team,
Cambridgeshire County Council,30/04/2021,30.00,WP-THE BRITISH ASS,"ORGANIZATIONS, CHARITABLE AND SOCIAL SERVICES",Early Years Service,Early Years Workforce Development,
Cambridgeshire County Council,30/04/2021,34.32,ROYAL MAIL GROUP,POSTAL SERVICES-GOVERNMENT ONLY,0-19 Organisation & Planning,Attendance and Behaviour,POSTAGE & CARRIAGE
Cambridgeshire County Council,30/04/2021,35.95,ARGOS LTD,DISCOUNT STORES,Targeted Support Service - North,YS - GPC recode,
Cambridgeshire County Council,30/04/2021,46.92,AMAZON.CO.UK MK81X14X4,DIRECT MARKETING-OTHER DIRECT MARKETERS/NOT ELSEW.,Registration & Citizenship Services,Registrars General,GENERAL OFFICE EXPENSES & STATIONERY
Cambridgeshire County Council,30/04/2021,50.00,HIGHSTREET VOUCHERS,"ASSOCIATIONS-CIVIC, SOCIAL, AND FRATERNAL",Corporate Parenting,Separated Migrant Children > 18,LIVING SPPORT GRANTS-FIN ASSIS 18+
Cambridgeshire County Council,30/04/2021,52.89,TESCO STORE 2694,"GROCERY STORES, SUPERMARKETS",LD - In House Provider Services,6 St Lukes Close (Respite),
Cambridgeshire County Council,30/04/2021,55.00,NCC INCOME,GOVERNMENT SERVICES-NOT ELSEWHERE CLASSIFIED,0-19 Organisation & Planning,Attendance and Behaviour,PROFESSIONAL FEES AND HIRED SERVICES
Cambridgeshire County Council,30/04/2021,57.84,AMZNMKTPLACE,MISCELLANEOUS AND SPECIALTY RETAIL STORES,Children's Disability Service,Community Support Service ECF,
Cambridgeshire County Council,30/04/2021,79.43,TRAINLINE,PASSENGER RAILWAYS,Corporate Parenting,Separated Migrant Children > 18,VEHICLE AND PLANT HIRE
Cambridgeshire County Council,30/04/2021,89.84,B&M 292 - MARCH,MISCELLANEOUS GENERAL MERCHANDISE,LD - In House Provider Services,IHPS - Tennyson Lodge,SPECIALIST EQUIPMENT FOR SERVICE DELIV
Cambridgeshire County Council,30/04/2021,112.91,WM MORRISONS STORE PIC,"GROCERY STORES, SUPERMARKETS",Children's Disability Service,Head of RSS,CATERING PROVISIONS
Cambridgeshire County Council,30/04/2021,439.00,RBI QSS SUBS,"BOOKS,PERIODICALS AND NEWSPAPERS",Strategic Assets,Estates,SUBSCRIPTIONS
Cambridgeshire County Council,03/05/2021,0.50,THE WORKS,DISCOUNT STORES,Changing Futures & Projects,Housing First,OTHER SERVICE USER SUPPORT
Cambridgeshire County Council,03/05/2021,1.20,PARKING FEE,AUTOMOBILE PARKING LOTS AND GARAGES,Highways Maintenance,Bridges Works,BRIDGE MAINTENANCE
Cambridgeshire County Council,03/05/2021,1.75,SAINSBURYS 2007,"GROCERY STORES, SUPERMARKETS",LD - In House Provider Services,6 St Lukes Close (Respite),CATERING PROVISIONS
Cambridgeshire County Council,03/05/2021,2.90,3C_ SABA CARPARKS - NE,AUTOMOBILE PARKING LOTS AND GARAGES,"Communities, Employment & Skills",YS - National Citizen Service,
Cambridgeshire County Council,03/05/2021,2.90,3C_ SABA CARPARKS - NE,AUTOMOBILE PARKING LOTS AND GARAGES,"Communities, Employment & Skills",YS - National Citizen Service,
Cambridgeshire County Council,03/05/2021,3.00,HM LAND REGISTRY - ONL,GOVERNMENT SERVICES-NOT ELSEWHERE CLASSIFIED,Shared Services,Debt Team,DEBT RECOVERY COSTS
Cambridgeshire County Council,03/05/2021,3.00,HM LAND REGISTRY - ONL,GOVERNMENT SERVICES-NOT ELSEWHERE CLASSIFIED,Shared Services,Debt Team,DEBT RECOVERY COSTS
Cambridgeshire County Council,03/05/2021,5.00,SAINSBURYS 2007,"GROCERY STORES, SUPERMARKETS",LD - In House Provider Services,6 St Lukes Close (Respite),
Cambridgeshire County Council,03/05/2021,5.99,DISNEY PLUS,"CABLE, SATELLITE, OTHER PAY TELEVISION, RADIO SVCS",Fostering & Supervised Contact Services,Head of Fostering & Supervised Contact,
Cambridgeshire County Council,03/05/2021,7.99,AMAZON PRIME MK3M20N84,DIRECT MARKETING-CONTINUITY/SUBSCRIPTION MERCHANTS,Virtual School,Virtual School for Care Experienced Children,
Cambridgeshire County Council,03/05/2021,9.98,CHICKEN COTTAGE,FAST FOOD RESTAURANTS,Changing Futures & Projects,Housing First,OTHER SERVICE USER SUPPORT
Cambridgeshire County Council,03/05/2021,9.99,HOME BARGAINS,HARDWARE STORES,Targeted Support Service - South,EH Child and Family Centre - South Cambs,CLEANING AND DOMESTIC SUPPLIES
Cambridgeshire County Council,03/05/2021,10.00,HIGHSTREET VOUCHERS,"ASSOCIATIONS-CIVIC, SOCIAL, AND FRATERNAL",Corporate Parenting,Separated Migrant Children > 18,LIVING SPPORT GRANTS-FIN ASSIS 18+
Cambridgeshire County Council,03/05/2021,10.00,HIGHSTREET VOUCHERS,"ASSOCIATIONS-CIVIC, SOCIAL, AND FRATERNAL",Corporate Parenting,Separated Migrant Children > 18,LIVING SPPORT GRANTS-FIN ASSIS 18+
Cambridgeshire County Council,03/05/2021,10.00,HIGHSTREET VOUCHERS,"ASSOCIATIONS-CIVIC, SOCIAL, AND FRATERNAL",Corporate Parenting,Separated Migrant Children > 18,SPECIALIST EQUIPMENT FOR SERVICE DELIV
Cambridgeshire County Council,03/05/2021,10.11,AWS EMEA,BUSINESS SERVICES-NOT ELSEWHERE CLASSIFIED,ICT Service (Education),ICT Service Systems Development,
Cambridgeshire County Council,03/05/2021,12.85,ICELAND,"GROCERY STORES, SUPERMARKETS",LD - In House Provider Services,6 St Lukes Close (Respite),
Cambridgeshire County Council,03/05/2021,13.00,CO OP GROUP FOOD,"GROCERY STORES, SUPERMARKETS",Changing Futures & Projects,Housing First,
Cambridgeshire County Council,03/05/2021,13.99,NETFLIX.COM,"CABLE, SATELLITE, OTHER PAY TELEVISION, RADIO SVCS",Fostering & Supervised Contact Services,Head of Fostering & Supervised Contact,
Cambridgeshire County Council,03/05/2021,14.00,TESCO STORES 2470,"GROCERY STORES, SUPERMARKETS",SEND Specialist Services,Head of SEND Services (0-25),GENERAL OFFICE EXPENSES & STATIONERY
Cambridgeshire County Council,03/05/2021,16.57,AMZNMKTPLACE,MISCELLANEOUS AND SPECIALTY RETAIL STORES,Early Years Service,Trumpington Park Early Years,EDUCATIONAL EQUIPMENT
Cambridgeshire County Council,03/05/2021,16.96,SCREWFIX DIR LTD,"BUILDING MATERIALS, LUMBER STORES",Outdoor Education (includes Grafham Water),Burwell House Residential Centre,BUILDING REPAIR AND MAINTENANCE
Cambridgeshire County Council,03/05/2021,19.99,DROPBOX,COMPUTER NETWORK/INFORMATION SERVICES,Cambridgeshire Music,Cambs Music Holding Account,COMP SOFTWARE-ANNUAL LICENCE AGREEMENT
Cambridgeshire County Council,03/05/2021,19.99,TESCO STORES 2228,"GROCERY STORES, SUPERMARKETS",Changing Futures & Projects,Housing First,OTHER SERVICE USER SUPPORT
Cambridgeshire County Council,03/05/2021,20.00,HIGHSTREET VOUCHERS,"ASSOCIATIONS-CIVIC, SOCIAL, AND FRATERNAL",Corporate Parenting,Separated Migrant Children > 18,LIVING SPPORT GRANTS-FIN ASSIS 18+
Cambridgeshire County Council,03/05/2021,20.00,TESCO GIFT CARD,"GROCERY STORES, SUPERMARKETS",Corporate Parenting,Separated Migrant Children > 18,ASYLUM SEEKERS
Cambridgeshire County Council,03/05/2021,20.00,HIGHSTREET VOUCHERS,"ASSOCIATIONS-CIVIC, SOCIAL, AND FRATERNAL",Corporate Parenting,Separated Migrant Children > 18,LIVING SPPORT GRANTS-FIN ASSIS 18+
Cambridgeshire County Council,03/05/2021,20.00,HIGHSTREET VOUCHERS,"ASSOCIATIONS-CIVIC, SOCIAL, AND FRATERNAL",Corporate Parenting,Separated Migrant Children > 18,SPECIALIST EQUIPMENT FOR SERVICE DELIV
Cambridgeshire County Council,03/05/2021,20.30,TESCO STORE 2694,"GROCERY STORES, SUPERMARKETS",LD - In House Provider Services,6 St Lukes Close (Respite),
Cambridgeshire County Council,03/05/2021,21.00,WILKO RETAIL LIMITED,MISCELLANEOUS GENERAL MERCHANDISE,Alternative Provision and Inclusion,Alternative Education Service & EIO's,
Cambridgeshire County Council,03/05/2021,21.15,AMZNMKTPLACE AMAZON.CO,MISCELLANEOUS AND SPECIALTY RETAIL STORES,LD - In House Provider Services,Horizon,SPECIALIST SUPPLIES AND MATERIALS
Cambridgeshire County Council,03/05/2021,25.19,SAINSBURYS 0815,"GROCERY STORES, SUPERMARKETS",Changing Futures & Projects,Housing First,OTHER SERVICE USER SUPPORT
Cambridgeshire County Council,03/05/2021,28.78,DNH GODADDY.COM EUROPE,COMPUTER NETWORK/INFORMATION SERVICES,ICT Service (Education),ICT Service Systems Development,
Cambridgeshire County Council,03/05/2021,30.00,TESCO GIFT CARD,"GROCERY STORES, SUPERMARKETS",Corporate Parenting,Separated Migrant Children > 18,SPECIALIST EQUIPMENT FOR SERVICE DELIV
Cambridgeshire County Council,03/05/2021,30.00,TESCO GIFT CARD,"GROCERY STORES, SUPERMARKETS",Corporate Parenting,Separated Migrant Children > 18,ASYLUM SEEKERS
Cambridgeshire County Council,03/05/2021,30.00,TESCO GIFT CARD,"GROCERY STORES, SUPERMARKETS",Corporate Parenting,North Care Leaving Team 1,LEAVING CARE GRANTS
Cambridgeshire County Council,03/05/2021,32.65,SAINSBURYS SACAT 0815,"GROCERY STORES, SUPERMARKETS",Changing Futures & Projects,Housing First,
Cambridgeshire County Council,03/05/2021,34.98,POST OFFICE COUNTER,POSTAL SERVICES-GOVERNMENT ONLY,Coroners,Coroners General,POSTAGE & CARRIAGE
Cambridgeshire County Council,03/05/2021,35.00,PAYPAL  FACEBOOK FACEB,ADVERTISING SERVICES,Cambridgeshire Skills,Cambridgeshire Skills - March Community Centre - Learning,ADVERTISING/PUBLICITY (NON RECRUITMENT)
Cambridgeshire County Council,03/05/2021,36.89,AMZNMKTPLACE,MISCELLANEOUS AND SPECIALTY RETAIL STORES,Outdoor Education (includes Grafham Water),Burwell House Residential Centre,BUILDING REPAIR AND MAINTENANCE
Cambridgeshire County Council,03/05/2021,52.50,HOMEBASE,HOME SUPPLY WAREHOUSE STORES,Outdoor Education (includes Grafham Water),Burwell House Residential Centre,BUILDING REPAIR AND MAINTENANCE
Cambridgeshire County Council,03/05/2021,67.20,TWITTER ONLINE ADS,ADVERTISING SERVICES,Human Resources,Social Work Recruit & Retain,RECRUITMENT ADVERTISING
Cambridgeshire County Council,03/05/2021,69.99,AMZNMKTPLACE,MISCELLANEOUS AND SPECIALTY RETAIL STORES,ICT Service (Education),ICT Service Systems Development,
Cambridgeshire County Council,03/05/2021,70.75,TESCO STORE 2555,"GROCERY STORES, SUPERMARKETS",LD - In House Provider Services,40 & 44 Russell Street,CATERING PROVISIONS
Cambridgeshire County Council,03/05/2021,79.00,AMAZON PRIME MK0WO23T4,DIRECT MARKETING-CONTINUITY/SUBSCRIPTION MERCHANTS,ICT Service (Education),ICT Service Systems Development,
Cambridgeshire County Council,03/05/2021,94.24,WM MORRISONS STORE PIC,"GROCERY STORES, SUPERMARKETS",Children's Disability Service,Head of RSS,CATERING PROVISIONS
Cambridgeshire County Council,03/05/2021,181.10,ADOBE ACROPRO SUBS,COMPUTER SOFTWARE STORES,Cambridgeshire Music,Cambs Music Holding Account,COMP SOFTWARE-ANNUAL LICENCE AGREEMENT
Cambridgeshire County Council,03/05/2021,187.00,IKEA LTD SHOP ONLINE,"EQUIP, FURNITURE, HOME FURNSHNGS STRS (EXCPT APPL)",Targeted Support Service - North,YS - GPC recode,
Cambridgeshire County Council,03/05/2021,250.00,THE BEDTIME BED CENTRE,"EQUIP, FURNITURE, HOME FURNSHNGS STRS (EXCPT APPL)",Targeted Support Service - North,EH Child and Family Centre - Wisbech,PROFESSIONAL FEES AND HIRED SERVICES
Cambridgeshire County Council,03/05/2021,258.34,PAVILION PUBLISHING AN,"BOOKS,PERIODICALS AND NEWSPAPERS",Performance & Strategic Development,Adults Central Business Support,
Cambridgeshire County Council,03/05/2021,301.50,WICKES BUILDING,"BUILDING MATERIALS, LUMBER STORES",Performance & Strategic Development,Adults Central Business Support,
Cambridgeshire County Council,04/05/2021,6.34,FASTHOSTS INTERNET,COMPUTER NETWORK/INFORMATION SERVICES,ICT Service (Education),ICT Service Systems Development,
Cambridgeshire County Council,04/05/2021,14.71,NOBLE RETAIL,"MISC FOOD STORE-CONVENIENCE,MRKT,SPLTY,VENDNG MACS",Children's Disability Service,Head of RSS,CATERING PROVISIONS
Cambridgeshire County Council,04/05/2021,20.69,AMZNMKTPLACE,MISCELLANEOUS AND SPECIALTY RETAIL STORES,School Improvement Service,Adventure Playground,GENERAL OFFICE EXPENSES & STATIONERY
Cambridgeshire County Council,04/05/2021,25.93,TESCO STORES 2228,"GROCERY STORES, SUPERMARKETS",Children's Disability Service,Head of RSS,CATERING PROVISIONS
Cambridgeshire County Council,04/05/2021,73.87,WM MORRISONS STORE PIC,"GROCERY STORES, SUPERMARKETS",Children's Disability Service,Head of RSS,
Cambridgeshire County Council,04/05/2021,90.56,TESCO STORES 2228,"GROCERY STORES, SUPERMARKETS",Children's Disability Service,Head of RSS,CATERING PROVISIONS
Cambridgeshire County Council,04/05/2021,332.95,ARGOS LTD,DISCOUNT STORES,Domestic Abuse and Sexual Violence Service,Domestic Violence Unit,
Cambridgeshire County Council,05/05/2021,-51.09,TESCO STORE 3539,"GROCERY STORES, SUPERMARKETS",Children's Disability Service,Head of RSS,CATERING PROVISIONS
Cambridgeshire County Council,05/05/2021,5.00,CENTRAL CO-OP RETA,DEPARTMENT STORES,LD - In House Provider Services,6 St Lukes Close (Respite),
Cambridgeshire County Council,05/05/2021,13.27,SPAR STORES,"GROCERY STORES, SUPERMARKETS",Changing Futures & Projects,Housing First,OTHER SERVICE USER SUPPORT
Cambridgeshire County Council,05/05/2021,14.00,GEN REGISTER OFFICE,GOVERNMENT SERVICES-NOT ELSEWHERE CLASSIFIED,Corporate Parenting,North Care Leaving Team 1,GRANTS&SUPPORT FOR OTHER SERVICE USERS
Cambridgeshire County Council,05/05/2021,14.97,BUDGENS,"GROCERY STORES, SUPERMARKETS",Changing Futures & Projects,Housing First,
Cambridgeshire County Council,05/05/2021,22.00,GEN REGISTER OFFICE,GOVERNMENT SERVICES-NOT ELSEWHERE CLASSIFIED,Corporate Parenting,Separated Migrant Children > 18,GRANTS&SUPPORT FOR OTHER SERVICE USERS
Cambridgeshire County Council,05/05/2021,25.37,ASDA STORES,"GROCERY STORES, SUPERMARKETS",Targeted Support Service - North,EH Child and Family Centre - Wisbech,EDUCATIONAL MATERIALS
Cambridgeshire County Council,05/05/2021,28.90,ARGOS LTD,DISCOUNT STORES,Corporate Parenting,Separated Migrant Children > 18,ASYLUM SEEKERS
Cambridgeshire County Council,05/05/2021,30.00,TESCO GIFT CARD,"GROCERY STORES, SUPERMARKETS",Corporate Parenting,Separated Migrant Children > 18,SPECIALIST EQUIPMENT FOR SERVICE DELIV
Cambridgeshire County Council,05/05/2021,30.00,TESCO STORES 2228,"GROCERY STORES, SUPERMARKETS",Changing Futures & Projects,Housing First,OTHER SERVICE USER SUPPORT
Cambridgeshire County Council,05/05/2021,32.65,MACKAYS OF CAMBS,"BUILDING MATERIALS, LUMBER STORES",Parking Enforcement,On Street Parking,EQUIPMENT AND TOOLS
Cambridgeshire County Council,05/05/2021,33.21,AMAZON.CO.UK MK53780A4,DIRECT MARKETING-OTHER DIRECT MARKETERS/NOT ELSEW.,Targeted Support Service - North,EH Child and Family Centre - Wisbech,EDUCATIONAL MATERIALS
Cambridgeshire County Council,05/05/2021,34.10,TESCO STORE 2694,"GROCERY STORES, SUPERMARKETS",LD - In House Provider Services,6 St Lukes Close (Respite),
Cambridgeshire County Council,05/05/2021,40.00,AMAZON.CO.UK MK1FH1E74,DIRECT MARKETING-OTHER DIRECT MARKETERS/NOT ELSEW.,Safeguarding and Quality Assurance,Childrens Participation,SPECIALIST EQUIPMENT FOR SERVICE DELIV
Cambridgeshire County Council,05/05/2021,43.47,SAINSBURYS.CO.UK,"GROCERY STORES, SUPERMARKETS",Outdoor Education (includes Grafham Water),Burwell House Residential Centre,CATERING PROVISIONS
Cambridgeshire County Council,05/05/2021,48.51,TESCO STORE 2889,"GROCERY STORES, SUPERMARKETS",LD - In House Provider Services,Horizon,CATERING PROVISIONS
Cambridgeshire County Council,05/05/2021,52.83,WM MORRISONS STORE PIC,"GROCERY STORES, SUPERMARKETS",Children's Disability Service,Head of RSS,CATERING PROVISIONS
Cambridgeshire County Council,05/05/2021,60.22,BRAND IQ - N2 VISUAL,MISCELLANEOUS PUBLISHING AND PRINTING,"Communities, Employment & Skills",YS - National Citizen Service,
Cambridgeshire County Council,05/05/2021,62.66,B & Q 1239,HOME SUPPLY WAREHOUSE STORES,Parking Enforcement,On Street Parking,EQUIPMENT AND TOOLS
Cambridgeshire County Council,05/05/2021,67.99,WWW.MYPOSTSHOP.COM,STATIONERY/OFFICE SUPPLIES/PRINTING & WRITING PAP.,Children's Disability Service,Head of RSS,POSTAGE & CARRIAGE
Cambridgeshire County Council,05/05/2021,198.00,FENLANDS RURAL SPORTS,SPORTING GOODS STORES,Performance & Strategic Development,Adults Central Business Support,
Cambridgeshire County Council,05/05/2021,254.25,HIGHSTREETVOUCHERS,"ASSOCIATIONS-CIVIC, SOCIAL, AND FRATERNAL",Corporate Parenting,Separated Migrant Children > 18,LEAVING CARE GRANTS
Cambridgeshire County Council,06/05/2021,1.00,INSIDEOUT HOME STORES,"GROCERY STORES, SUPERMARKETS",Changing Futures & Projects,Housing First,OTHER SERVICE USER SUPPORT
Cambridgeshire County Council,06/05/2021,3.00,SAINSBURYS 0815,"GROCERY STORES, SUPERMARKETS",Youth Offending Service,YOT - High Risk and Deter,OFFENDERS SUPPORT
Cambridgeshire County Council,06/05/2021,3.98,ONE BELOW,"GROCERY STORES, SUPERMARKETS",Targeted Support Service - North,EH Child and Family Centre - Wisbech,EDUCATIONAL MATERIALS
Cambridgeshire County Council,06/05/2021,5.25,AMZNMKTPLACE AMAZON.CO,MISCELLANEOUS AND SPECIALTY RETAIL STORES,Early Years Service,Trumpington Park Early Years,EDUCATIONAL EQUIPMENT
Cambridgeshire County Council,06/05/2021,7.99,AMAZON PRIME MK0SM0124,DIRECT MARKETING-CONTINUITY/SUBSCRIPTION MERCHANTS,Children's Disability Service,Head of RSS,SUBSCRIPTIONS
Cambridgeshire County Council,06/05/2021,11.00,SUMUP   STEVES HIRE,LIMOUSINES AND TAXICABS,Children's Disability Service,Head of RSS,OTHER TRAVEL EXPENSES
Cambridgeshire County Council,06/05/2021,11.15,PP KAYHANMUTLU,LIMOUSINES AND TAXICABS,Changing Futures & Projects,Housing First,OTHER SERVICE USER SUPPORT
Cambridgeshire County Council,06/05/2021,11.60,AMZNMKTPLACE,MISCELLANEOUS AND SPECIALTY RETAIL STORES,ICT Service (Education),ICT Service Systems Development,
Cambridgeshire County Council,06/05/2021,12.35,SUMUP   CAMBRIDGE  TAX,LIMOUSINES AND TAXICABS,Changing Futures & Projects,Housing First,OTHER SERVICE USER SUPPORT
Cambridgeshire County Council,06/05/2021,12.99,AMZNMKTPLACE,MISCELLANEOUS AND SPECIALTY RETAIL STORES,ICT Service (Education),ICT Service Systems Development,
Cambridgeshire County Council,06/05/2021,19.98,AMZNMKTPLACE AMAZON.CO,MISCELLANEOUS AND SPECIALTY RETAIL STORES,ICT Service (Education),ICT Service Systems Development,
Cambridgeshire County Council,06/05/2021,20.00,PAYPAL  JOANNABRINH,PROFESSIONAL SERVICES-NOT ELSEWHERE CLASSIFIED,Targeted Support Service - North,EH Child and Family Centre - Wisbech,PROFESSIONAL FEES AND HIRED SERVICES
Cambridgeshire County Council,06/05/2021,20.00,PAYPAL  JOANNABRINH,PROFESSIONAL SERVICES-NOT ELSEWHERE CLASSIFIED,Targeted Support Service - North,EH Child and Family Centre - Wisbech,PROFESSIONAL FEES AND HIRED SERVICES
Cambridgeshire County Council,06/05/2021,20.97,LIDL GB MARCH,"GROCERY STORES, SUPERMARKETS",LD - In House Provider Services,IHPS - Tennyson Lodge,GROUNDS MAINTENANCE
Cambridgeshire County Council,06/05/2021,23.65,POST OFFICE COUNTER,POSTAL SERVICES-GOVERNMENT ONLY,School Improvement Service,"Education, Health, Safety and Wellbeing - Outdoor Education",POSTAGE & CARRIAGE
Cambridgeshire County Council,06/05/2021,27.96,AMZNMKTPLACE,MISCELLANEOUS AND SPECIALTY RETAIL STORES,Outdoor Education (includes Grafham Water),Burwell House Residential Centre,CATERING EQUIPMENT-PURCHASES
Cambridgeshire County Council,06/05/2021,30.00,TESCO GIFT CARD,"GROCERY STORES, SUPERMARKETS",Corporate Parenting,Separated Migrant Children > 18,LIVING SUPPORT GRANTS
Cambridgeshire County Council,06/05/2021,30.00,WICKES WISBECH,"BUILDING MATERIALS, LUMBER STORES",School Improvement Service,Adventure Playground,GROUNDS MAINTENANCE
Cambridgeshire County Council,06/05/2021,30.00,PAYPAL  ALICERUGGLE,"ORGANIZATIONS, CHARITABLE AND SOCIAL SERVICES",Domestic Abuse and Sexual Violence Service,Domestic Violence Unit,
Cambridgeshire County Council,06/05/2021,107.12,"TRELLO.COM, ATLASSIAN","COMPUTERS, COMPUTER PERIPHERAL EQUIPMENT, SOFTWARE",Public Library Services,Support - Business Support,
Cambridgeshire County Council,06/05/2021,129.90,AMZNMKTPLACE,MISCELLANEOUS AND SPECIALTY RETAIL STORES,Domestic Abuse and Sexual Violence Service,Domestic Violence Unit,
Cambridgeshire County Council,06/05/2021,244.56,WICKES WISBECH,"BUILDING MATERIALS, LUMBER STORES",School Improvement Service,Adventure Playground,GROUNDS MAINTENANCE
Cambridgeshire County Council,07/05/2021,-0.24,GOOGLE,COMPUTER NETWORK/INFORMATION SERVICES,IT & Digital Service,Business & Digital Systems,COMPUTER SOFTWARE - PURCHASE
Cambridgeshire County Council,07/05/2021,0.24,GOOGLE,COMPUTER NETWORK/INFORMATION SERVICES,IT & Digital Service,Business & Digital Systems,COMPUTER SOFTWARE - PURCHASE
Cambridgeshire County Council,07/05/2021,0.24,GOOGLE  CLOUD_01FB2B-0,BUSINESS SERVICES-NOT ELSEWHERE CLASSIFIED,IT & Digital Service,Business & Digital Systems,COMPUTER SOFTWARE - PURCHASE
Cambridgeshire County Council,07/05/2021,2.66,SAINSBURYS SACAT 2271,"GROCERY STORES, SUPERMARKETS",Outdoor Education (includes Grafham Water),Burwell House Residential Centre,CATERING PROVISIONS
Cambridgeshire County Council,07/05/2021,3.00,SAINSBURYS SACAT 2271,"GROCERY STORES, SUPERMARKETS",Outdoor Education (includes Grafham Water),Burwell House Residential Centre,CATERING PROVISIONS
Cambridgeshire County Council,07/05/2021,3.15,PANTHER TAXIS LIMITED,LIMOUSINES AND TAXICABS,Changing Futures & Projects,Housing First,OTHER SERVICE USER SUPPORT
Cambridgeshire County Council,07/05/2021,3.70,GRAFHAM WATER PARK,AUTOMOBILE PARKING LOTS AND GARAGES,Youth Offending Service,YOT - High Risk and Deter,OFFENDERS SUPPORT
Cambridgeshire County Council,07/05/2021,5.00,PETERBOROUGH CARS,LIMOUSINES AND TAXICABS,Domestic Abuse and Sexual Violence Service,Domestic Violence Unit,
Cambridgeshire County Council,07/05/2021,5.00,PETERBOROUGH CARS,LIMOUSINES AND TAXICABS,Domestic Abuse and Sexual Violence Service,Domestic Violence Unit,
Cambridgeshire County Council,07/05/2021,7.58,POST OFFICE COUNTER,POSTAL SERVICES-GOVERNMENT ONLY,School Improvement Service,"Education, Health, Safety and Wellbeing - Outdoor Education",POSTAGE & CARRIAGE
Cambridgeshire County Council,07/05/2021,7.82,AMAZON.CO.UK MK2JX9GE4,DIRECT MARKETING-OTHER DIRECT MARKETERS/NOT ELSEW.,Children's Disability Service,Head of RSS,
Cambridgeshire County Council,07/05/2021,10.55,PANTHER TAXIS LIMITED,LIMOUSINES AND TAXICABS,Changing Futures & Projects,Housing First,OTHER SERVICE USER SUPPORT
Cambridgeshire County Council,07/05/2021,13.49,SCREWFIX DIRECT,"BUILDING MATERIALS, LUMBER STORES",Targeted Support Service - South,EH Child and Family Centre - East Cambs,SPECIALIST EQUIPMENT FOR SERVICE DELIV
Cambridgeshire County Council,07/05/2021,13.59,JD SPORTS INTERNET,SPORTING GOODS STORES,Corporate Parenting,North Child Looked After Team 1,GRANTS&SUPPORT FOR OTHER SERVICE USERS
Cambridgeshire County Council,07/05/2021,18.97,SCREWFIX DIRECT,"BUILDING MATERIALS, LUMBER STORES","Property, Facilities Management and Building Compliance",Shire Hall Area,BUILDING REPAIR AND MAINTENANCE
Cambridgeshire County Council,07/05/2021,20.00,TESCO STORES 5463,"GROCERY STORES, SUPERMARKETS",Changing Futures & Projects,Housing First,OTHER SERVICE USER SUPPORT
Cambridgeshire County Council,07/05/2021,20.52,LIDL GB PETERBOROUGH,"GROCERY STORES, SUPERMARKETS","Communities, Employment & Skills",YS - National Citizen Service,
Cambridgeshire County Council,07/05/2021,22.95,ARGOS LTD,DISCOUNT STORES,Corporate Parenting,North Child Looked After Team 1,GRANTS&SUPPORT FOR OTHER SERVICE USERS
Cambridgeshire County Council,07/05/2021,24.61,POST OFFICE COUNTER,POSTAL SERVICES-GOVERNMENT ONLY,Coroners,Coroners General,POSTAGE & CARRIAGE
Cambridgeshire County Council,07/05/2021,26.99,RYMAN 1076,"OFFICE, SCHOOL SUPPLY, AND STATIONERY STORES",Park & Ride,Park and Ride Admin,GENERAL OFFICE EXPENSES & STATIONERY
Cambridgeshire County Council,07/05/2021,27.99,MCINTOSHS,MEN'S AND WOMEN'S CLOTHING STORES,Youth Offending Service,Safer Relationships Team,
Cambridgeshire County Council,07/05/2021,28.13,AMZNMKTPLACE,MISCELLANEOUS AND SPECIALTY RETAIL STORES,Outdoor Education (includes Grafham Water),Grafham Water Centre,EQUIPMENT AND TOOLS
Cambridgeshire County Council,07/05/2021,29.66,TRAVIS PERKINS,"BUILDING MATERIALS, LUMBER STORES",Parking Enforcement,On Street Parking,EQUIPMENT AND TOOLS
Cambridgeshire County Council,07/05/2021,32.50,WWW.JUNCTION.CO.UK,ART DEALERS AND GALLERIES,Corporate Parenting,North Care Leaving Team 1,GRANTS&SUPPORT FOR OTHER SERVICE USERS
Cambridgeshire County Council,07/05/2021,32.90,WWW.ASOS.COM,FAMILY CLOTHING STORES,Corporate Parenting,North Child Looked After Team 1,GRANTS&SUPPORT FOR OTHER SERVICE USERS
Cambridgeshire County Council,07/05/2021,42.99,AMAZON.CO.UK MK2TD3GX4,DIRECT MARKETING-OTHER DIRECT MARKETERS/NOT ELSEW.,Early Years Service,Trumpington Park Early Years,STAFF TRAINING & DEVELOPMENT
Cambridgeshire County Council,07/05/2021,45.00,PRETTYLITTLETHING.COM,MEN'S AND WOMEN'S CLOTHING STORES,Corporate Parenting,North Child Looked After Team 1,GRANTS&SUPPORT FOR OTHER SERVICE USERS
Cambridgeshire County Council,07/05/2021,46.40,TESCO GIFT CARD,"GROCERY STORES, SUPERMARKETS",Corporate Parenting,North Care Leaving Team 1,GRANTS&SUPPORT FOR OTHER SERVICE USERS
Cambridgeshire County Council,07/05/2021,55.00,NCC INCOME,GOVERNMENT SERVICES-NOT ELSEWHERE CLASSIFIED,0-19 Organisation & Planning,Attendance and Behaviour,PROFESSIONAL FEES AND HIRED SERVICES
Cambridgeshire County Council,07/05/2021,56.28,SAINSBURYS 0815,"GROCERY STORES, SUPERMARKETS",Changing Futures & Projects,Housing First,OTHER SERVICE USER SUPPORT
Cambridgeshire County Council,07/05/2021,56.40,AMZNMKTPLACE AMAZON.CO,MISCELLANEOUS AND SPECIALTY RETAIL STORES,Targeted Support Service - North,EH Child and Family Centre - Wisbech,EDUCATIONAL MATERIALS
Cambridgeshire County Council,07/05/2021,67.45,B&M 100 - HUNTINGDON,MISCELLANEOUS GENERAL MERCHANDISE,Children's Disability Service,CamPlay Holiday Clubs,
Cambridgeshire County Council,07/05/2021,70.78,MAILCHIMP,DIGITAL GOODS MULTI CATEGORY,Cambridgeshire Music,Cambs Music Holding Account,COMP SOFTWARE-ANNUAL LICENCE AGREEMENT
Cambridgeshire County Council,07/05/2021,87.58,THETRAINLINE.COM,PASSENGER RAILWAYS,Corporate Parenting,Separated Migrant Children > 18,VEHICLE AND PLANT HIRE
Cambridgeshire County Council,07/05/2021,87.95,ARGOS LTD,DISCOUNT STORES,Corporate Parenting,North Child Looked After Team 1,LEAVING CARE GRANTS
Cambridgeshire County Council,07/05/2021,99.99,NBNI  210505115642568,"BOOKS,PERIODICALS AND NEWSPAPERS",Targeted Support Service - North,EH Wisbech District,EDUCATIONAL MATERIALS
Cambridgeshire County Council,07/05/2021,102.10,AMZNMKTPLACE,MISCELLANEOUS AND SPECIALTY RETAIL STORES,Targeted Support Service - South,EH Child and Family Centre - Cambridge City,SPECIALIST SUPPLIES AND MATERIALS
Cambridgeshire County Council,07/05/2021,116.10,AMZNMKTPLACE AMAZON.CO,MISCELLANEOUS AND SPECIALTY RETAIL STORES,Early Years Service,Trumpington Park Early Years,GOVERNMENT REIMBURSEMENTS
Cambridgeshire County Council,07/05/2021,137.94,WWW.JUSTGLOVES.CO.UK,MISCELLANEOUS AND SPECIALTY RETAIL STORES,Park & Ride,Park and Ride Admin,PROTECTIVE CLOTHING
Cambridgeshire County Council,07/05/2021,144.00,TESCO STORE 2694,"GROCERY STORES, SUPERMARKETS",Children's Disability Service,CamPlay Holiday Clubs,
Cambridgeshire County Council,07/05/2021,150.83,WM MORRISONS STORE PIC,"GROCERY STORES, SUPERMARKETS",Children's Disability Service,Head of RSS,CATERING PROVISIONS
Cambridgeshire County Council,07/05/2021,159.00,TVLICENSING.CO.UK,"CONSULTING, MANAGEMENT, AND PUBLIC RELATIONS SVCS",Corporate Parenting,Separated Migrant Children > 18,LEAVING CARE GRANTS
Cambridgeshire County Council,07/05/2021,165.58,AMZNMKTPLACE,MISCELLANEOUS AND SPECIALTY RETAIL STORES,Outdoor Education (includes Grafham Water),Grafham Water Centre,EQUIPMENT AND TOOLS
Cambridgeshire County Council,07/05/2021,170.03,CITYSPRINT UK LIMITED,"COURIER SVC-AIR & GROUND, FREIGHT FORWARDERS",Coroners,Coroners General,POSTAGE & CARRIAGE
Cambridgeshire County Council,07/05/2021,700.00,FACEBK YEDFE43VK2,ADVERTISING SERVICES,Human Resources,Social Work Recruit & Retain,RECRUITMENT ADVERTISING
Cambridgeshire County Council,10/05/2021,-22.95,ARGOS LTD,DISCOUNT STORES,Corporate Parenting,North Child Looked After Team 1,GRANTS&SUPPORT FOR OTHER SERVICE USERS
Cambridgeshire County Council,10/05/2021,-8.35,WM MORRISONS STORE PIC,"GROCERY STORES, SUPERMARKETS",Children's Disability Service,Head of RSS,CATERING PROVISIONS
Cambridgeshire County Council,10/05/2021,1.50,HOMEBASE,HOME SUPPLY WAREHOUSE STORES,Outdoor Education (includes Grafham Water),Burwell House Residential Centre,BUILDING REPAIR AND MAINTENANCE
Cambridgeshire County Council,10/05/2021,1.80,3C_ SABA CARPARKS - NE,AUTOMOBILE PARKING LOTS AND GARAGES,Changing Futures & Projects,Housing First,OTHER SERVICE USER SUPPORT
Cambridgeshire County Council,10/05/2021,2.49,PRIME VIDEO MK88T9564,RECORD SHOPS,Children's Disability Service,Head of RSS,OTHER SERVICE USER SUPPORT
Cambridgeshire County Council,10/05/2021,4.49,AMAZON.CO.UK MK95C6MZ4,DIRECT MARKETING-OTHER DIRECT MARKETERS/NOT ELSEW.,Children's Disability Service,Head of RSS,GENERAL OFFICE EXPENSES & STATIONERY
Cambridgeshire County Council,10/05/2021,5.53,ALDI,"GROCERY STORES, SUPERMARKETS","Communities, Employment & Skills",YS - National Citizen Service,CURRICULUM EXPENSES
Cambridgeshire County Council,10/05/2021,5.98,AMZNMKTPLACE,MISCELLANEOUS AND SPECIALTY RETAIL STORES,Early Years Service,Trumpington Park Early Years,GENERAL OFFICE EXPENSES & STATIONERY
Cambridgeshire County Council,10/05/2021,6.77,SCREWFIX DIR LTD,"BUILDING MATERIALS, LUMBER STORES",Outdoor Education (includes Grafham Water),Burwell House Residential Centre,BUILDING REPAIR AND MAINTENANCE
Cambridgeshire County Council,10/05/2021,6.83,AMAZON.CO.UK MK6Z98VR4,DIRECT MARKETING-OTHER DIRECT MARKETERS/NOT ELSEW.,Children's Disability Service,Head of RSS,CATERING PROVISIONS
Cambridgeshire County Council,10/05/2021,7.11,AMAZON.CO.UK MK85A5VR4,DIRECT MARKETING-OTHER DIRECT MARKETERS/NOT ELSEW.,Children's Disability Service,Head of RSS,
Cambridgeshire County Council,10/05/2021,7.20,AMAZON.CO.UK MK7Z85M74,DIRECT MARKETING-OTHER DIRECT MARKETERS/NOT ELSEW.,Children's Disability Service,Head of RSS,EQUIPMENT AND TOOLS
Cambridgeshire County Council,10/05/2021,7.99,AMAZON PRIME MK4Z81V94,DIRECT MARKETING-CONTINUITY/SUBSCRIPTION MERCHANTS,"Communities, Employment & Skills",YS - DfE Essential Skills for Life,
Cambridgeshire County Council,10/05/2021,8.50,AMAZON.CO.UK MK4M235H4,DIRECT MARKETING-OTHER DIRECT MARKETERS/NOT ELSEW.,Children's Disability Service,Head of RSS,
Cambridgeshire County Council,10/05/2021,9.09,AMAZON.CO.UK MK5BJ6VO4,DIRECT MARKETING-OTHER DIRECT MARKETERS/NOT ELSEW.,Children's Disability Service,Head of RSS,CLEANING AND DOMESTIC SUPPLIES
Cambridgeshire County Council,10/05/2021,9.35,AMAZON.CO.UK MK0UM55V4,DIRECT MARKETING-OTHER DIRECT MARKETERS/NOT ELSEW.,Children's Disability Service,Head of RSS,CATERING PROVISIONS
Cambridgeshire County Council,10/05/2021,9.64,AMAZON.CO.UK MK8T19VY4,DIRECT MARKETING-OTHER DIRECT MARKETERS/NOT ELSEW.,Children's Disability Service,Head of RSS,CLEANING AND DOMESTIC SUPPLIES
Cambridgeshire County Council,10/05/2021,9.76,AMAZON.CO.UK MK8MV65G4,DIRECT MARKETING-OTHER DIRECT MARKETERS/NOT ELSEW.,Children's Disability Service,Head of RSS,CATERING PROVISIONS
Cambridgeshire County Council,10/05/2021,9.99,NETFLIX.COM,"CABLE, SATELLITE, OTHER PAY TELEVISION, RADIO SVCS",Children's Disability Service,Head of RSS,SERVICE CHARGES
Cambridgeshire County Council,10/05/2021,10.00,HIGHSTREET VOUCHERS,"ASSOCIATIONS-CIVIC, SOCIAL, AND FRATERNAL",Corporate Parenting,North Care Leaving Team 1,LEAVING CARE GRANTS
Cambridgeshire County Council,10/05/2021,10.40,CO-OP GROUP 171471,"GROCERY STORES, SUPERMARKETS",Outdoor Education (includes Grafham Water),Burwell House Residential Centre,CATERING PROVISIONS
Cambridgeshire County Council,10/05/2021,10.55,IZ  HOT NUMBERS COFFEE,"EATING PLACES, RESTAURANTS",Changing Futures & Projects,Housing First,OTHER SERVICE USER SUPPORT
Cambridgeshire County Council,10/05/2021,11.68,AMZNMKTPLACE AMAZON.CO,MISCELLANEOUS AND SPECIALTY RETAIL STORES,Coroners,Coroners General,GENERAL OFFICE EXPENSES & STATIONERY
Cambridgeshire County Council,10/05/2021,12.00,WAITROSE 651,"GROCERY STORES, SUPERMARKETS",Changing Futures & Projects,Housing First,OTHER SERVICE USER SUPPORT
Cambridgeshire County Council,10/05/2021,12.55,WAITROSE 552,"GROCERY STORES, SUPERMARKETS",Changing Futures & Projects,Housing First,OTHER SERVICE USER SUPPORT
Cambridgeshire County Council,10/05/2021,12.62,AMAZON.CO.UK MK2ZI1VU4,DIRECT MARKETING-OTHER DIRECT MARKETERS/NOT ELSEW.,Children's Disability Service,Head of RSS,CLEANING AND DOMESTIC SUPPLIES
Cambridgeshire County Council,10/05/2021,12.70,AMAZON.CO.UK MK5MZ75B4,DIRECT MARKETING-OTHER DIRECT MARKETERS/NOT ELSEW.,Children's Disability Service,Head of RSS,
Cambridgeshire County Council,10/05/2021,13.00,LAKESIDE KITCHEN,"EATING PLACES, RESTAURANTS",Changing Futures & Projects,Housing First,OTHER SERVICE USER SUPPORT
Cambridgeshire County Council,10/05/2021,13.99,AMZNMKTPLACE AMAZON.CO,MISCELLANEOUS AND SPECIALTY RETAIL STORES,"Property, Facilities Management and Building Compliance",Shire Hall Area,BUILDING REPAIR AND MAINTENANCE
Cambridgeshire County Council,10/05/2021,14.65,AMAZON.CO.UK MK3CD5VD4,DIRECT MARKETING-OTHER DIRECT MARKETERS/NOT ELSEW.,Children's Disability Service,Head of RSS,CATERING PROVISIONS
Cambridgeshire County Council,10/05/2021,15.30,AMAZON.CO.UK MK9BD8VN4,DIRECT MARKETING-OTHER DIRECT MARKETERS/NOT ELSEW.,Children's Disability Service,Head of RSS,CLEANING AND DOMESTIC SUPPLIES
Cambridgeshire County Council,10/05/2021,16.21,AMAZON.CO.UK MK3ZQ6VA4,DIRECT MARKETING-OTHER DIRECT MARKETERS/NOT ELSEW.,Children's Disability Service,Head of RSS,CATERING PROVISIONS
Cambridgeshire County Council,10/05/2021,16.28,AMAZON.CO.UK MK0M495I4,DIRECT MARKETING-OTHER DIRECT MARKETERS/NOT ELSEW.,Children's Disability Service,Head of RSS,
Cambridgeshire County Council,10/05/2021,16.34,AMAZON.CO.UK MK7XP4VM4,DIRECT MARKETING-OTHER DIRECT MARKETERS/NOT ELSEW.,Children's Disability Service,Head of RSS,CATERING PROVISIONS
Cambridgeshire County Council,10/05/2021,16.75,WILKO RETAIL LIMITED,MISCELLANEOUS GENERAL MERCHANDISE,Coroners,Coroners General,GENERAL OFFICE EXPENSES & STATIONERY
Cambridgeshire County Council,10/05/2021,16.95,AMZNMKTPLACE AMAZON.CO,MISCELLANEOUS AND SPECIALTY RETAIL STORES,Virtual School,Virtual School for Care Experienced Children,
Cambridgeshire County Council,10/05/2021,17.33,AMAZON.CO.UK MK35S8VM4,DIRECT MARKETING-OTHER DIRECT MARKETERS/NOT ELSEW.,Children's Disability Service,Head of RSS,CATERING PROVISIONS
Cambridgeshire County Council,10/05/2021,17.87,AMAZON.CO.UK MK1RI6V34,DIRECT MARKETING-OTHER DIRECT MARKETERS/NOT ELSEW.,Children's Disability Service,Head of RSS,CATERING PROVISIONS
Cambridgeshire County Council,10/05/2021,18.33,AMAZON.CO.UK MK1CI6H84,DIRECT MARKETING-OTHER DIRECT MARKETERS/NOT ELSEW.,Children's Disability Service,Head of RSS,CLEANING AND DOMESTIC SUPPLIES
Cambridgeshire County Council,10/05/2021,20.00,HIGHSTREET VOUCHERS,"ASSOCIATIONS-CIVIC, SOCIAL, AND FRATERNAL",Corporate Parenting,North Care Leaving Team 1,LEAVING CARE GRANTS
Cambridgeshire County Council,10/05/2021,20.15,AMZNMKTPLACE AMAZON.CO,MISCELLANEOUS AND SPECIALTY RETAIL STORES,Early Years Service,Trumpington Park Early Years,EDUCATIONAL EQUIPMENT
Cambridgeshire County Council,10/05/2021,20.40,AMAZON.CO.UK MK0GY5HA4,DIRECT MARKETING-OTHER DIRECT MARKETERS/NOT ELSEW.,Children's Disability Service,Head of RSS,CLEANING AND DOMESTIC SUPPLIES
Cambridgeshire County Council,10/05/2021,25.95,ARGOS LTD,DISCOUNT STORES,Corporate Parenting,North Child Looked After Team 1,GRANTS&SUPPORT FOR OTHER SERVICE USERS
Cambridgeshire County Council,10/05/2021,30.38,AMAZON.CO.UK MK0T08VB4,DIRECT MARKETING-OTHER DIRECT MARKETERS/NOT ELSEW.,Children's Disability Service,Head of RSS,
Cambridgeshire County Council,10/05/2021,37.93,AMZNMKTPLACE,MISCELLANEOUS AND SPECIALTY RETAIL STORES,Early Years Service,Trumpington Park Early Years,EDUCATIONAL EQUIPMENT
Cambridgeshire County Council,10/05/2021,38.88,WWW.PHS.CO.UK,BUSINESS SERVICES-NOT ELSEWHERE CLASSIFIED,Cambridgeshire Music,Cambs Music Holding Account,CLEANING AND DOMESTIC SUPPLIES
Cambridgeshire County Council,10/05/2021,39.98,AMZNMKTPLACE,MISCELLANEOUS AND SPECIALTY RETAIL STORES,Children's Disability Service,Head of RSS,COMPUTER HARDWARE - PURCHASE
Cambridgeshire County Council,10/05/2021,40.00,SOUTH CAMBS DC WEB,GOVERNMENT SERVICES-NOT ELSEWHERE CLASSIFIED,Changing Futures & Projects,Housing First,OTHER SERVICE USER SUPPORT
Cambridgeshire County Council,10/05/2021,55.00,NCC INCOME,GOVERNMENT SERVICES-NOT ELSEWHERE CLASSIFIED,Schools,Pilgrim Pathways School,
Cambridgeshire County Council,10/05/2021,55.00,NCC INCOME,GOVERNMENT SERVICES-NOT ELSEWHERE CLASSIFIED,Schools,Pilgrim Pathways School,
Cambridgeshire County Council,10/05/2021,71.94,ARGOS LTD,DISCOUNT STORES,Corporate Parenting,Separated Migrant Children > 18,ASYLUM SEEKERS
Cambridgeshire County Council,10/05/2021,81.31,TESCO STORE 2694,"GROCERY STORES, SUPERMARKETS",LD - In House Provider Services,6 St Lukes Close (Respite),
Cambridgeshire County Council,10/05/2021,99.00,PANTHER TAXIS LIMITED,LIMOUSINES AND TAXICABS,Domestic Abuse and Sexual Violence Service,Domestic Violence Unit,
Cambridgeshire County Council,10/05/2021,99.99,AMAZON.CO.UK MK48U2VY4,DIRECT MARKETING-OTHER DIRECT MARKETERS/NOT ELSEW.,Fostering & Supervised Contact Services,Fostering Quality Assurance,SPECIALIST SUPPLIES AND MATERIALS
Cambridgeshire County Council,10/05/2021,120.21,TESCO STORE 2555,"GROCERY STORES, SUPERMARKETS",LD - In House Provider Services,40 & 44 Russell Street,CATERING PROVISIONS
Cambridgeshire County Council,10/05/2021,132.64,SKYLINES ACADEM,SCHOOLS & EDUCATIONAL SVC-NOT ELSEWHERE CLASSIFIED,ICT Service (Education),ICT Service Systems Development,
Cambridgeshire County Council,10/05/2021,132.86,SKYLINES ACADEM,SCHOOLS & EDUCATIONAL SVC-NOT ELSEWHERE CLASSIFIED,ICT Service (Education),ICT Service Systems Development,
Cambridgeshire County Council,10/05/2021,134.75,AMZNMKTPLACE AMAZON.CO,MISCELLANEOUS AND SPECIALTY RETAIL STORES,Outdoor Education (includes Grafham Water),Grafham Water Centre,EQUIPMENT AND TOOLS
Cambridgeshire County Council,10/05/2021,159.00,TVLICENSING.CO.UK,"CONSULTING, MANAGEMENT, AND PUBLIC RELATIONS SVCS",Children's Disability Service,Head of RSS,TV LICENCES
Cambridgeshire County Council,10/05/2021,159.00,VIMEO PRO,DIRECT MARKETING-CONTINUITY/SUBSCRIPTION MERCHANTS,ICT Service (Education),ICT Service Systems Development,
Cambridgeshire County Council,10/05/2021,160.00,SPORTSDIRECT.COM,MEN'S AND WOMEN'S CLOTHING STORES,Corporate Parenting,Separated Migrant Children > 18,ASYLUM SEEKERS
Cambridgeshire County Council,10/05/2021,180.93,HOMEBASE.CO.UK,HOME SUPPLY WAREHOUSE STORES,Changing Futures & Projects,Housing First,OTHER SERVICE USER SUPPORT
Cambridgeshire County Council,10/05/2021,227.08,EE LIMITED,TELECOM INCL PREPAID/RECURRING PHONE SVCS,Shorter Term Support and Maximising Independence,Technology Enabled Care (TEC),SPECIALIST EQUIPMENT FOR SERVICE DELIV
Cambridgeshire County Council,10/05/2021,228.00,WESTMINSTER FORUM PROJ,"CONSULTING, MANAGEMENT, AND PUBLIC RELATIONS SVCS",GCP,GCP - Programme Central Co-ordination,STAFF TRAINING & DEVELOPMENT
Cambridgeshire County Council,10/05/2021,255.00,TWITTER ONLINE ADS,ADVERTISING SERVICES,Human Resources,Social Work Recruit & Retain,RECRUITMENT ADVERTISING
Cambridgeshire County Council,10/05/2021,306.00,WWW.EMAP.COM,MISCELLANEOUS PUBLISHING AND PRINTING,Highways Maintenance,Highways,STAFF TRAINING & DEVELOPMENT
Cambridgeshire County Council,10/05/2021,557.28,TSI/KLINGBERG - ARTIC,"HEALTH PRACTITIONERS, MEDICAL SRVCS-NOT ELSEWHERE",Youth Offending Service,YOT Project,GENERAL OFFICE EXPENSES & STATIONERY
Cambridgeshire County Council,10/05/2021,577.43,HOMEBASE.CO.UK,HOME SUPPLY WAREHOUSE STORES,Changing Futures & Projects,Housing First,OTHER SERVICE USER SUPPORT
Cambridgeshire County Council,11/05/2021,1.50,CENTRAL CO-OP RETA,DEPARTMENT STORES,Targeted Support Service - South,EH Child and Family Centre - East Cambs,SPECIALIST EQUIPMENT FOR SERVICE DELIV
Cambridgeshire County Council,11/05/2021,3.00,HM LAND REGISTRY - ONL,GOVERNMENT SERVICES-NOT ELSEWHERE CLASSIFIED,Shared Services,Debt Team,DEBT RECOVERY COSTS
Cambridgeshire County Council,11/05/2021,5.11,AMZNMKTPLACE,MISCELLANEOUS AND SPECIALTY RETAIL STORES,Children's Disability Service,Head of RSS,GENERAL OFFICE EXPENSES & STATIONERY
Cambridgeshire County Council,11/05/2021,5.50,WM MORRISONS STORE,"GROCERY STORES, SUPERMARKETS",Youth Offending Service,YOT - High Risk and Deter,OFFENDERS SUPPORT
Cambridgeshire County Council,11/05/2021,7.65,POST OFFICE COUNTER,POSTAL SERVICES-GOVERNMENT ONLY,Corporate Parenting,Separated Migrant Children > 18,POSTAGE & CARRIAGE
Cambridgeshire County Council,11/05/2021,12.50,ARGOS LTD,DISCOUNT STORES,Changing Futures & Projects,Housing First,OTHER SERVICE USER SUPPORT
Cambridgeshire County Council,11/05/2021,15.50,CO-OP GROUP 019451,"GROCERY STORES, SUPERMARKETS",Changing Futures & Projects,Housing First,OTHER SERVICE USER SUPPORT
Cambridgeshire County Council,11/05/2021,16.19,TESCO STORE 2889,"GROCERY STORES, SUPERMARKETS",LD - In House Provider Services,Horizon,CATERING PROVISIONS
Cambridgeshire County Council,11/05/2021,18.95,ARGOS LTD,DISCOUNT STORES,Targeted Support Service - South,EH Child and Family Centre - Cambridge City,SPECIALIST EQUIPMENT FOR SERVICE DELIV
Cambridgeshire County Council,11/05/2021,30.00,PETERBOROUGH CARS,LIMOUSINES AND TAXICABS,Integrated Front Door,IFD - Multi-Agency Safeguarding Hub (MASH),
Cambridgeshire County Council,11/05/2021,35.00,B&M 292 - MARCH,MISCELLANEOUS GENERAL MERCHANDISE,LD - In House Provider Services,IHPS - Tennyson Lodge,GROUNDS MAINTENANCE
Cambridgeshire County Council,11/05/2021,44.76,POST OFFICE COUNTER,POSTAL SERVICES-GOVERNMENT ONLY,Coroners,Coroners General,POSTAGE & CARRIAGE
Cambridgeshire County Council,11/05/2021,60.00,RTPI,"CLUBS-CNTRY,MBRSHIP(ATHLET,REC,SPRTS,PRIVATE GOLF",Climate and Energy Services,Commercial Activities,STAFF TRAINING & DEVELOPMENT
Cambridgeshire County Council,11/05/2021,74.99,ARGOS LTD,DISCOUNT STORES,Corporate Parenting,North Care Leaving Team 1,LEAVING CARE GRANTS
Cambridgeshire County Council,11/05/2021,75.69,WM MORRISONS STORE PIC,"GROCERY STORES, SUPERMARKETS",Children's Disability Service,Head of RSS,CATERING PROVISIONS
Cambridgeshire County Council,11/05/2021,90.00,SP   DOWN SYNDROME EDU,"BOOKS,PERIODICALS AND NEWSPAPERS",SEND Specialist Services,SEND Specialist Services - Education Psychology,PUBLICATIONS
Cambridgeshire County Council,11/05/2021,106.45,WM MORRISONS STORE PIC,"GROCERY STORES, SUPERMARKETS",Children's Disability Service,Head of RSS,CATERING PROVISIONS
Cambridgeshire County Council,11/05/2021,140.00,WWW.VOUCHEREXPRESS.CO.,"GIFT, CARD, NOVELTY AND SOUVENIR SHOPS",Corporate Parenting,North Child Looked After Team 1,LEAVING CARE GRANTS
Cambridgeshire County Council,11/05/2021,169.00,CURRYS ONLINE,ELECTRONIC SALES,LD - In House Provider Services,6 St Lukes Close (Respite),
Cambridgeshire County Council,11/05/2021,169.00,CURRYS ONLINE,ELECTRONIC SALES,LD - In House Provider Services,6 St Lukes Close (Respite),
Cambridgeshire County Council,11/05/2021,182.00,TEJAYCEY BOARDING KENN,PET SHOPS - PET FOODS AND SUPPLIES,Performance & Strategic Development,Adults Central Business Support,
Cambridgeshire County Council,11/05/2021,218.81,HSW NETNATION.COM,DIRECT MARKETING-CONTINUITY/SUBSCRIPTION MERCHANTS,"Communities, Employment & Skills",Communities Service - Management,PROFESSIONAL FEES AND HIRED SERVICES
Cambridgeshire County Council,11/05/2021,224.00,AO RETAIL LIMITED,HOUSEHOLD APPLIANCE STORES,Corporate Parenting,North Care Leaving Team 1,LEAVING CARE GRANTS
Cambridgeshire County Council,11/05/2021,250.00,BEACON HOUSE,"DEBT, MARRIAGE, PERSONAL-COUNSELING SERVICE",Children's Disability Service,Head of RSS,STAFF TRAINING & DEVELOPMENT
Cambridgeshire County Council,11/05/2021,338.00,CURRYS ONLINE,ELECTRONIC SALES,LD - In House Provider Services,6 St Lukes Close (Respite),
Cambridgeshire County Council,12/05/2021,-28.78,DNH GODADDY.COM EUROPE,COMPUTER NETWORK/INFORMATION SERVICES,ICT Service (Education),ICT Service Systems Development,
Cambridgeshire County Council,12/05/2021,2.00,B & Q 1352,HOME SUPPLY WAREHOUSE STORES,Changing Futures & Projects,Counting Every Adult,OTHER SERVICE USER SUPPORT
Cambridgeshire County Council,12/05/2021,2.00,CO-OP GROUP 070661,"GROCERY STORES, SUPERMARKETS",Changing Futures & Projects,Housing First,OTHER SERVICE USER SUPPORT
Cambridgeshire County Council,12/05/2021,3.00,CAMBRIDGE SPORT LAKES,AUTOMOBILE PARKING LOTS AND GARAGES,Changing Futures & Projects,Housing First,OTHER SERVICE USER SUPPORT
Cambridgeshire County Council,12/05/2021,3.39,FACEBK 4AH544X2V2,ADVERTISING SERVICES,Fostering & Supervised Contact Services,Fostering Support and Supervision,RECRUITMENT ADVERTISING
Cambridgeshire County Council,12/05/2021,5.00,IZ  GROUNDS CAFES & CY,"EATING PLACES, RESTAURANTS",Changing Futures & Projects,Housing First,OTHER SERVICE USER SUPPORT
Cambridgeshire County Council,12/05/2021,6.30,STARBUCKS,FAST FOOD RESTAURANTS,Changing Futures & Projects,Counting Every Adult,OTHER SERVICE USER SUPPORT
Cambridgeshire County Council,12/05/2021,6.89,POST OFFICE COUNTER,POSTAL SERVICES-GOVERNMENT ONLY,Coroners,Coroners General,POSTAGE & CARRIAGE
Cambridgeshire County Council,12/05/2021,6.90,TESCO STORES 2228,"GROCERY STORES, SUPERMARKETS",Changing Futures & Projects,Housing First,OTHER SERVICE USER SUPPORT
Cambridgeshire County Council,12/05/2021,8.00,TESCO STORES 2228,"GROCERY STORES, SUPERMARKETS",Children's Disability Service,Head of RSS,CLEANING AND DOMESTIC SUPPLIES
Cambridgeshire County Council,12/05/2021,8.92,AMAZON.CO.UK MK1SM5Q34,DIRECT MARKETING-OTHER DIRECT MARKETERS/NOT ELSEW.,Children's Disability Service,Head of RSS,CLEANING AND DOMESTIC SUPPLIES
Cambridgeshire County Council,12/05/2021,8.99,AMZNMKTPLACE,MISCELLANEOUS AND SPECIALTY RETAIL STORES,School Improvement Service,"Education, Health, Safety and Wellbeing - PSHE",GENERAL OFFICE EXPENSES & STATIONERY
Cambridgeshire County Council,12/05/2021,9.29,AMZNMKTPLACE,MISCELLANEOUS AND SPECIALTY RETAIL STORES,LD - In House Provider Services,40 & 44 Russell Street,SPECIALIST SUPPLIES AND MATERIALS
Cambridgeshire County Council,12/05/2021,13.70,ASDAN,SCHOOLS & EDUCATIONAL SVC-NOT ELSEWHERE CLASSIFIED,Youth Offending Service,YOT Project,GENERAL OFFICE EXPENSES & STATIONERY
Cambridgeshire County Council,12/05/2021,13.99,AMZNMKTPLACE,MISCELLANEOUS AND SPECIALTY RETAIL STORES,Children's Disability Service,Head of RSS,CATERING EQUIPMENT-PURCHASES
Cambridgeshire County Council,12/05/2021,14.00,MARKET KEBAB,FAST FOOD RESTAURANTS,Changing Futures & Projects,Housing First,OTHER SERVICE USER SUPPORT
Cambridgeshire County Council,12/05/2021,15.30,SAINSBURYS 0815,"GROCERY STORES, SUPERMARKETS",Changing Futures & Projects,Housing First,
Cambridgeshire County Council,12/05/2021,17.82,AMAZON.CO.UK MK0A656T4,DIRECT MARKETING-OTHER DIRECT MARKETERS/NOT ELSEW.,Outdoor Education (includes Grafham Water),Burwell House Residential Centre,BUILDING REPAIR AND MAINTENANCE
Cambridgeshire County Council,12/05/2021,18.87,AMZNMKTPLACE AMAZON.CO,MISCELLANEOUS AND SPECIALTY RETAIL STORES,LD - In House Provider Services,IHPS - Tennyson Lodge,BUILDING CLEANING
Cambridgeshire County Council,12/05/2021,20.00,AMAZON.CO.UK MK3424QX4,DIRECT MARKETING-OTHER DIRECT MARKETERS/NOT ELSEW.,Safeguarding and Quality Assurance,Childrens Participation,SPECIALIST EQUIPMENT FOR SERVICE DELIV
Cambridgeshire County Council,12/05/2021,20.00,AMAZON.CO.UK MK8XY1QD4,DIRECT MARKETING-OTHER DIRECT MARKETERS/NOT ELSEW.,Fostering & Supervised Contact Services,Foster Care Training,
Cambridgeshire County Council,12/05/2021,22.80,NEWMARKET GARDEN MACHI,MISCELLANEOUS REPAIR SHOPS AND RELATED SERVICES,Outdoor Education (includes Grafham Water),Burwell House Residential Centre,GROUNDS MAINTENANCE
Cambridgeshire County Council,12/05/2021,25.46,THE NURTURE GROUP NETW,"ORGANIZATIONS, CHARITABLE AND SOCIAL SERVICES",Virtual School,Virtual School for Care Experienced Children,
Cambridgeshire County Council,12/05/2021,26.49,TESCO STORE 2694,"GROCERY STORES, SUPERMARKETS",LD - In House Provider Services,6 St Lukes Close (Respite),
Cambridgeshire County Council,12/05/2021,30.00,PETERBOROUGH CARS,LIMOUSINES AND TAXICABS,Integrated Front Door,IFD - Multi-Agency Safeguarding Hub (MASH),
Cambridgeshire County Council,12/05/2021,40.07,CO-OP GROUP FOOD,SERVICE STATIONS WITH OR WITHOUT ANCILLARY SERVICE,Outdoor Education (includes Grafham Water),Burwell House Residential Centre,VEHICLE FUEL
Cambridgeshire County Council,12/05/2021,46.02,ALDI STORES CHELMSFORD,"GROCERY STORES, SUPERMARKETS",Early Years Service,Trumpington Park Early Years,CATERING PROVISIONS
Cambridgeshire County Council,12/05/2021,48.44,AMZNMKTPLACE AMAZON.CO,MISCELLANEOUS AND SPECIALTY RETAIL STORES,Children's Disability Service,Head of RSS,CLOTHING / UNIFORM
Cambridgeshire County Council,12/05/2021,65.20,STEVES PRIVATE HIR,"AUTO & TRUCK DLRS-SALES,SVC, REPRS,PRTS, & LEASING",Outdoor Education (includes Grafham Water),Grafham Water Centre,
Cambridgeshire County Council,12/05/2021,67.99,MH STAR UK LTD,"EQUIP, FURNITURE, HOME FURNSHNGS STRS (EXCPT APPL)",Targeted Support Service - North,EH Wisbech District,FURNITURE
Cambridgeshire County Council,12/05/2021,77.70,TESCO STORES 2228,"GROCERY STORES, SUPERMARKETS",Children's Disability Service,Head of RSS,CATERING PROVISIONS
Cambridgeshire County Council,12/05/2021,135.00,IOSH SERVICES LTD,SCHOOLS & EDUCATIONAL SVC-NOT ELSEWHERE CLASSIFIED,"Health, Safety & Wellbeing",HR HSW,STAFF TRAINING & DEVELOPMENT
Cambridgeshire County Council,12/05/2021,143.53,CITYSPRINT UK LIMITED,"COURIER SVC-AIR & GROUND, FREIGHT FORWARDERS",Coroners,Coroners General,POSTAGE & CARRIAGE
Cambridgeshire County Council,12/05/2021,146.99,EBAY O 26-07042-55698,DEPARTMENT STORES,Targeted Support Service - North,EH Wisbech District,FURNITURE
Cambridgeshire County Council,12/05/2021,159.00,TVLICENSING.CO.UK,"CONSULTING, MANAGEMENT, AND PUBLIC RELATIONS SVCS",LD - In House Provider Services,6 St Lukes Close (Respite),
Cambridgeshire County Council,12/05/2021,264.50,DUNELM LTD,"DRAPERY, UPOLSTERY, AND WINDOW COVERINGS STORES",Changing Futures & Projects,Housing First,OTHER SERVICE USER SUPPORT
Cambridgeshire County Council,12/05/2021,700.00,FACEBK  PVRXV3PV52,ADVERTISING SERVICES,Communication and Information,Communication and Information,
Cambridgeshire County Council,13/05/2021,-22.50,PREMIER INN,PREMIER INN,"Children, Education and Families Directorate","Children, Education and Families Directorate",CAR MILEAGE AND ALLOWANCES - STAFF
Cambridgeshire County Council,13/05/2021,2.99,AMAZON.CO.UK MK3JU0SC4,DIRECT MARKETING-OTHER DIRECT MARKETERS/NOT ELSEW.,Children's Disability Service,Head of RSS,EDUCATIONAL MATERIALS
Cambridgeshire County Council,13/05/2021,2.99,AMAZON.CO.UK MK3JU0SC4,DIRECT MARKETING-OTHER DIRECT MARKETERS/NOT ELSEW.,Children's Disability Service,Head of RSS,EDUCATIONAL MATERIALS
Cambridgeshire County Council,13/05/2021,3.00,SAINSBURYS 0815,"GROCERY STORES, SUPERMARKETS",Youth Offending Service,YOT - High Risk and Deter,OFFENDERS SUPPORT
Cambridgeshire County Council,13/05/2021,3.00,HM LAND REGISTRY - ONL,GOVERNMENT SERVICES-NOT ELSEWHERE CLASSIFIED,Shared Services,Debt Team,DEBT RECOVERY COSTS
Cambridgeshire County Council,13/05/2021,3.54,AMAZON.CO.UK MK3JU0SC4,DIRECT MARKETING-OTHER DIRECT MARKETERS/NOT ELSEW.,Children's Disability Service,Head of RSS,EDUCATIONAL MATERIALS
Cambridgeshire County Council,13/05/2021,3.81,AMAZON.CO.UK MK3JU0SC4,DIRECT MARKETING-OTHER DIRECT MARKETERS/NOT ELSEW.,Children's Disability Service,Head of RSS,EDUCATIONAL MATERIALS
Cambridgeshire County Council,13/05/2021,3.99,AMAZON.CO.UK MK3JU0SC4,DIRECT MARKETING-OTHER DIRECT MARKETERS/NOT ELSEW.,Children's Disability Service,Head of RSS,EDUCATIONAL MATERIALS
Cambridgeshire County Council,13/05/2021,3.99,AMAZON.CO.UK MK3JU0SC4,DIRECT MARKETING-OTHER DIRECT MARKETERS/NOT ELSEW.,Children's Disability Service,Head of RSS,EDUCATIONAL MATERIALS
Cambridgeshire County Council,13/05/2021,4.49,AMAZON.CO.UK MK3JU0SC4,DIRECT MARKETING-OTHER DIRECT MARKETERS/NOT ELSEW.,Children's Disability Service,Head of RSS,EDUCATIONAL MATERIALS
Cambridgeshire County Council,13/05/2021,4.80,1 AND 1 IONOS LTD,COMPUTER NETWORK/INFORMATION SERVICES,Schools,Pilgrim Pathways School,
Cambridgeshire County Council,13/05/2021,4.99,AMAZON.CO.UK MK4JG3SV4,DIRECT MARKETING-OTHER DIRECT MARKETERS/NOT ELSEW.,Early Years Service,Trumpington Park Early Years,GENERAL OFFICE EXPENSES & STATIONERY
Cambridgeshire County Council,13/05/2021,5.50,CO-OP GROUP FOOD,"GROCERY STORES, SUPERMARKETS",Changing Futures & Projects,Housing First,OTHER SERVICE USER SUPPORT
Cambridgeshire County Council,13/05/2021,5.70,TESCO STORE 2065,"GROCERY STORES, SUPERMARKETS",Traffic Management,Signals and Systems,STAFF SUBSISTENCE
Cambridgeshire County Council,13/05/2021,6.85,POST OFFICE COUNTER,POSTAL SERVICES-GOVERNMENT ONLY,Registration & Citizenship Services,Registrars General,POSTAGE & CARRIAGE
Cambridgeshire County Council,13/05/2021,8.00,AMZNMKTPLACE,MISCELLANEOUS AND SPECIALTY RETAIL STORES,Outdoor Education (includes Grafham Water),Grafham Water Centre,EQUIPMENT AND TOOLS
Cambridgeshire County Council,13/05/2021,8.00,AMZNMKTPLACE,MISCELLANEOUS AND SPECIALTY RETAIL STORES,Outdoor Education (includes Grafham Water),Grafham Water Centre,EQUIPMENT AND TOOLS
Cambridgeshire County Council,13/05/2021,8.00,AMZNMKTPLACE,MISCELLANEOUS AND SPECIALTY RETAIL STORES,Outdoor Education (includes Grafham Water),Grafham Water Centre,FURNITURE
Cambridgeshire County Council,13/05/2021,8.00,AMZNMKTPLACE,MISCELLANEOUS AND SPECIALTY RETAIL STORES,Outdoor Education (includes Grafham Water),Grafham Water Centre,FURNITURE
Cambridgeshire County Council,13/05/2021,8.00,AMZNMKTPLACE,MISCELLANEOUS AND SPECIALTY RETAIL STORES,Outdoor Education (includes Grafham Water),Grafham Water Centre,EQUIPMENT AND TOOLS
Cambridgeshire County Council,13/05/2021,8.00,AMZNMKTPLACE,MISCELLANEOUS AND SPECIALTY RETAIL STORES,Outdoor Education (includes Grafham Water),Grafham Water Centre,
Cambridgeshire County Council,13/05/2021,8.00,AMZNMKTPLACE,MISCELLANEOUS AND SPECIALTY RETAIL STORES,Outdoor Education (includes Grafham Water),Grafham Water Centre,FURNITURE
Cambridgeshire County Council,13/05/2021,8.00,AMZNMKTPLACE,MISCELLANEOUS AND SPECIALTY RETAIL STORES,Outdoor Education (includes Grafham Water),Grafham Water Centre,FURNITURE
Cambridgeshire County Council,13/05/2021,8.00,AMZNMKTPLACE,MISCELLANEOUS AND SPECIALTY RETAIL STORES,Outdoor Education (includes Grafham Water),Grafham Water Centre,FURNITURE
Cambridgeshire County Council,13/05/2021,8.00,AMZNMKTPLACE,MISCELLANEOUS AND SPECIALTY RETAIL STORES,Outdoor Education (includes Grafham Water),Grafham Water Centre,FURNITURE
Cambridgeshire County Council,13/05/2021,8.00,AMZNMKTPLACE,MISCELLANEOUS AND SPECIALTY RETAIL STORES,Outdoor Education (includes Grafham Water),Grafham Water Centre,FURNITURE
Cambridgeshire County Council,13/05/2021,8.00,AMZNMKTPLACE,MISCELLANEOUS AND SPECIALTY RETAIL STORES,Outdoor Education (includes Grafham Water),Grafham Water Centre,
Cambridgeshire County Council,13/05/2021,8.00,AMZNMKTPLACE,MISCELLANEOUS AND SPECIALTY RETAIL STORES,Outdoor Education (includes Grafham Water),Grafham Water Centre,FURNITURE
Cambridgeshire County Council,13/05/2021,8.00,AMZNMKTPLACE,MISCELLANEOUS AND SPECIALTY RETAIL STORES,Outdoor Education (includes Grafham Water),Grafham Water Centre,FURNITURE
Cambridgeshire County Council,13/05/2021,8.00,AMZNMKTPLACE,MISCELLANEOUS AND SPECIALTY RETAIL STORES,Outdoor Education (includes Grafham Water),Grafham Water Centre,
Cambridgeshire County Council,13/05/2021,8.00,AMZNMKTPLACE,MISCELLANEOUS AND SPECIALTY RETAIL STORES,Outdoor Education (includes Grafham Water),Grafham Water Centre,FURNITURE
Cambridgeshire County Council,13/05/2021,8.00,AMZNMKTPLACE,MISCELLANEOUS AND SPECIALTY RETAIL STORES,Outdoor Education (includes Grafham Water),Grafham Water Centre,FURNITURE
Cambridgeshire County Council,13/05/2021,8.00,AMZNMKTPLACE,MISCELLANEOUS AND SPECIALTY RETAIL STORES,Outdoor Education (includes Grafham Water),Grafham Water Centre,FURNITURE
Cambridgeshire County Council,13/05/2021,8.00,AMZNMKTPLACE,MISCELLANEOUS AND SPECIALTY RETAIL STORES,Outdoor Education (includes Grafham Water),Grafham Water Centre,FURNITURE
Cambridgeshire County Council,13/05/2021,8.00,AMZNMKTPLACE,MISCELLANEOUS AND SPECIALTY RETAIL STORES,Outdoor Education (includes Grafham Water),Grafham Water Centre,FURNITURE
Cambridgeshire County Council,13/05/2021,8.00,AMZNMKTPLACE,MISCELLANEOUS AND SPECIALTY RETAIL STORES,Outdoor Education (includes Grafham Water),Grafham Water Centre,FURNITURE
Cambridgeshire County Council,13/05/2021,8.00,AMZNMKTPLACE,MISCELLANEOUS AND SPECIALTY RETAIL STORES,Outdoor Education (includes Grafham Water),Grafham Water Centre,FURNITURE
Cambridgeshire County Council,13/05/2021,8.00,AMZNMKTPLACE,MISCELLANEOUS AND SPECIALTY RETAIL STORES,Outdoor Education (includes Grafham Water),Grafham Water Centre,FURNITURE
Cambridgeshire County Council,13/05/2021,8.00,AMZNMKTPLACE,MISCELLANEOUS AND SPECIALTY RETAIL STORES,Outdoor Education (includes Grafham Water),Grafham Water Centre,EQUIPMENT AND TOOLS
Cambridgeshire County Council,13/05/2021,9.98,AMAZON.CO.UK MK63K2DC4,DIRECT MARKETING-OTHER DIRECT MARKETERS/NOT ELSEW.,ICT Service (Education),ICT Service Systems Development,
Cambridgeshire County Council,13/05/2021,10.00,EE TOPUP  VESTA,TELECOM INCL PREPAID/RECURRING PHONE SVCS,Changing Futures & Projects,Housing First,OTHER SERVICE USER SUPPORT
Cambridgeshire County Council,13/05/2021,11.34,SAINSBURYS SACAT 0417,"GROCERY STORES, SUPERMARKETS",Changing Futures & Projects,Housing First,OTHER SERVICE USER SUPPORT
Cambridgeshire County Council,13/05/2021,14.62,AMAZON.CO.UK MK6BS3DE4,DIRECT MARKETING-OTHER DIRECT MARKETERS/NOT ELSEW.,Children's Disability Service,Head of RSS,CLEANING AND DOMESTIC SUPPLIES
Cambridgeshire County Council,13/05/2021,14.63,AMAZON.CO.UK MK3CX2D84,DIRECT MARKETING-OTHER DIRECT MARKETERS/NOT ELSEW.,Children's Disability Service,Head of RSS,CLEANING AND DOMESTIC SUPPLIES
Cambridgeshire County Council,13/05/2021,25.18,WWW.NISBETS.COM,DIRECT MARKETING-CATALOG MERCHANTS,Outdoor Education (includes Grafham Water),CEES Stibbington Centre,CLEANING AND DOMESTIC SUPPLIES
Cambridgeshire County Council,13/05/2021,26.95,AMZNMKTPLACE,MISCELLANEOUS AND SPECIALTY RETAIL STORES,Outdoor Education (includes Grafham Water),Grafham Water Centre,EDUCATIONAL EQUIPMENT
Cambridgeshire County Council,13/05/2021,29.99,FASTHOSTS INTERNET,COMPUTER NETWORK/INFORMATION SERVICES,ICT Service (Education),ICT Service Systems Development,
Cambridgeshire County Council,13/05/2021,33.45,POST OFFICE COUNTER,POSTAL SERVICES-GOVERNMENT ONLY,Coroners,Coroners General,POSTAGE & CARRIAGE
Cambridgeshire County Council,13/05/2021,43.96,AMZNMKTPLACE,MISCELLANEOUS AND SPECIALTY RETAIL STORES,Outdoor Education (includes Grafham Water),Grafham Water Centre,EDUCATIONAL MATERIALS
Cambridgeshire County Council,13/05/2021,48.90,TESCO GIFT CARD,"GROCERY STORES, SUPERMARKETS",Corporate Parenting,North Care Leaving Team 1,GRANTS&SUPPORT FOR OTHER SERVICE USERS
Cambridgeshire County Council,13/05/2021,54.09,AMZNMKTPLACE AMAZON.CO,MISCELLANEOUS AND SPECIALTY RETAIL STORES,Cambridgeshire Skills,Cambridgeshire Skills - March Community Centre - Learning,EDUCATIONAL MATERIALS
Cambridgeshire County Council,13/05/2021,58.50,HM PASSPORT OFFICE,GOVERNMENT SERVICES-NOT ELSEWHERE CLASSIFIED,Corporate Parenting,Separated Migrant Children > 18,
Cambridgeshire County Council,13/05/2021,62.00,PREMIER INN,PREMIER INN,"Children, Education and Families Directorate","Children, Education and Families Directorate",CAR MILEAGE AND ALLOWANCES - STAFF
Cambridgeshire County Council,13/05/2021,63.80,AMZNMKTPLACE,MISCELLANEOUS AND SPECIALTY RETAIL STORES,Outdoor Education (includes Grafham Water),Grafham Water Centre,CATERING EQUIPMENT-REPAIRS&MAINTENANCE
Cambridgeshire County Council,13/05/2021,70.99,CURRYS ONLINE,ELECTRONIC SALES,Targeted Support Service - North,EH Wisbech District,FURNITURE
Cambridgeshire County Council,13/05/2021,75.50,HM PASSPORT OFFICE,GOVERNMENT SERVICES-NOT ELSEWHERE CLASSIFIED,Corporate Parenting,North Care Leaving Team 1,GRANTS&SUPPORT FOR OTHER SERVICE USERS
Cambridgeshire County Council,13/05/2021,85.00,HM PASSPORT OFFICE,GOVERNMENT SERVICES-NOT ELSEWHERE CLASSIFIED,Corporate Parenting,Separated Migrant Children > 18,GRANTS&SUPPORT FOR OTHER SERVICE USERS
Cambridgeshire County Council,13/05/2021,85.00,HM PASSPORT OFFICE,GOVERNMENT SERVICES-NOT ELSEWHERE CLASSIFIED,Corporate Parenting,Separated Migrant Children > 18,GRANTS&SUPPORT FOR OTHER SERVICE USERS
Cambridgeshire County Council,13/05/2021,107.00,CAMBRIDGE CITY COUNCIL,GOVERNMENT SERVICES-NOT ELSEWHERE CLASSIFIED,Family Safeguarding East,Family Safeguarding East & South Cambs and Cambridge,LIVING SUPPORT GRANTS
Cambridgeshire County Council,13/05/2021,121.08,FASTHOSTS INTERNET,COMPUTER NETWORK/INFORMATION SERVICES,ICT Service (Education),ICT Service Systems Development,
Cambridgeshire County Council,13/05/2021,169.00,CURRYS ONLINE,ELECTRONIC SALES,LD - In House Provider Services,6 St Lukes Close (Respite),SPECIALIST SUPPLIES AND MATERIALS
Cambridgeshire County Council,13/05/2021,300.00,BANNATYNE WEBSHOP,"ATHLTIC FIELDS,COMMRCL SPRT,SPRT CLBS,SPRT PROMOTR",Fostering & Supervised Contact Services,Fostering Recruitment & Assessment Team,SUPPORT AND GRANTS TO FOSTER CARERS
Cambridgeshire County Council,13/05/2021,345.60,MEETINGDECISIONS.COM,"CONSULTING, MANAGEMENT, AND PUBLIC RELATIONS SVCS",ICT Service (Education),ICT Service Systems Development,
Cambridgeshire County Council,14/05/2021,-7.99,AMAZON PRIME,DIRECT MARKETING-CONTINUITY/SUBSCRIPTION MERCHANTS,"Communities, Employment & Skills",YS - DfE Essential Skills for Life,
Cambridgeshire County Council,14/05/2021,3.00,HM LAND REGISTRY - ONL,GOVERNMENT SERVICES-NOT ELSEWHERE CLASSIFIED,Shared Services,Debt Team,DEBT RECOVERY COSTS
Cambridgeshire County Council,14/05/2021,3.00,HM LAND REGISTRY - ONL,GOVERNMENT SERVICES-NOT ELSEWHERE CLASSIFIED,Shared Services,Debt Team,DEBT RECOVERY COSTS
Cambridgeshire County Council,14/05/2021,3.00,HM LAND REGISTRY - ONL,GOVERNMENT SERVICES-NOT ELSEWHERE CLASSIFIED,Shared Services,Debt Team,DEBT RECOVERY COSTS
Cambridgeshire County Council,14/05/2021,4.50,NCP LTD,AUTOMOBILE PARKING LOTS AND GARAGES,Changing Futures & Projects,Housing First,OTHER SERVICE USER SUPPORT
Cambridgeshire County Council,14/05/2021,5.00,DART-CHARGE,"BRIDGE AND ROAD FEES, TOLLS",Children's Disability Service,Disability Referral & Access Team,
Cambridgeshire County Council,14/05/2021,5.97,POST OFFICE COUNTER,POSTAL SERVICES-GOVERNMENT ONLY,School Improvement Service,Education Health Safety and Wellbeing: PE & Sport Advisor,PRINTING
Cambridgeshire County Council,14/05/2021,5.99,DISNEY PLUS,"CABLE, SATELLITE, OTHER PAY TELEVISION, RADIO SVCS",Children's Disability Service,Head of RSS,SERVICE CHARGES
Cambridgeshire County Council,14/05/2021,7.99,AMAZON PRIME MK84U0SP4,DIRECT MARKETING-CONTINUITY/SUBSCRIPTION MERCHANTS,Children's Disability Service,Head of RSS,SERVICE CHARGES
Cambridgeshire County Council,14/05/2021,9.52,CANVA  03055-0664758,PHOTOGRAPHIC STUDIOS,Communication and Information,Communication and Information,
Cambridgeshire County Council,14/05/2021,9.87,SCREWFIX DIRECT,"BUILDING MATERIALS, LUMBER STORES",Targeted Support Service - South,EH Child and Family Centre - East Cambs,SPECIALIST EQUIPMENT FOR SERVICE DELIV
Cambridgeshire County Council,14/05/2021,14.00,ARGOS LTD,DISCOUNT STORES,Corporate Parenting,Separated Migrant Children > 18,ASYLUM SEEKERS
Cambridgeshire County Council,14/05/2021,14.99,ARGOS LTD,DISCOUNT STORES,Family Safeguarding East,Fenland Children's Team 2,
Cambridgeshire County Council,14/05/2021,15.00,NCC INCOME,GOVERNMENT SERVICES-NOT ELSEWHERE CLASSIFIED,0-19 Organisation & Planning,Attendance and Behaviour,PROFESSIONAL FEES AND HIRED SERVICES
Cambridgeshire County Council,14/05/2021,16.06,INDEED TEL+35312545907,BUSINESS SERVICES-NOT ELSEWHERE CLASSIFIED,LD - In House Provider Services,6 St Lukes Close (Respite),
Cambridgeshire County Council,14/05/2021,16.30,AMAZON.CO.UK MK2UL6KM4,DIRECT MARKETING-OTHER DIRECT MARKETERS/NOT ELSEW.,Early Years Service,Trumpington Park Early Years,STAFF TRAINING & DEVELOPMENT
Cambridgeshire County Council,14/05/2021,16.85,ONE STOP 0409,"GROCERY STORES, SUPERMARKETS",Changing Futures & Projects,Housing First,OTHER SERVICE USER SUPPORT
Cambridgeshire County Council,14/05/2021,19.27,POST OFFICE COUNTER,POSTAL SERVICES-GOVERNMENT ONLY,Coroners,Coroners General,POSTAGE & CARRIAGE
Cambridgeshire County Council,14/05/2021,22.34,AMAZON.CO.UK MK8MI1KN4,DIRECT MARKETING-OTHER DIRECT MARKETERS/NOT ELSEW.,Targeted Support Service - South,EH Child and Family Centre - Cambridge City,"FIXTURES, FITTINGS AND FURNISHINGS"
Cambridgeshire County Council,14/05/2021,23.33,FOOD TO GO,FAST FOOD RESTAURANTS,Changing Futures & Projects,Housing First,OTHER SERVICE USER SUPPORT
Cambridgeshire County Council,14/05/2021,25.49,AMZNMKTPLACE,MISCELLANEOUS AND SPECIALTY RETAIL STORES,Alternative Provision and Inclusion,Alternative Education Service & EIO's,
Cambridgeshire County Council,14/05/2021,27.00,ARGOS LTD,DISCOUNT STORES,Corporate Parenting,Separated Migrant Children > 18,ASYLUM SEEKERS
Cambridgeshire County Council,14/05/2021,29.25,NATIONAL SHOWER SPARES,"EQUIP, FURNITURE, HOME FURNSHNGS STRS (EXCPT APPL)",Park & Ride,Park and Ride Admin,BUILDING REPAIR AND MAINTENANCE
Cambridgeshire County Council,14/05/2021,29.95,ARGOS LTD,DISCOUNT STORES,Corporate Parenting,North Child Looked After Team 1,GRANTS&SUPPORT FOR OTHER SERVICE USERS
Cambridgeshire County Council,14/05/2021,30.00,PAYPAL  TARGETPRINT,MISCELLANEOUS PUBLISHING AND PRINTING,Connecting Cambridgeshire,Connecting Cambridgeshire,PRINTING
Cambridgeshire County Council,14/05/2021,32.80,PAYPAL  DHLPARCELUK,"COURIER SVC-AIR & GROUND, FREIGHT FORWARDERS",Virtual School,Virtual School for Care Experienced Children,
Cambridgeshire County Council,14/05/2021,32.80,PAYPAL  DHLPARCELUK,"COURIER SVC-AIR & GROUND, FREIGHT FORWARDERS",Virtual School,Virtual School for Care Experienced Children,
Cambridgeshire County Council,14/05/2021,37.99,AMAZON.CO.UK MK72U4264,DIRECT MARKETING-OTHER DIRECT MARKETERS/NOT ELSEW.,Alternative Provision and Inclusion,Alternative Education Service & EIO's,
Cambridgeshire County Council,14/05/2021,38.03,AMZNMKTPLACE AMAZON.CO,MISCELLANEOUS AND SPECIALTY RETAIL STORES,Early Years Service,Trumpington Park Early Years,EDUCATIONAL EQUIPMENT
Cambridgeshire County Council,14/05/2021,47.49,AMZN DIGITAL,RECORD SHOPS,Children's Disability Service,Head of RSS,OTHER SERVICE USER SUPPORT
Cambridgeshire County Council,14/05/2021,62.50,TESCO STORES 4375,"GROCERY STORES, SUPERMARKETS",Targeted Support Service - North,EH Child and Family Centre - Wisbech,EDUCATIONAL MATERIALS
Cambridgeshire County Council,14/05/2021,69.00,TICKETSOURCE,COMPUTER SOFTWARE STORES,LD - In House Provider Services,IHPS - Tennyson Lodge,SPECIALIST EQUIPMENT FOR SERVICE DELIV
Cambridgeshire County Council,14/05/2021,84.72,WWW.DIRECT-FUNDRAISING,MISCELLANEOUS AND SPECIALTY RETAIL STORES,Public Library Services,Support - Business Support,"FIXTURES, FITTINGS AND FURNISHINGS"
Cambridgeshire County Council,14/05/2021,125.28,AMZNMKTPLACE AMAZON.CO,MISCELLANEOUS AND SPECIALTY RETAIL STORES,Early Years Service,Trumpington Park Early Years,GOVERNMENT REIMBURSEMENTS
Cambridgeshire County Council,14/05/2021,169.58,WM MORRISONS STORE PIC,"GROCERY STORES, SUPERMARKETS",Children's Disability Service,Head of RSS,CATERING PROVISIONS
Cambridgeshire County Council,14/05/2021,324.08,PHS GROUP,BUSINESS SERVICES-NOT ELSEWHERE CLASSIFIED,Children's Disability Service,Head of RSS,EQUIPMENT OPERATING LEASE RENTALS
Cambridgeshire County Council,14/05/2021,342.82,PHS GROUP,BUSINESS SERVICES-NOT ELSEWHERE CLASSIFIED,Children's Disability Service,Head of RSS,EQUIPMENT OPERATING LEASE RENTALS
Cambridgeshire County Council,14/05/2021,342.82,PHS GROUP,BUSINESS SERVICES-NOT ELSEWHERE CLASSIFIED,Children's Disability Service,Head of RSS,EQUIPMENT OPERATING LEASE RENTALS
Cambridgeshire County Council,14/05/2021,366.50,POST OFFICE COUNTER,POSTAL SERVICES-GOVERNMENT ONLY,0-19 Organisation & Planning,Attendance and Behaviour,POSTAGE & CARRIAGE
Cambridgeshire County Council,14/05/2021,540.00,SAFESPACES,DENTAL/LAB/MED/OPHTHALMIC HOSP EQUIP & SUPPLIES,Children's Disability Service,Head of RSS,SPECIALIST EQUIPMENT FOR SERVICE DELIV
Cambridgeshire County Council,17/05/2021,4.40,TESCO STORES 2229,"GROCERY STORES, SUPERMARKETS",Changing Futures & Projects,Housing First,OTHER SERVICE USER SUPPORT
Cambridgeshire County Council,17/05/2021,4.70,ASDA STORES 4857,"GROCERY STORES, SUPERMARKETS",Targeted Support Service - South,EH Child and Family Centre - East Cambs,SPECIALIST EQUIPMENT FOR SERVICE DELIV
Cambridgeshire County Council,17/05/2021,6.43,LIMONCELLO (CAMBRIDGE),"GROCERY STORES, SUPERMARKETS",Changing Futures & Projects,Housing First,OTHER SERVICE USER SUPPORT
Cambridgeshire County Council,17/05/2021,7.99,AMAZON PRIME MK7TG5K84,DIRECT MARKETING-CONTINUITY/SUBSCRIPTION MERCHANTS,LD - In House Provider Services,6 St Lukes Close (Respite),
Cambridgeshire County Council,17/05/2021,7.99,AMAZON PRIME MK0ZF09W4,DIRECT MARKETING-CONTINUITY/SUBSCRIPTION MERCHANTS,0-19 Organisation & Planning,Education Safeguarding,GENERAL OFFICE EXPENSES & STATIONERY
Cambridgeshire County Council,17/05/2021,7.99,AMZNMKTPLACE,MISCELLANEOUS AND SPECIALTY RETAIL STORES,Children's Disability Service,Head of RSS,EQUIPMENT AND TOOLS
Cambridgeshire County Council,17/05/2021,8.00,WM MORRISONS STORE PIC,"GROCERY STORES, SUPERMARKETS",Children's Disability Service,Head of RSS,SUBSCRIPTIONS
Cambridgeshire County Council,17/05/2021,8.32,HSW NETNATION.COM,DIRECT MARKETING-CONTINUITY/SUBSCRIPTION MERCHANTS,"Communities, Employment & Skills",Communities Service - Management,PROFESSIONAL FEES AND HIRED SERVICES
Cambridgeshire County Council,17/05/2021,9.99,AMAZON.CO.UK MK7GK6724,DIRECT MARKETING-OTHER DIRECT MARKETERS/NOT ELSEW.,Early Years Service,Trumpington Park Early Years,GENERAL OFFICE EXPENSES & STATIONERY
Cambridgeshire County Council,17/05/2021,10.55,SUMUP   JAMES DAVIS,LIMOUSINES AND TAXICABS,Changing Futures & Projects,Housing First,OTHER SERVICE USER SUPPORT
Cambridgeshire County Council,17/05/2021,10.57,ALDI,"GROCERY STORES, SUPERMARKETS",Outdoor Education (includes Grafham Water),Grafham Water Centre,BUILDING REPAIR AND MAINTENANCE
Cambridgeshire County Council,17/05/2021,10.95,FOOD TO GO,FAST FOOD RESTAURANTS,Changing Futures & Projects,Housing First,OTHER SERVICE USER SUPPORT
Cambridgeshire County Council,17/05/2021,12.35,SUMUP   DAVID KIRK,LIMOUSINES AND TAXICABS,Changing Futures & Projects,Housing First,OTHER SERVICE USER SUPPORT
Cambridgeshire County Council,17/05/2021,12.82,ASDA STORES 4857,"GROCERY STORES, SUPERMARKETS",Outdoor Education (includes Grafham Water),Burwell House Residential Centre,CATERING PROVISIONS
Cambridgeshire County Council,17/05/2021,12.82,AMAZON.CO.UK MK44F97V4,DIRECT MARKETING-OTHER DIRECT MARKETERS/NOT ELSEW.,Children's Disability Service,Head of RSS,CLEANING AND DOMESTIC SUPPLIES
Cambridgeshire County Council,17/05/2021,13.18,WEST END DIY,HARDWARE STORES,LD - In House Provider Services,IHPS - Tennyson Lodge,GROUNDS MAINTENANCE
Cambridgeshire County Council,17/05/2021,16.94,PAYPAL  RANGEHOMELE,"EQUIP, FURNITURE, HOME FURNSHNGS STRS (EXCPT APPL)",Targeted Support Service - North,EH Wisbech District,FURNITURE
Cambridgeshire County Council,17/05/2021,17.98,FASTHOSTS INTERNET,COMPUTER NETWORK/INFORMATION SERVICES,ICT Service (Education),ICT Service Systems Development,
Cambridgeshire County Council,17/05/2021,18.89,AMZNMKTPLACE,MISCELLANEOUS AND SPECIALTY RETAIL STORES,Family Safeguarding East,Fenland Children's Team 2,
Cambridgeshire County Council,17/05/2021,22.22,NISA,"GROCERY STORES, SUPERMARKETS",Changing Futures & Projects,Housing First,OTHER SERVICE USER SUPPORT
Cambridgeshire County Council,17/05/2021,24.00,WILKO RETAIL LIMITED,MISCELLANEOUS GENERAL MERCHANDISE,LD - In House Provider Services,6 St Lukes Close (Respite),
Cambridgeshire County Council,17/05/2021,26.54,CARTRIDGE SAVE,STATIONERY/OFFICE SUPPLIES/PRINTING & WRITING PAP.,Early Years Service,Trumpington Park Early Years,GENERAL OFFICE EXPENSES & STATIONERY
Cambridgeshire County Council,17/05/2021,26.63,POST OFFICE COUNTER,POSTAL SERVICES-GOVERNMENT ONLY,Coroners,Coroners General,POSTAGE & CARRIAGE
Cambridgeshire County Council,17/05/2021,29.99,LEARNPAC SYSTEMS,SCHOOLS & EDUCATIONAL SVC-NOT ELSEWHERE CLASSIFIED,Early Years Service,Trumpington Park Early Years,STAFF TRAINING & DEVELOPMENT
Cambridgeshire County Council,17/05/2021,30.00,TESCO GIFT CARD,"GROCERY STORES, SUPERMARKETS",Corporate Parenting,North Care Leaving Team 1,LEAVING CARE GRANTS
Cambridgeshire County Council,17/05/2021,32.80,PAYPAL  DHLPARCELUK,"COURIER SVC-AIR & GROUND, FREIGHT FORWARDERS",Virtual School,Virtual School for Care Experienced Children,
Cambridgeshire County Council,17/05/2021,33.98,WEST END DIY,HARDWARE STORES,LD - In House Provider Services,6 St Lukes Close (Respite),
Cambridgeshire County Council,17/05/2021,34.99,CURRYS ONLINE,ELECTRONIC SALES,Shorter Term Support and Maximising Independence,Technology Enabled Care (TEC),SPECIALIST EQUIPMENT FOR SERVICE DELIV
Cambridgeshire County Council,17/05/2021,38.00,B&M 292 - MARCH,MISCELLANEOUS GENERAL MERCHANDISE,LD - In House Provider Services,IHPS - Tennyson Lodge,GROUNDS MAINTENANCE
Cambridgeshire County Council,17/05/2021,39.95,AMZNMKTPLACE,MISCELLANEOUS AND SPECIALTY RETAIL STORES,Outdoor Education (includes Grafham Water),Grafham Water Centre,CATERING EQUIPMENT-PURCHASES
Cambridgeshire County Council,17/05/2021,43.16,ZOOM.US 888-799-9666,TELECOM INCL PREPAID/RECURRING PHONE SVCS,School Improvement Service,"Education, Health, Safety and Wellbeing - PSHE",SUBSCRIPTIONS
Cambridgeshire County Council,17/05/2021,43.45,TESCO STORE 2694,"GROCERY STORES, SUPERMARKETS",LD - In House Provider Services,6 St Lukes Close (Respite),
Cambridgeshire County Council,17/05/2021,60.00,EMMAUS CAMBRIDGE,"EQUIP, FURNITURE, HOME FURNSHNGS STRS (EXCPT APPL)",Changing Futures & Projects,Housing First,OTHER SERVICE USER SUPPORT
Cambridgeshire County Council,17/05/2021,75.00,HOTEL ON BOOKING.COM,"LODGING-HOTELS,MOTELS,RESORTS-NOT CLASSIFIED","Children, Education and Families Directorate","Children, Education and Families Directorate",GRANTS&SUPPORT FOR OTHER SERVICE USERS
Cambridgeshire County Council,17/05/2021,80.00,KATHY BRODIE,PROFESSIONAL SERVICES-NOT ELSEWHERE CLASSIFIED,Early Years Service,Oasis Nursery,EDUCATIONAL EQUIPMENT
Cambridgeshire County Council,17/05/2021,80.67,WWW.GOMPELS.CO.UK,INDUSTRIAL SUPPLIES NOT ELSEWHERE CLASSIFIED,Early Years Service,Trumpington Park Early Years,SPECIALIST SUPPLIES AND MATERIALS
Cambridgeshire County Council,17/05/2021,84.00,ECOTEXTURA,"HEALTH PRACTITIONERS, MEDICAL SRVCS-NOT ELSEWHERE",SEND Specialist Services,Sensory Support Team (0-25),
Cambridgeshire County Council,17/05/2021,90.00,FACEBK S4ABL4XZU2,ADVERTISING SERVICES,Fostering & Supervised Contact Services,Fostering Support and Supervision,RECRUITMENT ADVERTISING
Cambridgeshire County Council,17/05/2021,92.02,VINYL BANNERS PRINTING,"QUICK COPY,REPRODUCTION AND BLUEPRINTING SERVICES",Cultural Services,The Library Presents,
Cambridgeshire County Council,17/05/2021,142.80,HOO HOOTSUITE INC,BUSINESS SERVICES-NOT ELSEWHERE CLASSIFIED,GCP,GCP - Strategic Communicatations,GENERAL OFFICE EXPENSES & STATIONERY
Cambridgeshire County Council,17/05/2021,143.88,ZOOM.GBP,DIRECT MARKETING-CONTINUITY/SUBSCRIPTION MERCHANTS,Early Years Service,Oasis Nursery,EDUCATIONAL EQUIPMENT
Cambridgeshire County Council,17/05/2021,175.00,TWITTER ONLINE ADS,ADVERTISING SERVICES,Human Resources,Social Work Recruit & Retain,RECRUITMENT ADVERTISING
Cambridgeshire County Council,17/05/2021,250.00,WWW.VOUCHEREXPRESS.CO.,"GIFT, CARD, NOVELTY AND SOUVENIR SHOPS",Corporate Parenting,Separated Migrant Children > 18,LEAVING CARE GRANTS
Cambridgeshire County Council,18/05/2021,1.28,TESCO STORES 2228,"GROCERY STORES, SUPERMARKETS",Changing Futures & Projects,Housing First,OTHER SERVICE USER SUPPORT
Cambridgeshire County Council,18/05/2021,1.98,IZ  J D WETHERSPOON PL,"EATING PLACES, RESTAURANTS",Changing Futures & Projects,Housing First,OTHER SERVICE USER SUPPORT
Cambridgeshire County Council,18/05/2021,3.70,GRAFHAM WATER PARK,AUTOMOBILE PARKING LOTS AND GARAGES,Youth Offending Service,YOT - High Risk and Deter,OFFENDERS SUPPORT
Cambridgeshire County Council,18/05/2021,5.56,LIDL GB PETERBOROUGH,"GROCERY STORES, SUPERMARKETS","Communities, Employment & Skills",YS - National Citizen Service,CURRICULUM EXPENSES
Cambridgeshire County Council,18/05/2021,5.65,NISA LOCAL SHANS GREEN,"GROCERY STORES, SUPERMARKETS",Changing Futures & Projects,Housing First,OTHER SERVICE USER SUPPORT
Cambridgeshire County Council,18/05/2021,7.99,AMAZON MUSIC MK5271RZ4,RECORD SHOPS,Children's Disability Service,Head of RSS,SUBSCRIPTIONS
Cambridgeshire County Council,18/05/2021,9.85,CO-OP GROUP 070661,"GROCERY STORES, SUPERMARKETS",Changing Futures & Projects,Housing First,OTHER SERVICE USER SUPPORT
Cambridgeshire County Council,18/05/2021,11.27,PARCEL2GO.COM LTD,"COURIER SVC-AIR & GROUND, FREIGHT FORWARDERS",Outdoor Education (includes Grafham Water),Grafham Water Centre,
Cambridgeshire County Council,18/05/2021,13.98,AMZNMKTPLACE AMAZON.CO,MISCELLANEOUS AND SPECIALTY RETAIL STORES,Outdoor Education (includes Grafham Water),Grafham Water Centre,CATERING EQUIPMENT-PURCHASES
Cambridgeshire County Council,18/05/2021,15.00,TESCO GIFT CARD,"GROCERY STORES, SUPERMARKETS",Corporate Parenting,North Care Leaving Team 1,LEAVING CARE GRANTS
Cambridgeshire County Council,18/05/2021,15.00,NCC INCOME,GOVERNMENT SERVICES-NOT ELSEWHERE CLASSIFIED,0-19 Organisation & Planning,Attendance and Behaviour,PROFESSIONAL FEES AND HIRED SERVICES
Cambridgeshire County Council,18/05/2021,17.00,AMZNMKTPLACE,MISCELLANEOUS AND SPECIALTY RETAIL STORES,School Improvement Service,Adventure Playground,GENERAL OFFICE EXPENSES & STATIONERY
Cambridgeshire County Council,18/05/2021,19.48,LAKELAND.LIMITED,MISCELLANEOUS GENERAL MERCHANDISE,Early Years Service,Oasis Nursery,EDUCATIONAL EQUIPMENT
Cambridgeshire County Council,18/05/2021,20.89,AMAZON.CO.UK MK9042RQ4,DIRECT MARKETING-OTHER DIRECT MARKETERS/NOT ELSEW.,Children's Disability Service,Head of RSS,BUILDING CLEANING
Cambridgeshire County Council,18/05/2021,30.00,TESCO GIFT CARD,"GROCERY STORES, SUPERMARKETS",Corporate Parenting,North Care Leaving Team 1,LEAVING CARE GRANTS
Cambridgeshire County Council,18/05/2021,30.00,BROOK YOUNG PEOPLE,"ORGANIZATIONS, CHARITABLE AND SOCIAL SERVICES",0-19 Organisation & Planning,Education Safeguarding,GENERAL OFFICE EXPENSES & STATIONERY
Cambridgeshire County Council,18/05/2021,30.00,TESCO GIFT CARD,"GROCERY STORES, SUPERMARKETS",Corporate Parenting,North Care Leaving Team 1,LEAVING CARE GRANTS
Cambridgeshire County Council,18/05/2021,30.99,CURRYS ONLINE,ELECTRONIC SALES,Changing Futures & Projects,Housing First,OTHER SERVICE USER SUPPORT
Cambridgeshire County Council,18/05/2021,35.20,TESCO STORE 2694,"GROCERY STORES, SUPERMARKETS",LD - In House Provider Services,6 St Lukes Close (Respite),
Cambridgeshire County Council,18/05/2021,35.99,CRAZY EGG.COM,BUSINESS SERVICES-NOT ELSEWHERE CLASSIFIED,IT & Digital Service,Business & Digital Systems,COMPUTER SOFTWARE - PURCHASE
Cambridgeshire County Council,18/05/2021,36.06,AMZNMKTPLACE,MISCELLANEOUS AND SPECIALTY RETAIL STORES,Early Years Service,Trumpington Park Early Years,EDUCATIONAL EQUIPMENT
Cambridgeshire County Council,18/05/2021,39.87,TESCO STORE 2889,"GROCERY STORES, SUPERMARKETS",LD - In House Provider Services,Horizon,CATERING PROVISIONS
Cambridgeshire County Council,18/05/2021,45.00,AMAZON.CO.UK MK8KT6IJ4,DIRECT MARKETING-OTHER DIRECT MARKETERS/NOT ELSEW.,Safeguarding and Quality Assurance,Childrens Participation,SPECIALIST EQUIPMENT FOR SERVICE DELIV
Cambridgeshire County Council,18/05/2021,50.78,WWW.GOMPELS.CO.UK,INDUSTRIAL SUPPLIES NOT ELSEWHERE CLASSIFIED,Early Years Service,Oasis Nursery,EDUCATIONAL EQUIPMENT
Cambridgeshire County Council,18/05/2021,52.97,AMZNMKTPLACE,MISCELLANEOUS AND SPECIALTY RETAIL STORES,ICT Service (Education),ICT Service Systems Development,
Cambridgeshire County Council,18/05/2021,55.00,AUDITORY VERBAL UK,"ORGANIZATIONS, CHARITABLE AND SOCIAL SERVICES",SEND Specialist Services,Sensory Support Team (0-25),SPECIALIST EQUIPMENT FOR SERVICE DELIV
Cambridgeshire County Council,18/05/2021,57.25,HOMEBASE,HOME SUPPLY WAREHOUSE STORES,Outdoor Education (includes Grafham Water),Burwell House Residential Centre,BUILDING REPAIR AND MAINTENANCE
Cambridgeshire County Council,18/05/2021,59.00,ORIGINAL FACTORY S,DEPARTMENT STORES,Changing Futures & Projects,Housing First,OTHER SERVICE USER SUPPORT
Cambridgeshire County Council,18/05/2021,60.00,WWW.VOUCHEREXPRESS.CO.,"GIFT, CARD, NOVELTY AND SOUVENIR SHOPS",Adoption,Regional Adoption Agency,PROFESSIONAL FEES AND HIRED SERVICES
Cambridgeshire County Council,18/05/2021,87.58,THETRAINLINE.COM,PASSENGER RAILWAYS,Corporate Parenting,Separated Migrant Children > 18,VEHICLE AND PLANT HIRE
Cambridgeshire County Council,18/05/2021,89.58,WM MORRISONS STORE PIC,"GROCERY STORES, SUPERMARKETS",Children's Disability Service,Head of RSS,CATERING PROVISIONS
Cambridgeshire County Council,18/05/2021,90.00,BAYFIELD VEHICLE HIRE,"AUTO & TRUCK DLRS-SALES,SVC, REPRS,PRTS, & LEASING",Changing Futures & Projects,Housing First,OTHER SERVICE USER SUPPORT
Cambridgeshire County Council,18/05/2021,105.60,ANN ARBOR PUBLISH,MISCELLANEOUS PUBLISHING AND PRINTING,SEND Specialist Services,Sensory Support Team (0-25),
Cambridgeshire County Council,18/05/2021,129.79,WM MORRISONS STORE PIC,"GROCERY STORES, SUPERMARKETS",Children's Disability Service,Head of RSS,CATERING PROVISIONS
Cambridgeshire County Council,18/05/2021,129.98,TOOLSTATION UK,HARDWARE STORES,Outdoor Education (includes Grafham Water),CEES Stibbington Centre,EQUIPMENT AND TOOLS
Cambridgeshire County Council,18/05/2021,176.95,ARGOS LTD,DISCOUNT STORES,Corporate Parenting,Separated Migrant Children > 18,LEAVING CARE GRANTS
Cambridgeshire County Council,18/05/2021,206.00,WWW.CIPS.ORG,"ORGANIZATIONS, MEMBERSHIP-NOT ELSEWHERE CLASSIFIED",Procurement,Strategic Procurement & Contract Managem,
Cambridgeshire County Council,18/05/2021,479.60,ZOOM.US 888-799-9666,TELECOM INCL PREPAID/RECURRING PHONE SVCS,Cambridgeshire Music,Cambs Music Holding Account,
Cambridgeshire County Council,19/05/2021,0.83,APPLE.COM/BILL,DIGITAL GOODS MULTI CATEGORY,ICT Service (Education),ICT Service Systems Development,
Cambridgeshire County Council,19/05/2021,1.66,APPLE.COM/BILL,DIGITAL GOODS AUDIOVISUAL MEDIA,ICT Service (Education),ICT Service Systems Development,
Cambridgeshire County Council,19/05/2021,2.49,APPLE.COM/BILL,RECORD SHOPS,ICT Service (Education),ICT Service Systems Development,
Cambridgeshire County Council,19/05/2021,2.49,APPLE.COM/BILL,RECORD SHOPS,ICT Service (Education),ICT Service Systems Development,
Cambridgeshire County Council,19/05/2021,2.49,APPLE.COM/BILL,DIGITAL GOODS AUDIOVISUAL MEDIA,ICT Service (Education),ICT Service Systems Development,
Cambridgeshire County Council,19/05/2021,2.49,APPLE.COM/BILL,DIGITAL GOODS AUDIOVISUAL MEDIA,ICT Service (Education),ICT Service Systems Development,
Cambridgeshire County Council,19/05/2021,2.49,APPLE.COM/BILL,DIGITAL GOODS AUDIOVISUAL MEDIA,ICT Service (Education),ICT Service Systems Development,
Cambridgeshire County Council,19/05/2021,2.49,APPLE.COM/BILL,DIGITAL GOODS AUDIOVISUAL MEDIA,ICT Service (Education),ICT Service Systems Development,
Cambridgeshire County Council,19/05/2021,2.49,APPLE.COM/BILL,RECORD SHOPS,ICT Service (Education),ICT Service Systems Development,
Cambridgeshire County Council,19/05/2021,2.49,APPLE.COM/BILL,DIGITAL GOODS MULTI CATEGORY,ICT Service (Education),ICT Service Systems Development,
Cambridgeshire County Council,19/05/2021,2.49,APPLE.COM/BILL,DIGITAL GOODS AUDIOVISUAL MEDIA,ICT Service (Education),ICT Service Systems Development,
Cambridgeshire County Council,19/05/2021,2.49,APPLE.COM/BILL,DIGITAL GOODS AUDIOVISUAL MEDIA,ICT Service (Education),ICT Service Systems Development,
Cambridgeshire County Council,19/05/2021,2.49,APPLE.COM/BILL,DIGITAL GOODS MULTI CATEGORY,ICT Service (Education),ICT Service Systems Development,
Cambridgeshire County Council,19/05/2021,2.49,APPLE.COM/BILL,DIGITAL GOODS MULTI CATEGORY,ICT Service (Education),ICT Service Systems Development,
Cambridgeshire County Council,19/05/2021,2.49,APPLE.COM/BILL,DIGITAL GOODS MULTI CATEGORY,ICT Service (Education),ICT Service Systems Development,
Cambridgeshire County Council,19/05/2021,2.49,APPLE.COM/BILL,DIGITAL GOODS MULTI CATEGORY,ICT Service (Education),ICT Service Systems Development,
Cambridgeshire County Council,19/05/2021,2.49,APPLE.COM/BILL,DIGITAL GOODS MULTI CATEGORY,ICT Service (Education),ICT Service Systems Development,
Cambridgeshire County Council,19/05/2021,2.49,APPLE.COM/BILL,DIGITAL GOODS MULTI CATEGORY,ICT Service (Education),ICT Service Systems Development,
Cambridgeshire County Council,19/05/2021,2.49,APPLE.COM/BILL,DIGITAL GOODS MULTI CATEGORY,ICT Service (Education),ICT Service Systems Development,
Cambridgeshire County Council,19/05/2021,2.80,GREGGS PLC,"EATING PLACES, RESTAURANTS",Changing Futures & Projects,Housing First,OTHER SERVICE USER SUPPORT
Cambridgeshire County Council,19/05/2021,2.99,MACKAYS OF CAMBS,"BUILDING MATERIALS, LUMBER STORES",Parking Enforcement,On Street Parking,EQUIPMENT AND TOOLS
Cambridgeshire County Council,19/05/2021,3.00,NCP LTD,AUTOMOBILE PARKING LOTS AND GARAGES,Changing Futures & Projects,Housing First,CAR MILEAGE AND ALLOWANCES - STAFF
Cambridgeshire County Council,19/05/2021,3.10,POST OFFICE COUNTER,POSTAL SERVICES-GOVERNMENT ONLY,Family Safeguarding East,Family Safeguarding East & South Cambs and Cambridge,GRANTS&SUPPORT FOR OTHER SERVICE USERS
Cambridgeshire County Council,19/05/2021,3.20,ASDA STORES,"GROCERY STORES, SUPERMARKETS",Targeted Support Service - North,EH Child and Family Centre - Wisbech,EDUCATIONAL MATERIALS
Cambridgeshire County Council,19/05/2021,3.33,APPLE.COM/BILL,DIGITAL GOODS MULTI CATEGORY,ICT Service (Education),ICT Service Systems Development,
Cambridgeshire County Council,19/05/2021,3.33,APPLE.COM/BILL,DIGITAL GOODS MULTI CATEGORY,ICT Service (Education),ICT Service Systems Development,
Cambridgeshire County Council,19/05/2021,4.04,AMZNMKTPLACE,MISCELLANEOUS AND SPECIALTY RETAIL STORES,Children's Disability Service,Head of RSS,GENERAL OFFICE EXPENSES & STATIONERY
Cambridgeshire County Council,19/05/2021,4.99,AMZNMKTPLACE,MISCELLANEOUS AND SPECIALTY RETAIL STORES,LD - In House Provider Services,6 St Lukes Close (Respite),
Cambridgeshire County Council,19/05/2021,6.25,TESCO STORES 2228,"GROCERY STORES, SUPERMARKETS",Children's Disability Service,Head of RSS,CLEANING AND DOMESTIC SUPPLIES
Cambridgeshire County Council,19/05/2021,6.54,FOOD TO GO,FAST FOOD RESTAURANTS,Changing Futures & Projects,Housing First,OTHER SERVICE USER SUPPORT
Cambridgeshire County Council,19/05/2021,6.99,AMZNMKTPLACE AMAZON.CO,MISCELLANEOUS AND SPECIALTY RETAIL STORES,Outdoor Education (includes Grafham Water),Grafham Water Centre,CATERING EQUIPMENT-PURCHASES
Cambridgeshire County Council,19/05/2021,8.33,APPLE.COM/BILL,RECORD SHOPS,ICT Service (Education),ICT Service Systems Development,
Cambridgeshire County Council,19/05/2021,9.45,HOME BARGAINS,HARDWARE STORES,Changing Futures & Projects,Housing First,OTHER SERVICE USER SUPPORT
Cambridgeshire County Council,19/05/2021,9.50,TESCO STORES 2228,"GROCERY STORES, SUPERMARKETS",Children's Disability Service,Head of RSS,OTHER SERVICE USER SUPPORT
Cambridgeshire County Council,19/05/2021,10.14,HERON FOODS WHITTLESEY,"GROCERY STORES, SUPERMARKETS",Changing Futures & Projects,Housing First,OTHER SERVICE USER SUPPORT
Cambridgeshire County Council,19/05/2021,11.69,POST OFFICE COUNTER,POSTAL SERVICES-GOVERNMENT ONLY,Coroners,Coroners General,POSTAGE & CARRIAGE
Cambridgeshire County Council,19/05/2021,12.00,FASTHOSTS INTERNET,COMPUTER NETWORK/INFORMATION SERVICES,ICT Service (Education),ICT Service Systems Development,
Cambridgeshire County Council,19/05/2021,12.49,APPLE.COM/BILL,RECORD SHOPS,ICT Service (Education),ICT Service Systems Development,
Cambridgeshire County Council,19/05/2021,12.49,APPLE.COM/BILL,DIGITAL GOODS MULTI CATEGORY,ICT Service (Education),ICT Service Systems Development,
Cambridgeshire County Council,19/05/2021,12.99,AMAZON.CO.UK MK8S29WU4,DIRECT MARKETING-OTHER DIRECT MARKETERS/NOT ELSEW.,Corporate Parenting,Separated Migrant Children > 18,ASYLUM SEEKERS
Cambridgeshire County Council,19/05/2021,14.00,TIMPSON LTD,MISCELLANEOUS AND SPECIALTY RETAIL STORES,Changing Futures & Projects,Housing First,OTHER SERVICE USER SUPPORT
Cambridgeshire County Council,19/05/2021,14.39,ZOOM.US 888-799-9666,TELECOM INCL PREPAID/RECURRING PHONE SVCS,School Improvement Service,Education Health Safety and Wellbeing: PE & Sport Advisor,SUBSCRIPTIONS
